Workbook

Sheet Титульный лист
B4: Годовой семейный бюджет
B5: Планируйте и отслеживайте доходы и расходы семьи в течение всего года
B9: Как пользоваться этим шаблоном
B11: 1. Укажите наименование бюджета и номер года на листе "Движение денежных средств"
B13: 2. Заполните или обновите данные на листах "Доходы" и "Расходы" путем ввода данных через пользоватльские формы или путем загрузки выписки из интернет банка
B16: 3. На листе "Баланс" отражайте данные об изменении Активов и погашении Задолженностей
B18: 4. Анализируйте динамику изменения доходов, расходов и структуры баланса по графикам и диаграммам

Sheet Движение денежных средств
B1: Михаил
B2: Личный бюджет
B4: =YEAR(TODAY()) -> 2020
B5: Примечание. Данные в таблице движения денежных средств автоматически рассчитываются на основе записей в таблицах "Доходы за месяц" и "Расходы за месяц".
B7: Движение денежных средств | C7: =DATE($B6,1,1) -> 1900-01-01 | F7: =DATE($B6,2,1) -> 1900-02-01 | I7: =DATE($B6,3,1) -> 1900-03-01 | L7: =DATE($B6,4,1) -> 1900-04-01 | O7: =DATE($B6,5,1) -> 1900-05-01 | R7: =DATE($B6,6,1) -> 1900-06-01 | U7: =DATE($B6,7,1) -> 1900-07-01 | X7: =DATE($B6,8,1) -> 1900-08-01 | AA7: =DATE($B6,9,1) -> 1900-09-01 | AD7: =DATE($B6,10,1) -> 1900-10-01 | AG7: =DATE($B6,11,1) -> 1900-11-01 | AJ7: =DATE($B6,12,1) -> 1900-12-01 | AM7: Итого
B8: Показатели | C8: План | D8: Факт | E8: Разница | F8: План | G8: Факт | H8: Разница | I8: План | J8: Факт | K8: Разница | L8: План | M8: Факт | N8: Разница | O8: План | P8: Факт | Q8: Разница | R8: План | S8: Факт | T8: Разница | U8: План | V8: Факт | W8: Разница | X8: План | Y8: Факт | Z8: Разница | AA8: План | AB8: Факт | AC8: Разница | AD8: План | AE8: Факт | AF8: Разница | AG8: План | AH8: Факт | AI8: Разница | AJ8: План | AK8: Факт | AL8: Разница | AM8: План | AN8: Факт | AO8: Разница
B9: Доходы | C9: =Доходы!C12 -> 72000 | D9: =Доходы!D12 -> 88167.04 | E9: =D9-C9 -> 16167.04 | F9: =Доходы!F12 -> 57000 | G9: =Доходы!G12 -> 92004.69 | H9: =G9-F9 -> 35004.69 | I9: =Доходы!I12 -> 57000 | J9: =Доходы!J12 -> 92583.8 | K9: =J9-I9 -> 35583.8 | L9: =Доходы!L12 -> 57000 | M9: =Доходы!M12 -> 88167.04 | N9: =M9-L9 -> 31167.04 | O9: =Доходы!O12 -> 57000 | P9: =Доходы!P12 -> 92004.69 | Q9: =P9-O9 -> 35004.69 | R9: =Доходы!R12 -> 57000 | S9: =Доходы!S12 -> 92583.8 | T9: =S9-R9 -> 35583.8 | U9: =Доходы!U12 -> 57000 | V9: =Доходы!V12 -> 88167.04 | W9: =V9-U9 -> 31167.04 | X9: =Доходы!X12 -> 57000 | Y9: =Доходы!Y12 -> 92004.69 | Z9: =Y9-X9 -> 35004.69 | AA9: =Доходы!AA12 -> 57000 | AB9: =Доходы!AB12 -> 92583.8 | AC9: =AB9-AA9 -> 35583.8 | AD9: =Доходы!AD12 -> 57000 | AE9: =Доходы!AE12 -> 88167.04 | AF9: =AE9-AD9 -> 31167.04 | AG9: =Доходы!AG12 -> 57000 | AH9: =Доходы!AH12 -> 92004.69 | AI9: =AH9-AG9 -> 35004.69 | AJ9: =Доходы!AJ12 -> 57000 | AK9: =Доходы!AK12 -> 92583.8 | AL9: =AK9-AJ9 -> 35583.8 | AM9: =SUMIFS($C9:$AL9,$C8:$AL8,AM$8) -> 699000 | AN9: =SUMIFS($C9:$AL9,$C8:$AL8,AN$8) -> 1091022.12 | AO9: =AN9-AM9 -> 392022.12
B10: Расходы | C10: =-Расходы!C36 -> -34730 | D10: =-Расходы!D36 -> -64809.44 | E10: =D10-C10 -> -30079.44 | F10: =-Расходы!F36 -> -34730 | G10: =-Расходы!G36 -> -66968.53 | H10: =G10-F10 -> -32238.53 | I10: =-Расходы!I36 -> -34730 | J10: =-Расходы!J36 -> -166924.73 | K10: =J10-I10 -> -132194.73 | L10: =-Расходы!L36 -> -34730 | M10: =-Расходы!M36 -> -64809.44 | N10: =M10-L10 -> -30079.44 | O10: =-Расходы!O36 -> -34730 | P10: =-Расходы!P36 -> -66968.53 | Q10: =P10-O10 -> -32238.53 | R10: =-Расходы!R36 -> -34730 | S10: =-Расходы!S36 -> -166924.73 | T10: =S10-R10 -> -132194.73 | U10: =-Расходы!U36 -> -34730 | V10: =-Расходы!V36 -> -64809.44 | W10: =V10-U10 -> -30079.44 | X10: =-Расходы!X36 -> -34730 | Y10: =-Расходы!Y36 -> -66968.53 | Z10: =Y10-X10 -> -32238.53 | AA10: =-Расходы!AA36 -> -34730 | AB10: =-Расходы!AB36 -> -166924.73 | AC10: =AB10-AA10 -> -132194.73 | AD10: =-Расходы!AD36 -> -34730 | AE10: =-Расходы!AE36 -> -64809.44 | AF10: =AE10-AD10 -> -30079.44 | AG10: =-Расходы!AG36 -> -34730 | AH10: =-Расходы!AH36 -> -66968.53 | AI10: =AH10-AG10 -> -32238.53 | AJ10: =-Расходы!AJ36 -> -34730 | AK10: =-Расходы!AK36 -> -166924.73 | AL10: =AK10-AJ10 -> -132194.73 | AM10: =SUMIFS($C10:$AL10,$C8:$AL8,AM$8) -> -416760 | AN10: =SUMIFS($C10:$AL10,$C8:$AL8,AN$8) -> -1194810.8 | AO10: =AN10-AM10 -> -778050.8
B11: Итого остаток денежных средств | C11: =C9+C10 -> 37270 | D11: =D9+D10 -> 23357.6 | E11: =D11-C11 -> -13912.4 | F11: =F9+F10 -> 22270 | G11: =G9+G10 -> 25036.16 | H11: =G11-F11 -> 2766.16 | I11: =I9+I10 -> 22270 | J11: =J9+J10 -> -74340.93 | K11: =J11-I11 -> -96610.93 | L11: =L9+L10 -> 22270 | M11: =M9+M10 -> 23357.6 | N11: =M11-L11 -> 1087.6 | O11: =O9+O10 -> 22270 | P11: =P9+P10 -> 25036.16 | Q11: =P11-O11 -> 2766.16 | R11: =R9+R10 -> 22270 | S11: =S9+S10 -> -74340.93 | T11: =S11-R11 -> -96610.93 | U11: =U9+U10 -> 22270 | V11: =V9+V10 -> 23357.6 | W11: =V11-U11 -> 1087.6 | X11: =X9+X10 -> 22270 | Y11: =Y9+Y10 -> 25036.16 | Z11: =Y11-X11 -> 2766.16 | AA11: =AA9+AA10 -> 22270 | AB11: =AB9+AB10 -> -74340.93 | AC11: =AB11-AA11 -> -96610.93 | AD11: =AD9+AD10 -> 22270 | AE11: =AE9+AE10 -> 23357.6 | AF11: =AE11-AD11 -> 1087.6 | AG11: =AG9+AG10 -> 22270 | AH11: =AH9+AH10 -> 25036.16 | AI11: =AH11-AG11 -> 2766.16 | AJ11: =AJ9+AJ10 -> 22270 | AK11: =AK9+AK10 -> -74340.93 | AL11: =AK11-AJ11 -> -96610.93 | AM11: =AM9+AM10 -> 282240 | AN11: =AN9+AN10 -> -103788.68 | AO11: =AN11-AM11 -> -386028.68

Sheet Доходы
B1: =Имя -> Михаил
B2: =BudgetTitle -> Личный бюджет
B4: =Год -> 2020
B5: Доходы за месяц | C5: =DATE($B4,1,1) -> 2020-01-01 | F5: =DATE($B4,2,1) -> 2020-02-01 | I5: =DATE($B4,3,1) -> 2020-03-01 | L5: =DATE($B4,4,1) -> 2020-04-01 | O5: =DATE($B4,5,1) -> 2020-05-01 | R5: =DATE($B4,6,1) -> 2020-06-01 | U5: =DATE($B4,7,1) -> 2020-07-01 | X5: =DATE($B4,8,1) -> 2020-08-01 | AA5: =DATE($B4,9,1) -> 2020-09-01 | AD5: =DATE($B4,10,1) -> 2020-10-01 | AG5: =DATE($B4,11,1) -> 2020-11-01 | AJ5: =DATE($B4,12,1) -> 2020-12-01 | AM5: Итого
B6: Показатели | C6: План | D6: Факт | E6: Разница | F6: План | G6: Факт | H6: Разница | I6: План | J6: Факт | K6: Разница | L6: План | M6: Факт | N6: Разница | O6: План | P6: Факт | Q6: Разница | R6: План | S6: Факт | T6: Разница | U6: План | V6: Факт | W6: Разница | X6: План | Y6: Факт | Z6: Разница | AA6: План | AB6: Факт | AC6: Разница | AD6: План | AE6: Факт | AF6: Разница | AG6: План | AH6: Факт | AI6: Разница | AJ6: План | AK6: Факт | AL6: Разница | AM6: План | AN6: Факт | AO6: Разница
B7: Заработная плата | C7: 55000 | D7: =SUMIFS(СуммаОпераций,КатегорияОпераций,$B7,ДатаОперации,">="&C$5,ДатаОперации,"<"&F$5) -> 55000 | E7: =Доходы[[#This Row],[Факт Январь]]-Доходы[[#This Row],[План Январь]] -> 0 | F7: 40000 | G7: =SUMIFS(СуммаОпераций,КатегорияОпераций,$B7,ДатаОперации,">="&F$5,ДатаОперации,"<"&I$5) -> 55000 | H7: =Доходы[[#This Row],[Факт Февраль]]-Доходы[[#This Row],[План Февраль]] -> 15000 | I7: 40000 | J7: =SUMIFS(СуммаОпераций,КатегорияОпераций,$B7,ДатаОперации,">="&I$5,ДатаОперации,"<"&L$5) -> 55000 | K7: =Доходы[[#This Row],[Факт Март]]-Доходы[[#This Row],[План Март]] -> 15000 | L7: 40000 | M7: =SUMIFS(СуммаОпераций,КатегорияОпераций,$B7,ДатаОперации,">="&L$5,ДатаОперации,"<"&O$5) -> 55000 | N7: =Доходы[[#This Row],[Факт Апрель]]-Доходы[[#This Row],[План Апрель]] -> 15000 | O7: 40000 | P7: =SUMIFS(СуммаОпераций,КатегорияОпераций,$B7,ДатаОперации,">="&O$5,ДатаОперации,"<"&R$5) -> 55000 | Q7: =Доходы[[#This Row],[Факт Май]]-Доходы[[#This Row],[План Май]] -> 15000 | R7: 40000 | S7: =SUMIFS(СуммаОпераций,КатегорияОпераций,$B7,ДатаОперации,">="&R$5,ДатаОперации,"<"&U$5) -> 55000 | T7: =Доходы[[#This Row],[Факт Июнь]]-Доходы[[#This Row],[План Июнь]] -> 15000 | U7: 40000 | V7: =SUMIFS(СуммаОпераций,КатегорияОпераций,$B7,ДатаОперации,">="&U$5,ДатаОперации,"<"&X$5) -> 55000 | W7: =Доходы[[#This Row],[Факт Июль]]-Доходы[[#This Row],[План Июль]] -> 15000 | X7: 40000 | Y7: =SUMIFS(СуммаОпераций,КатегорияОпераций,$B7,ДатаОперации,">="&X$5,ДатаОперации,"<"&AA$5) -> 55000 | Z7: =Доходы[[#This Row],[Факт Август]]-Доходы[[#This Row],[План Август]] -> 15000 | AA7: 40000 | AB7: =SUMIFS(СуммаОпераций,КатегорияОпераций,$B7,ДатаОперации,">="&AA$5,ДатаОперации,"<"&AD$5) -> 55000 | AC7: =Доходы[[#This Row],[Факт Сентябрь]]-Доходы[[#This Row],[План Сентябрь]] -> 15000 | AD7: 40000 | AE7: =SUMIFS(СуммаОпераций,КатегорияОпераций,$B7,ДатаОперации,">="&AD$5,ДатаОперации,"<"&AG$5) -> 55000 | AF7: =Доходы[[#This Row],[Факт Октябрь]]-Доходы[[#This Row],[План Октябрь]] -> 15000 | AG7: 40000 | AH7: =SUMIFS(СуммаОпераций,КатегорияОпераций,$B7,ДатаОперации,">="&AG$5,ДатаОперации,"<"&AJ$5) -> 55000 | AI7: =Доходы[[#This Row],[Факт Ноябрь]]-Доходы[[#This Row],[План Ноябрь]] -> 15000 | AJ7: 40000 | AK7: =SUMIFS(СуммаОпераций,КатегорияОпераций,$B7,ДатаОперации,">="&AJ$5,ДатаОперации,"<"&DATE($B$4,13,1)) -> 55000 | AL7: =Доходы[[#This Row],[Факт Декабрь]]-Доходы[[#This Row],[План Декабрь]] -> 15000 | AM7: =SUMIFS($C7:$AL7,$C$6:$AL$6,AM$6) -> 495000 | AN7: =SUMIFS($C7:$AL7,$C$6:$AL$6,AN$6) -> 660000 | AO7: =AN7-AM7 -> 165000
B8: Оплата за преподавание | C8: 14000 | D8: =SUMIFS(СуммаОпераций,КатегорияОпераций,$B8,ДатаОперации,">="&C$5,ДатаОперации,"<"&F$5) -> 15000 | E8: =Доходы[[#This Row],[Факт Январь]]-Доходы[[#This Row],[План Январь]] -> 1000 | F8: 14000 | G8: =SUMIFS(СуммаОпераций,КатегорияОпераций,$B8,ДатаОперации,">="&F$5,ДатаОперации,"<"&I$5) -> 15000 | H8: =Доходы[[#This Row],[Факт Февраль]]-Доходы[[#This Row],[План Февраль]] -> 1000 | I8: 14000 | J8: =SUMIFS(СуммаОпераций,КатегорияОпераций,$B8,ДатаОперации,">="&I$5,ДатаОперации,"<"&L$5) -> 15000 | K8: =Доходы[[#This Row],[Факт Март]]-Доходы[[#This Row],[План Март]] -> 1000 | L8: 14000 | M8: =SUMIFS(СуммаОпераций,КатегорияОпераций,$B8,ДатаОперации,">="&L$5,ДатаОперации,"<"&O$5) -> 15000 | N8: =Доходы[[#This Row],[Факт Апрель]]-Доходы[[#This Row],[План Апрель]] -> 1000 | O8: 14000 | P8: =SUMIFS(СуммаОпераций,КатегорияОпераций,$B8,ДатаОперации,">="&O$5,ДатаОперации,"<"&R$5) -> 15000 | Q8: =Доходы[[#This Row],[Факт Май]]-Доходы[[#This Row],[План Май]] -> 1000 | R8: 14000 | S8: =SUMIFS(СуммаОпераций,КатегорияОпераций,$B8,ДатаОперации,">="&R$5,ДатаОперации,"<"&U$5) -> 15000 | T8: =Доходы[[#This Row],[Факт Июнь]]-Доходы[[#This Row],[План Июнь]] -> 1000 | U8: 14000 | V8: =SUMIFS(СуммаОпераций,КатегорияОпераций,$B8,ДатаОперации,">="&U$5,ДатаОперации,"<"&X$5) -> 15000 | W8: =Доходы[[#This Row],[Факт Июль]]-Доходы[[#This Row],[План Июль]] -> 1000 | X8: 14000 | Y8: =SUMIFS(СуммаОпераций,КатегорияОпераций,$B8,ДатаОперации,">="&X$5,ДатаОперации,"<"&AA$5) -> 15000 | Z8: =Доходы[[#This Row],[Факт Август]]-Доходы[[#This Row],[План Август]] -> 1000 | AA8: 14000 | AB8: =SUMIFS(СуммаОпераций,КатегорияОпераций,$B8,ДатаОперации,">="&AA$5,ДатаОперации,"<"&AD$5) -> 15000 | AC8: =Доходы[[#This Row],[Факт Сентябрь]]-Доходы[[#This Row],[План Сентябрь]] -> 1000 | AD8: 14000 | AE8: =SUMIFS(СуммаОпераций,КатегорияОпераций,$B8,ДатаОперации,">="&AD$5,ДатаОперации,"<"&AG$5) -> 15000 | AF8: =Доходы[[#This Row],[Факт Октябрь]]-Доходы[[#This Row],[План Октябрь]] -> 1000 | AG8: 14000 | AH8: =SUMIFS(СуммаОпераций,КатегорияОпераций,$B8,ДатаОперации,">="&AG$5,ДатаОперации,"<"&AJ$5) -> 15000 | AI8: =Доходы[[#This Row],[Факт Ноябрь]]-Доходы[[#This Row],[План Ноябрь]] -> 1000 | AJ8: 14000 | AK8: =SUMIFS(СуммаОпераций,КатегорияОпераций,$B8,ДатаОперации,">="&AJ$5,ДатаОперации,"<"&DATE($B$4,13,1)) -> 15000 | AL8: =Доходы[[#This Row],[Факт Декабрь]]-Доходы[[#This Row],[План Декабрь]] -> 1000 | AM8: 168000 | AN8: 180000 | AO8: 12000
B9: Прочие доходы | D9: =SUMIFS(СуммаОпераций,КатегорияОпераций,$B9,ДатаОперации,">="&C$5,ДатаОперации,"<"&F$5) -> 8167.04 | E9: =Доходы[[#This Row],[Факт Январь]]-Доходы[[#This Row],[План Январь]] -> 8167.04 | G9: =SUMIFS(СуммаОпераций,КатегорияОпераций,$B9,ДатаОперации,">="&F$5,ДатаОперации,"<"&I$5) -> 12004.69 | H9: =Доходы[[#This Row],[Факт Январь]]-Доходы[[#This Row],[План Январь]] -> 8167.04 | J9: =SUMIFS(СуммаОпераций,КатегорияОпераций,$B9,ДатаОперации,">="&I$5,ДатаОперации,"<"&L$5) -> 12583.8 | K9: =Доходы[[#This Row],[Факт Январь]]-Доходы[[#This Row],[План Январь]] -> 8167.04 | M9: =SUMIFS(СуммаОпераций,КатегорияОпераций,$B9,ДатаОперации,">="&L$5,ДатаОперации,"<"&O$5) -> 8167.04 | N9: =Доходы[[#This Row],[Факт Январь]]-Доходы[[#This Row],[План Январь]] -> 8167.04 | P9: =SUMIFS(СуммаОпераций,КатегорияОпераций,$B9,ДатаОперации,">="&O$5,ДатаОперации,"<"&R$5) -> 12004.69 | Q9: =Доходы[[#This Row],[Факт Январь]]-Доходы[[#This Row],[План Январь]] -> 8167.04 | S9: =SUMIFS(СуммаОпераций,КатегорияОпераций,$B9,ДатаОперации,">="&R$5,ДатаОперации,"<"&U$5) -> 12583.8 | T9: =Доходы[[#This Row],[Факт Январь]]-Доходы[[#This Row],[План Январь]] -> 8167.04 | V9: =SUMIFS(СуммаОпераций,КатегорияОпераций,$B9,ДатаОперации,">="&U$5,ДатаОперации,"<"&X$5) -> 8167.04 | W9: =Доходы[[#This Row],[Факт Январь]]-Доходы[[#This Row],[План Январь]] -> 8167.04 | Y9: =SUMIFS(СуммаОпераций,КатегорияОпераций,$B9,ДатаОперации,">="&X$5,ДатаОперации,"<"&AA$5) -> 12004.69 | Z9: =Доходы[[#This Row],[Факт Январь]]-Доходы[[#This Row],[План Январь]] -> 8167.04 | AB9: =SUMIFS(СуммаОпераций,КатегорияОпераций,$B9,ДатаОперации,">="&AA$5,ДатаОперации,"<"&AD$5) -> 12583.8 | AC9: =Доходы[[#This Row],[Факт Январь]]-Доходы[[#This Row],[План Январь]] -> 8167.04 | AE9: =SUMIFS(СуммаОпераций,КатегорияОпераций,$B9,ДатаОперации,">="&AD$5,ДатаОперации,"<"&AG$5) -> 8167.04 | AF9: =Доходы[[#This Row],[Факт Январь]]-Доходы[[#This Row],[План Январь]] -> 8167.04 | AH9: =SUMIFS(СуммаОпераций,КатегорияОпераций,$B9,ДатаОперации,">="&AG$5,ДатаОперации,"<"&AJ$5) -> 12004.69 | AI9: =Доходы[[#This Row],[Факт Январь]]-Доходы[[#This Row],[План Январь]] -> 8167.04 | AK9: =SUMIFS(СуммаОпераций,КатегорияОпераций,$B9,ДатаОперации,">="&AJ$5,ДатаОперации,"<"&DATE($B$4,13,1)) -> 12583.8 | AL9: =Доходы[[#This Row],[Факт Январь]]-Доходы[[#This Row],[План Январь]] -> 8167.04 | AM9: 0 | AN9: 131022.12 | AO9: 131022.12
B10: Дивиденды | D10: =SUMIFS(СуммаОпераций,КатегорияОпераций,$B10,ДатаОперации,">="&C$5,ДатаОперации,"<"&F$5) -> 5000 | E10: =Доходы[[#This Row],[Факт Январь]]-Доходы[[#This Row],[План Январь]] -> 5000 | G10: =SUMIFS(СуммаОпераций,КатегорияОпераций,$B10,ДатаОперации,">="&F$5,ДатаОперации,"<"&I$5) -> 5000 | H10: =Доходы[[#This Row],[Факт Февраль]]-Доходы[[#This Row],[План Февраль]] -> 5000 | J10: =SUMIFS(СуммаОпераций,КатегорияОпераций,$B10,ДатаОперации,">="&I$5,ДатаОперации,"<"&L$5) -> 5000 | K10: =Доходы[[#This Row],[Факт Март]]-Доходы[[#This Row],[План Март]] -> 5000 | M10: =SUMIFS(СуммаОпераций,КатегорияОпераций,$B10,ДатаОперации,">="&L$5,ДатаОперации,"<"&O$5) -> 5000 | N10: =Доходы[[#This Row],[Факт Апрель]]-Доходы[[#This Row],[План Апрель]] -> 5000 | P10: =SUMIFS(СуммаОпераций,КатегорияОпераций,$B10,ДатаОперации,">="&O$5,ДатаОперации,"<"&R$5) -> 5000 | Q10: =Доходы[[#This Row],[Факт Май]]-Доходы[[#This Row],[План Май]] -> 5000 | S10: =SUMIFS(СуммаОпераций,КатегорияОпераций,$B10,ДатаОперации,">="&R$5,ДатаОперации,"<"&U$5) -> 5000 | T10: =Доходы[[#This Row],[Факт Июнь]]-Доходы[[#This Row],[План Июнь]] -> 5000 | V10: =SUMIFS(СуммаОпераций,КатегорияОпераций,$B10,ДатаОперации,">="&U$5,ДатаОперации,"<"&X$5) -> 5000 | W10: =Доходы[[#This Row],[Факт Июль]]-Доходы[[#This Row],[План Июль]] -> 5000 | Y10: =SUMIFS(СуммаОпераций,КатегорияОпераций,$B10,ДатаОперации,">="&X$5,ДатаОперации,"<"&AA$5) -> 5000 | Z10: =Доходы[[#This Row],[Факт Август]]-Доходы[[#This Row],[План Август]] -> 5000 | AB10: =SUMIFS(СуммаОпераций,КатегорияОпераций,$B10,ДатаОперации,">="&AA$5,ДатаОперации,"<"&AD$5) -> 5000 | AC10: =Доходы[[#This Row],[Факт Сентябрь]]-Доходы[[#This Row],[План Сентябрь]] -> 5000 | AE10: =SUMIFS(СуммаОпераций,КатегорияОпераций,$B10,ДатаОперации,">="&AD$5,ДатаОперации,"<"&AG$5) -> 5000 | AF10: =Доходы[[#This Row],[Факт Октябрь]]-Доходы[[#This Row],[План Октябрь]] -> 5000 | AH10: =SUMIFS(СуммаОпераций,КатегорияОпераций,$B10,ДатаОперации,">="&AG$5,ДатаОперации,"<"&AJ$5) -> 5000 | AI10: =Доходы[[#This Row],[Факт Ноябрь]]-Доходы[[#This Row],[План Ноябрь]] -> 5000 | AK10: =SUMIFS(СуммаОпераций,КатегорияОпераций,$B10,ДатаОперации,">="&AJ$5,ДатаОперации,"<"&DATE($B$4,13,1)) -> 5000 | AL10: =Доходы[[#This Row],[Факт Декабрь]]-Доходы[[#This Row],[План Декабрь]] -> 5000 | AM10: 0 | AN10: 60000 | AO10: 60000
B11: Проценты по вкладам | C11: 3000 | D11: =SUMIFS(СуммаОпераций,КатегорияОпераций,$B11,ДатаОперации,">="&C$5,ДатаОперации,"<"&F$5) -> 5000 | E11: =Доходы[[#This Row],[Факт Январь]]-Доходы[[#This Row],[План Январь]] -> 2000 | F11: 3000 | G11: =SUMIFS(СуммаОпераций,КатегорияОпераций,$B11,ДатаОперации,">="&F$5,ДатаОперации,"<"&I$5) -> 5000 | H11: =Доходы[[#This Row],[Факт Февраль]]-Доходы[[#This Row],[План Февраль]] -> 2000 | I11: 3000 | J11: =SUMIFS(СуммаОпераций,КатегорияОпераций,$B11,ДатаОперации,">="&I$5,ДатаОперации,"<"&L$5) -> 5000 | K11: =Доходы[[#This Row],[Факт Март]]-Доходы[[#This Row],[План Март]] -> 2000 | L11: 3000 | M11: =SUMIFS(СуммаОпераций,КатегорияОпераций,$B11,ДатаОперации,">="&L$5,ДатаОперации,"<"&O$5) -> 5000 | N11: =Доходы[[#This Row],[Факт Апрель]]-Доходы[[#This Row],[План Апрель]] -> 2000 | O11: 3000 | P11: =SUMIFS(СуммаОпераций,КатегорияОпераций,$B11,ДатаОперации,">="&O$5,ДатаОперации,"<"&R$5) -> 5000 | Q11: =Доходы[[#This Row],[Факт Май]]-Доходы[[#This Row],[План Май]] -> 2000 | R11: 3000 | S11: =SUMIFS(СуммаОпераций,КатегорияОпераций,$B11,ДатаОперации,">="&R$5,ДатаОперации,"<"&U$5) -> 5000 | T11: =Доходы[[#This Row],[Факт Июнь]]-Доходы[[#This Row],[План Июнь]] -> 2000 | U11: 3000 | V11: =SUMIFS(СуммаОпераций,КатегорияОпераций,$B11,ДатаОперации,">="&U$5,ДатаОперации,"<"&X$5) -> 5000 | W11: =Доходы[[#This Row],[Факт Июль]]-Доходы[[#This Row],[План Июль]] -> 2000 | X11: 3000 | Y11: =SUMIFS(СуммаОпераций,КатегорияОпераций,$B11,ДатаОперации,">="&X$5,ДатаОперации,"<"&AA$5) -> 5000 | Z11: =Доходы[[#This Row],[Факт Август]]-Доходы[[#This Row],[План Август]] -> 2000 | AA11: 3000 | AB11: =SUMIFS(СуммаОпераций,КатегорияОпераций,$B11,ДатаОперации,">="&AA$5,ДатаОперации,"<"&AD$5) -> 5000 | AC11: =Доходы[[#This Row],[Факт Сентябрь]]-Доходы[[#This Row],[План Сентябрь]] -> 2000 | AD11: 3000 | AE11: =SUMIFS(СуммаОпераций,КатегорияОпераций,$B11,ДатаОперации,">="&AD$5,ДатаОперации,"<"&AG$5) -> 5000 | AF11: =Доходы[[#This Row],[Факт Октябрь]]-Доходы[[#This Row],[План Октябрь]] -> 2000 | AG11: 3000 | AH11: =SUMIFS(СуммаОпераций,КатегорияОпераций,$B11,ДатаОперации,">="&AG$5,ДатаОперации,"<"&AJ$5) -> 5000 | AI11: =Доходы[[#This Row],[Факт Ноябрь]]-Доходы[[#This Row],[План Ноябрь]] -> 2000 | AJ11: 3000 | AK11: =SUMIFS(СуммаОпераций,КатегорияОпераций,$B11,ДатаОперации,">="&AJ$5,ДатаОперации,"<"&DATE($B$4,13,1)) -> 5000 | AL11: =Доходы[[#This Row],[Факт Декабрь]]-Доходы[[#This Row],[План Декабрь]] -> 2000 | AM11: 36000 | AN11: 60000 | AO11: 24000
B12: Общие доходы | C12: =SUBTOTAL(109,Доходы[План Январь]) -> 72000 | D12: =SUBTOTAL(109,Доходы[Факт Январь]) -> 88167.04 | E12: =SUBTOTAL(109,Доходы[Разница Январь]) -> 16167.04 | F12: =SUBTOTAL(109,Доходы[План Февраль]) -> 57000 | G12: =SUBTOTAL(109,Доходы[Факт Февраль]) -> 92004.69 | H12: =SUBTOTAL(109,Доходы[Разница Февраль]) -> 31167.04 | I12: =SUBTOTAL(109,Доходы[План Март]) -> 57000 | J12: =SUBTOTAL(109,Доходы[Факт Март]) -> 92583.8 | K12: =SUBTOTAL(109,Доходы[Разница Март]) -> 31167.04 | L12: =SUBTOTAL(109,Доходы[План Апрель]) -> 57000 | M12: =SUBTOTAL(109,Доходы[Факт Апрель]) -> 88167.04 | N12: =SUBTOTAL(109,Доходы[Разница Апрель]) -> 31167.04 | O12: =SUBTOTAL(109,Доходы[План Май]) -> 57000 | P12: =SUBTOTAL(109,Доходы[Факт Май]) -> 92004.69 | Q12: =SUBTOTAL(109,Доходы[Разница Май]) -> 31167.04 | R12: =SUBTOTAL(109,Доходы[План Июнь]) -> 57000 | S12: =SUBTOTAL(109,Доходы[Факт Июнь]) -> 92583.8 | T12: =SUBTOTAL(109,Доходы[Разница Июнь]) -> 31167.04 | U12: =SUBTOTAL(109,Доходы[План Июль]) -> 57000 | V12: =SUBTOTAL(109,Доходы[Факт Июль]) -> 88167.04 | W12: =SUBTOTAL(109,Доходы[Разница Июль]) -> 31167.04 | X12: =SUBTOTAL(109,Доходы[План Август]) -> 57000 | Y12: =SUBTOTAL(109,Доходы[Факт Август]) -> 92004.69 | Z12: =SUBTOTAL(109,Доходы[Разница Август]) -> 31167.04 | AA12: =SUBTOTAL(109,Доходы[План Сентябрь]) -> 57000 | AB12: =SUBTOTAL(109,Доходы[Факт Сентябрь]) -> 92583.8 | AC12: =SUBTOTAL(109,Доходы[Разница Сентябрь]) -> 31167.04 | AD12: =SUBTOTAL(109,Доходы[План Октябрь]) -> 57000 | AE12: =SUBTOTAL(109,Доходы[Факт Октябрь]) -> 88167.04 | AF12: =SUBTOTAL(109,Доходы[Разница Октябрь]) -> 31167.04 | AG12: =SUBTOTAL(109,Доходы[План Ноябрь]) -> 57000 | AH12: =SUBTOTAL(109,Доходы[Факт Ноябрь]) -> 92004.69 | AI12: =SUBTOTAL(109,Доходы[Разница Ноябрь]) -> 31167.04 | AJ12: =SUBTOTAL(109,Доходы[План Декабрь]) -> 57000 | AK12: =SUBTOTAL(109,Доходы[Факт Декабрь]) -> 92583.8 | AL12: =SUBTOTAL(109,Доходы[Разница Декабрь]) -> 31167.04 | AM12: =SUM(AM7:AM11) -> 699000 | AN12: =SUM(AN7:AN11) -> 1091022.12 | AO12: =SUM(AO7:AO11) -> 392022.12
B27: Выберете месяц:
B28: Ноябрь

Sheet Расходы
B1: =Имя -> Михаил
B2: =BudgetTitle -> Личный бюджет
B4: =Год -> 2020
B5: Расходы за месяц | C5: =DATE($B4,1,1) -> 2020-01-01 | F5: =DATE($B4,2,1) -> 2020-02-01 | I5: =DATE($B4,3,1) -> 2020-03-01 | L5: =DATE($B4,4,1) -> 2020-04-01 | O5: =DATE($B4,5,1) -> 2020-05-01 | R5: =DATE($B4,6,1) -> 2020-06-01 | U5: =DATE($B4,7,1) -> 2020-07-01 | X5: =DATE($B4,8,1) -> 2020-08-01 | AA5: =DATE($B4,9,1) -> 2020-09-01 | AD5: =DATE($B4,10,1) -> 2020-10-01 | AG5: =DATE($B4,11,1) -> 2020-11-01 | AJ5: =DATE($B4,12,1) -> 2020-12-01 | AM5: ИТОГО
B6: Показатели | C6: План | D6: Факт | E6: Разница | F6: План | G6: Факт | H6: Разница | I6: План | J6: Факт | K6: Разница | L6: План | M6: Факт | N6: Разница | O6: План | P6: Факт | Q6: Разница | R6: План | S6: Факт | T6: Разница | U6: План | V6: Факт | W6: Разница | X6: План | Y6: Факт | Z6: Разница | AA6: План | AB6: Факт | AC6: Разница | AD6: План | AE6: Факт | AF6: Разница | AG6: План | AH6: Факт | AI6: Разница | AJ6: План | AK6: Факт | AL6: Разница | AM6: План | AN6: Факт | AO6: Разница
B7: Жилье | C7: 15000 | D7: =-SUMIFS(СуммаОпераций,КатегорияОпераций,Расходы!$B7,ДатаОперации,">="&C$5,ДатаОперации,"<"&F$5) -> 0 | E7: =Расходы[[#This Row],[Январь План]]-Расходы[[#This Row],[Январь Факт]] -> 15000 | F7: 15000 | G7: =-SUMIFS(СуммаОпераций,КатегорияОпераций,Расходы!$B7,ДатаОперации,">="&F$5,ДатаОперации,"<"&I$5) -> 0 | H7: =Расходы[[#This Row],[Февраль План]]-Расходы[[#This Row],[Февраль Факт]] -> 15000 | I7: 15000 | J7: =-SUMIFS(СуммаОпераций,КатегорияОпераций,Расходы!$B7,ДатаОперации,">="&I$5,ДатаОперации,"<"&L$5) -> 0 | K7: =Расходы[[#This Row],[Март План]]-Расходы[[#This Row],[Март Факт]] -> 15000 | L7: 15000 | M7: =-SUMIFS(СуммаОпераций,КатегорияОпераций,Расходы!$B7,ДатаОперации,">="&L$5,ДатаОперации,"<"&O$5) -> 0 | N7: =Расходы[[#This Row],[Апрель План]]-Расходы[[#This Row],[Апрель Факт]] -> 15000 | O7: 15000 | P7: =-SUMIFS(СуммаОпераций,КатегорияОпераций,Расходы!$B7,ДатаОперации,">="&O$5,ДатаОперации,"<"&R$5) -> 0 | Q7: =Расходы[[#This Row],[Май План]]-Расходы[[#This Row],[Май Факт]] -> 15000 | R7: 15000 | S7: =-SUMIFS(СуммаОпераций,КатегорияОпераций,Расходы!$B7,ДатаОперации,">="&R$5,ДатаОперации,"<"&U$5) -> 0 | T7: =Расходы[[#This Row],[Июнь План]]-Расходы[[#This Row],[Июнь Факт]] -> 15000 | U7: 15000 | V7: =-SUMIFS(СуммаОпераций,КатегорияОпераций,Расходы!$B7,ДатаОперации,">="&U$5,ДатаОперации,"<"&X$5) -> 0 | W7: =Расходы[[#This Row],[Июль План]]-Расходы[[#This Row],[Июль Факт]] -> 15000 | X7: 15000 | Y7: =-SUMIFS(СуммаОпераций,КатегорияОпераций,Расходы!$B7,ДатаОперации,">="&X$5,ДатаОперации,"<"&AA$5) -> 0 | Z7: =Расходы[[#This Row],[Август План]]-Расходы[[#This Row],[Август Факт]] -> 15000 | AA7: 15000 | AB7: =-SUMIFS(СуммаОпераций,КатегорияОпераций,Расходы!$B7,ДатаОперации,">="&AA$5,ДатаОперации,"<"&AD$5) -> 0 | AC7: =Расходы[[#This Row],[Сентябрь План]]-Расходы[[#This Row],[Сентябрь Факт]] -> 15000 | AD7: 15000 | AE7: =-SUMIFS(СуммаОпераций,КатегорияОпераций,Расходы!$B7,ДатаОперации,">="&AD$5,ДатаОперации,"<"&AG$5) -> 0 | AF7: =Расходы[[#This Row],[Октябрь План]]-Расходы[[#This Row],[Октябрь Факт]] -> 15000 | AG7: 15000 | AH7: =-SUMIFS(СуммаОпераций,КатегорияОпераций,Расходы!$B7,ДатаОперации,">="&AG$5,ДатаОперации,"<"&AJ$5) -> 0 | AI7: =Расходы[[#This Row],[Ноябрь План]]-Расходы[[#This Row],[Ноябрь Факт]] -> 15000 | AJ7: 15000 | AK7: =-SUMIFS(СуммаОпераций,КатегорияОпераций,Расходы!$B7,ДатаОперации,">="&AJ$5,ДатаОперации,"<"&DATE($B$4,13,1)) -> 0 | AL7: =Расходы[[#This Row],[Декабрь План]]-Расходы[[#This Row],[Декабрь Факт]] -> 15000 | AM7: =SUMIFS($C7:$AL7,$C$6:$AL$6,AM$6) -> 180000 | AN7: =SUMIFS($C7:$AL7,$C$6:$AL$6,AN$6) -> 0 | AO7: =AM7-AN7 -> 180000
B8: Продукты | C8: 2500 | D8: =-SUMIFS(СуммаОпераций,КатегорияОпераций,Расходы!$B8,ДатаОперации,">="&C$5,ДатаОперации,"<"&F$5) -> 9923.49 | E8: =Расходы[[#This Row],[Январь План]]-Расходы[[#This Row],[Январь Факт]] -> -7423.49 | F8: 2500 | G8: =-SUMIFS(СуммаОпераций,КатегорияОпераций,Расходы!$B8,ДатаОперации,">="&F$5,ДатаОперации,"<"&I$5) -> 13887.4 | H8: =Расходы[[#This Row],[Февраль План]]-Расходы[[#This Row],[Февраль Факт]] -> -11387.4 | I8: 2500 | J8: =-SUMIFS(СуммаОпераций,КатегорияОпераций,Расходы!$B8,ДатаОперации,">="&I$5,ДатаОперации,"<"&L$5) -> 19746.74 | K8: =Расходы[[#This Row],[Март План]]-Расходы[[#This Row],[Март Факт]] -> -17246.74 | L8: 2500 | M8: =-SUMIFS(СуммаОпераций,КатегорияОпераций,Расходы!$B8,ДатаОперации,">="&L$5,ДатаОперации,"<"&O$5) -> 9923.49 | N8: =Расходы[[#This Row],[Апрель План]]-Расходы[[#This Row],[Апрель Факт]] -> -7423.49 | O8: 2500 | P8: =-SUMIFS(СуммаОпераций,КатегорияОпераций,Расходы!$B8,ДатаОперации,">="&O$5,ДатаОперации,"<"&R$5) -> 13887.4 | Q8: =Расходы[[#This Row],[Май План]]-Расходы[[#This Row],[Май Факт]] -> -11387.4 | R8: 2500 | S8: =-SUMIFS(СуммаОпераций,КатегорияОпераций,Расходы!$B8,ДатаОперации,">="&R$5,ДатаОперации,"<"&U$5) -> 19746.74 | T8: =Расходы[[#This Row],[Июнь План]]-Расходы[[#This Row],[Июнь Факт]] -> -17246.74 | U8: 2500 | V8: =-SUMIFS(СуммаОпераций,КатегорияОпераций,Расходы!$B8,ДатаОперации,">="&U$5,ДатаОперации,"<"&X$5) -> 9923.49 | W8: =Расходы[[#This Row],[Июль План]]-Расходы[[#This Row],[Июль Факт]] -> -7423.49 | X8: 2500 | Y8: =-SUMIFS(СуммаОпераций,КатегорияОпераций,Расходы!$B8,ДатаОперации,">="&X$5,ДатаОперации,"<"&AA$5) -> 13887.4 | Z8: =Расходы[[#This Row],[Август План]]-Расходы[[#This Row],[Август Факт]] -> -11387.4 | AA8: 2500 | AB8: =-SUMIFS(СуммаОпераций,КатегорияОпераций,Расходы!$B8,ДатаОперации,">="&AA$5,ДатаОперации,"<"&AD$5) -> 19746.74 | AC8: =Расходы[[#This Row],[Сентябрь План]]-Расходы[[#This Row],[Сентябрь Факт]] -> -17246.74 | AD8: 2500 | AE8: =-SUMIFS(СуммаОпераций,КатегорияОпераций,Расходы!$B8,ДатаОперации,">="&AD$5,ДатаОперации,"<"&AG$5) -> 9923.49 | AF8: =Расходы[[#This Row],[Октябрь План]]-Расходы[[#This Row],[Октябрь Факт]] -> -7423.49 | AG8: 2500 | AH8: =-SUMIFS(СуммаОпераций,КатегорияОпераций,Расходы!$B8,ДатаОперации,">="&AG$5,ДатаОперации,"<"&AJ$5) -> 13887.4 | AI8: =Расходы[[#This Row],[Ноябрь План]]-Расходы[[#This Row],[Ноябрь Факт]] -> -11387.4 | AJ8: 2500 | AK8: =-SUMIFS(СуммаОпераций,КатегорияОпераций,Расходы!$B8,ДатаОперации,">="&AJ$5,ДатаОперации,"<"&DATE($B$4,13,1)) -> 19746.74 | AL8: =Расходы[[#This Row],[Декабрь План]]-Расходы[[#This Row],[Декабрь Факт]] -> -17246.74 | AM8: 30000 | AN8: 174230.52 | AO8: -144230.52
B9: Телефонная связь | C9: 380 | D9: =-SUMIFS(СуммаОпераций,КатегорияОпераций,Расходы!$B9,ДатаОперации,">="&C$5,ДатаОперации,"<"&F$5) -> 420 | E9: =Расходы[[#This Row],[Январь План]]-Расходы[[#This Row],[Январь Факт]] -> -40 | F9: 380 | G9: =-SUMIFS(СуммаОпераций,КатегорияОпераций,Расходы!$B9,ДатаОперации,">="&F$5,ДатаОперации,"<"&I$5) -> 1227 | H9: =Расходы[[#This Row],[Февраль План]]-Расходы[[#This Row],[Февраль Факт]] -> -847 | I9: 380 | J9: =-SUMIFS(СуммаОпераций,КатегорияОпераций,Расходы!$B9,ДатаОперации,">="&I$5,ДатаОперации,"<"&L$5) -> 470 | K9: =Расходы[[#This Row],[Март План]]-Расходы[[#This Row],[Март Факт]] -> -90 | L9: 380 | M9: =-SUMIFS(СуммаОпераций,КатегорияОпераций,Расходы!$B9,ДатаОперации,">="&L$5,ДатаОперации,"<"&O$5) -> 420 | N9: =Расходы[[#This Row],[Апрель План]]-Расходы[[#This Row],[Апрель Факт]] -> -40 | O9: 380 | P9: =-SUMIFS(СуммаОпераций,КатегорияОпераций,Расходы!$B9,ДатаОперации,">="&O$5,ДатаОперации,"<"&R$5) -> 1227 | Q9: =Расходы[[#This Row],[Май План]]-Расходы[[#This Row],[Май Факт]] -> -847 | R9: 380 | S9: =-SUMIFS(СуммаОпераций,КатегорияОпераций,Расходы!$B9,ДатаОперации,">="&R$5,ДатаОперации,"<"&U$5) -> 470 | T9: =Расходы[[#This Row],[Июнь План]]-Расходы[[#This Row],[Июнь Факт]] -> -90 | U9: 380 | V9: =-SUMIFS(СуммаОпераций,КатегорияОпераций,Расходы!$B9,ДатаОперации,">="&U$5,ДатаОперации,"<"&X$5) -> 420 | W9: =Расходы[[#This Row],[Июль План]]-Расходы[[#This Row],[Июль Факт]] -> -40 | X9: 380 | Y9: =-SUMIFS(СуммаОпераций,КатегорияОпераций,Расходы!$B9,ДатаОперации,">="&X$5,ДатаОперации,"<"&AA$5) -> 1227 | Z9: =Расходы[[#This Row],[Август План]]-Расходы[[#This Row],[Август Факт]] -> -847 | AA9: 380 | AB9: =-SUMIFS(СуммаОпераций,КатегорияОпераций,Расходы!$B9,ДатаОперации,">="&AA$5,ДатаОперации,"<"&AD$5) -> 470 | AC9: =Расходы[[#This Row],[Сентябрь План]]-Расходы[[#This Row],[Сентябрь Факт]] -> -90 | AD9: 380 | AE9: =-SUMIFS(СуммаОпераций,КатегорияОпераций,Расходы!$B9,ДатаОперации,">="&AD$5,ДатаОперации,"<"&AG$5) -> 420 | AF9: =Расходы[[#This Row],[Октябрь План]]-Расходы[[#This Row],[Октябрь Факт]] -> -40 | AG9: 380 | AH9: =-SUMIFS(СуммаОпераций,КатегорияОпераций,Расходы!$B9,ДатаОперации,">="&AG$5,ДатаОперации,"<"&AJ$5) -> 1227 | AI9: =Расходы[[#This Row],[Ноябрь План]]-Расходы[[#This Row],[Ноябрь Факт]] -> -847 | AJ9: 380 | AK9: =-SUMIFS(СуммаОпераций,КатегорияОпераций,Расходы!$B9,ДатаОперации,">="&AJ$5,ДатаОперации,"<"&DATE($B$4,13,1)) -> 470 | AL9: =Расходы[[#This Row],[Декабрь План]]-Расходы[[#This Row],[Декабрь Факт]] -> -90 | AM9: 4560 | AN9: 8468 | AO9: -3908
B10: Коммунальные услуги | C10: 650 | D10: =-SUMIFS(СуммаОпераций,КатегорияОпераций,Расходы!$B10,ДатаОперации,">="&C$5,ДатаОперации,"<"&F$5) -> 520.86 | E10: =Расходы[[#This Row],[Январь План]]-Расходы[[#This Row],[Январь Факт]] -> 129.14 | F10: 650 | G10: =-SUMIFS(СуммаОпераций,КатегорияОпераций,Расходы!$B10,ДатаОперации,">="&F$5,ДатаОперации,"<"&I$5) -> 715.51 | H10: =Расходы[[#This Row],[Февраль План]]-Расходы[[#This Row],[Февраль Факт]] -> -65.51 | I10: 650 | J10: =-SUMIFS(СуммаОпераций,КатегорияОпераций,Расходы!$B10,ДатаОперации,">="&I$5,ДатаОперации,"<"&L$5) -> 758.34 | K10: =Расходы[[#This Row],[Март План]]-Расходы[[#This Row],[Март Факт]] -> -108.34 | L10: 650 | M10: =-SUMIFS(СуммаОпераций,КатегорияОпераций,Расходы!$B10,ДатаОперации,">="&L$5,ДатаОперации,"<"&O$5) -> 520.86 | N10: =Расходы[[#This Row],[Апрель План]]-Расходы[[#This Row],[Апрель Факт]] -> 129.14 | O10: 650 | P10: =-SUMIFS(СуммаОпераций,КатегорияОпераций,Расходы!$B10,ДатаОперации,">="&O$5,ДатаОперации,"<"&R$5) -> 715.51 | Q10: =Расходы[[#This Row],[Май План]]-Расходы[[#This Row],[Май Факт]] -> -65.51 | R10: 650 | S10: =-SUMIFS(СуммаОпераций,КатегорияОпераций,Расходы!$B10,ДатаОперации,">="&R$5,ДатаОперации,"<"&U$5) -> 758.34 | T10: =Расходы[[#This Row],[Июнь План]]-Расходы[[#This Row],[Июнь Факт]] -> -108.34 | U10: 650 | V10: =-SUMIFS(СуммаОпераций,КатегорияОпераций,Расходы!$B10,ДатаОперации,">="&U$5,ДатаОперации,"<"&X$5) -> 520.86 | W10: =Расходы[[#This Row],[Июль План]]-Расходы[[#This Row],[Июль Факт]] -> 129.14 | X10: 650 | Y10: =-SUMIFS(СуммаОпераций,КатегорияОпераций,Расходы!$B10,ДатаОперации,">="&X$5,ДатаОперации,"<"&AA$5) -> 715.51 | Z10: =Расходы[[#This Row],[Август План]]-Расходы[[#This Row],[Август Факт]] -> -65.51 | AA10: 650 | AB10: =-SUMIFS(СуммаОпераций,КатегорияОпераций,Расходы!$B10,ДатаОперации,">="&AA$5,ДатаОперации,"<"&AD$5) -> 758.34 | AC10: =Расходы[[#This Row],[Сентябрь План]]-Расходы[[#This Row],[Сентябрь Факт]] -> -108.34 | AD10: 650 | AE10: =-SUMIFS(СуммаОпераций,КатегорияОпераций,Расходы!$B10,ДатаОперации,">="&AD$5,ДатаОперации,"<"&AG$5) -> 520.86 | AF10: =Расходы[[#This Row],[Октябрь План]]-Расходы[[#This Row],[Октябрь Факт]] -> 129.14 | AG10: 650 | AH10: =-SUMIFS(СуммаОпераций,КатегорияОпераций,Расходы!$B10,ДатаОперации,">="&AG$5,ДатаОперации,"<"&AJ$5) -> 715.51 | AI10: =Расходы[[#This Row],[Ноябрь План]]-Расходы[[#This Row],[Ноябрь Факт]] -> -65.51 | AJ10: 650 | AK10: =-SUMIFS(СуммаОпераций,КатегорияОпераций,Расходы!$B10,ДатаОперации,">="&AJ$5,ДатаОперации,"<"&DATE($B$4,13,1)) -> 758.34 | AL10: =Расходы[[#This Row],[Декабрь План]]-Расходы[[#This Row],[Декабрь Факт]] -> -108.34 | AM10: 7800 | AN10: 7978.84 | AO10: -178.84
B11: Телевидение | C11: 750 | D11: =-SUMIFS(СуммаОпераций,КатегорияОпераций,Расходы!$B11,ДатаОперации,">="&C$5,ДатаОперации,"<"&F$5) -> 0 | E11: =Расходы[[#This Row],[Январь План]]-Расходы[[#This Row],[Январь Факт]] -> 750 | F11: 750 | G11: =-SUMIFS(СуммаОпераций,КатегорияОпераций,Расходы!$B11,ДатаОперации,">="&F$5,ДатаОперации,"<"&I$5) -> 0 | H11: =Расходы[[#This Row],[Февраль План]]-Расходы[[#This Row],[Февраль Факт]] -> 750 | I11: 750 | J11: =-SUMIFS(СуммаОпераций,КатегорияОпераций,Расходы!$B11,ДатаОперации,">="&I$5,ДатаОперации,"<"&L$5) -> 0 | K11: =Расходы[[#This Row],[Март План]]-Расходы[[#This Row],[Март Факт]] -> 750 | L11: 750 | M11: =-SUMIFS(СуммаОпераций,КатегорияОпераций,Расходы!$B11,ДатаОперации,">="&L$5,ДатаОперации,"<"&O$5) -> 0 | N11: =Расходы[[#This Row],[Апрель План]]-Расходы[[#This Row],[Апрель Факт]] -> 750 | O11: 750 | P11: =-SUMIFS(СуммаОпераций,КатегорияОпераций,Расходы!$B11,ДатаОперации,">="&O$5,ДатаОперации,"<"&R$5) -> 0 | Q11: =Расходы[[#This Row],[Май План]]-Расходы[[#This Row],[Май Факт]] -> 750 | R11: 750 | S11: =-SUMIFS(СуммаОпераций,КатегорияОпераций,Расходы!$B11,ДатаОперации,">="&R$5,ДатаОперации,"<"&U$5) -> 0 | T11: =Расходы[[#This Row],[Июнь План]]-Расходы[[#This Row],[Июнь Факт]] -> 750 | U11: 750 | V11: =-SUMIFS(СуммаОпераций,КатегорияОпераций,Расходы!$B11,ДатаОперации,">="&U$5,ДатаОперации,"<"&X$5) -> 0 | W11: =Расходы[[#This Row],[Июль План]]-Расходы[[#This Row],[Июль Факт]] -> 750 | X11: 750 | Y11: =-SUMIFS(СуммаОпераций,КатегорияОпераций,Расходы!$B11,ДатаОперации,">="&X$5,ДатаОперации,"<"&AA$5) -> 0 | Z11: =Расходы[[#This Row],[Август План]]-Расходы[[#This Row],[Август Факт]] -> 750 | AA11: 750 | AB11: =-SUMIFS(СуммаОпераций,КатегорияОпераций,Расходы!$B11,ДатаОперации,">="&AA$5,ДатаОперации,"<"&AD$5) -> 0 | AC11: =Расходы[[#This Row],[Сентябрь План]]-Расходы[[#This Row],[Сентябрь Факт]] -> 750 | AD11: 750 | AE11: =-SUMIFS(СуммаОпераций,КатегорияОпераций,Расходы!$B11,ДатаОперации,">="&AD$5,ДатаОперации,"<"&AG$5) -> 0 | AF11: =Расходы[[#This Row],[Октябрь План]]-Расходы[[#This Row],[Октябрь Факт]] -> 750 | AG11: 750 | AH11: =-SUMIFS(СуммаОпераций,КатегорияОпераций,Расходы!$B11,ДатаОперации,">="&AG$5,ДатаОперации,"<"&AJ$5) -> 0 | AI11: =Расходы[[#This Row],[Ноябрь План]]-Расходы[[#This Row],[Ноябрь Факт]] -> 750 | AJ11: 750 | AK11: =-SUMIFS(СуммаОпераций,КатегорияОпераций,Расходы!$B11,ДатаОперации,">="&AJ$5,ДатаОперации,"<"&DATE($B$4,13,1)) -> 0 | AL11: =Расходы[[#This Row],[Декабрь План]]-Расходы[[#This Row],[Декабрь Факт]] -> 750 | AM11: 9000 | AN11: 0 | AO11: 9000
B12: Интернет | C12: 600 | D12: =-SUMIFS(СуммаОпераций,КатегорияОпераций,Расходы!$B12,ДатаОперации,">="&C$5,ДатаОперации,"<"&F$5) -> 0 | E12: =Расходы[[#This Row],[Январь План]]-Расходы[[#This Row],[Январь Факт]] -> 600 | F12: 600 | G12: =-SUMIFS(СуммаОпераций,КатегорияОпераций,Расходы!$B12,ДатаОперации,">="&F$5,ДатаОперации,"<"&I$5) -> 0 | H12: =Расходы[[#This Row],[Февраль План]]-Расходы[[#This Row],[Февраль Факт]] -> 600 | I12: 600 | J12: =-SUMIFS(СуммаОпераций,КатегорияОпераций,Расходы!$B12,ДатаОперации,">="&I$5,ДатаОперации,"<"&L$5) -> 0 | K12: =Расходы[[#This Row],[Март План]]-Расходы[[#This Row],[Март Факт]] -> 600 | L12: 600 | M12: =-SUMIFS(СуммаОпераций,КатегорияОпераций,Расходы!$B12,ДатаОперации,">="&L$5,ДатаОперации,"<"&O$5) -> 0 | N12: =Расходы[[#This Row],[Апрель План]]-Расходы[[#This Row],[Апрель Факт]] -> 600 | O12: 600 | P12: =-SUMIFS(СуммаОпераций,КатегорияОпераций,Расходы!$B12,ДатаОперации,">="&O$5,ДатаОперации,"<"&R$5) -> 0 | Q12: =Расходы[[#This Row],[Май План]]-Расходы[[#This Row],[Май Факт]] -> 600 | R12: 600 | S12: =-SUMIFS(СуммаОпераций,КатегорияОпераций,Расходы!$B12,ДатаОперации,">="&R$5,ДатаОперации,"<"&U$5) -> 0 | T12: =Расходы[[#This Row],[Июнь План]]-Расходы[[#This Row],[Июнь Факт]] -> 600 | U12: 600 | V12: =-SUMIFS(СуммаОпераций,КатегорияОпераций,Расходы!$B12,ДатаОперации,">="&U$5,ДатаОперации,"<"&X$5) -> 0 | W12: =Расходы[[#This Row],[Июль План]]-Расходы[[#This Row],[Июль Факт]] -> 600 | X12: 600 | Y12: =-SUMIFS(СуммаОпераций,КатегорияОпераций,Расходы!$B12,ДатаОперации,">="&X$5,ДатаОперации,"<"&AA$5) -> 0 | Z12: =Расходы[[#This Row],[Август План]]-Расходы[[#This Row],[Август Факт]] -> 600 | AA12: 600 | AB12: =-SUMIFS(СуммаОпераций,КатегорияОпераций,Расходы!$B12,ДатаОперации,">="&AA$5,ДатаОперации,"<"&AD$5) -> 0 | AC12: =Расходы[[#This Row],[Сентябрь План]]-Расходы[[#This Row],[Сентябрь Факт]] -> 600 | AD12: 600 | AE12: =-SUMIFS(СуммаОпераций,КатегорияОпераций,Расходы!$B12,ДатаОперации,">="&AD$5,ДатаОперации,"<"&AG$5) -> 0 | AF12: =Расходы[[#This Row],[Октябрь План]]-Расходы[[#This Row],[Октябрь Факт]] -> 600 | AG12: 600 | AH12: =-SUMIFS(СуммаОпераций,КатегорияОпераций,Расходы!$B12,ДатаОперации,">="&AG$5,ДатаОперации,"<"&AJ$5) -> 0 | AI12: =Расходы[[#This Row],[Ноябрь План]]-Расходы[[#This Row],[Ноябрь Факт]] -> 600 | AJ12: 600 | AK12: =-SUMIFS(СуммаОпераций,КатегорияОпераций,Расходы!$B12,ДатаОперации,">="&AJ$5,ДатаОперации,"<"&DATE($B$4,13,1)) -> 0 | AL12: =Расходы[[#This Row],[Декабрь План]]-Расходы[[#This Row],[Декабрь Факт]] -> 600 | AM12: 7200 | AN12: 0 | AO12: 7200
B13: Ремонт, техническое обслуживание | C13: 0 | D13: =-SUMIFS(СуммаОпераций,КатегорияОпераций,Расходы!$B13,ДатаОперации,">="&C$5,ДатаОперации,"<"&F$5) -> 0 | E13: =Расходы[[#This Row],[Январь План]]-Расходы[[#This Row],[Январь Факт]] -> 0 | F13: 0 | G13: =-SUMIFS(СуммаОпераций,КатегорияОпераций,Расходы!$B13,ДатаОперации,">="&F$5,ДатаОперации,"<"&I$5) -> 0 | H13: =Расходы[[#This Row],[Февраль План]]-Расходы[[#This Row],[Февраль Факт]] -> 0 | I13: 0 | J13: =-SUMIFS(СуммаОпераций,КатегорияОпераций,Расходы!$B13,ДатаОперации,">="&I$5,ДатаОперации,"<"&L$5) -> 0 | K13: =Расходы[[#This Row],[Март План]]-Расходы[[#This Row],[Март Факт]] -> 0 | L13: 0 | M13: =-SUMIFS(СуммаОпераций,КатегорияОпераций,Расходы!$B13,ДатаОперации,">="&L$5,ДатаОперации,"<"&O$5) -> 0 | N13: =Расходы[[#This Row],[Апрель План]]-Расходы[[#This Row],[Апрель Факт]] -> 0 | O13: 0 | P13: =-SUMIFS(СуммаОпераций,КатегорияОпераций,Расходы!$B13,ДатаОперации,">="&O$5,ДатаОперации,"<"&R$5) -> 0 | Q13: =Расходы[[#This Row],[Май План]]-Расходы[[#This Row],[Май Факт]] -> 0 | R13: 0 | S13: =-SUMIFS(СуммаОпераций,КатегорияОпераций,Расходы!$B13,ДатаОперации,">="&R$5,ДатаОперации,"<"&U$5) -> 0 | T13: =Расходы[[#This Row],[Июнь План]]-Расходы[[#This Row],[Июнь Факт]] -> 0 | U13: 0 | V13: =-SUMIFS(СуммаОпераций,КатегорияОпераций,Расходы!$B13,ДатаОперации,">="&U$5,ДатаОперации,"<"&X$5) -> 0 | W13: =Расходы[[#This Row],[Июль План]]-Расходы[[#This Row],[Июль Факт]] -> 0 | X13: 0 | Y13: =-SUMIFS(СуммаОпераций,КатегорияОпераций,Расходы!$B13,ДатаОперации,">="&X$5,ДатаОперации,"<"&AA$5) -> 0 | Z13: =Расходы[[#This Row],[Август План]]-Расходы[[#This Row],[Август Факт]] -> 0 | AA13: 0 | AB13: =-SUMIFS(СуммаОпераций,КатегорияОпераций,Расходы!$B13,ДатаОперации,">="&AA$5,ДатаОперации,"<"&AD$5) -> 0 | AC13: =Расходы[[#This Row],[Сентябрь План]]-Расходы[[#This Row],[Сентябрь Факт]] -> 0 | AD13: 0 | AE13: =-SUMIFS(СуммаОпераций,КатегорияОпераций,Расходы!$B13,ДатаОперации,">="&AD$5,ДатаОперации,"<"&AG$5) -> 0 | AF13: =Расходы[[#This Row],[Октябрь План]]-Расходы[[#This Row],[Октябрь Факт]] -> 0 | AG13: 0 | AH13: =-SUMIFS(СуммаОпераций,КатегорияОпераций,Расходы!$B13,ДатаОперации,">="&AG$5,ДатаОперации,"<"&AJ$5) -> 0 | AI13: =Расходы[[#This Row],[Ноябрь План]]-Расходы[[#This Row],[Ноябрь Факт]] -> 0 | AJ13: 0 | AK13: =-SUMIFS(СуммаОпераций,КатегорияОпераций,Расходы!$B13,ДатаОперации,">="&AJ$5,ДатаОперации,"<"&DATE($B$4,13,1)) -> 0 | AL13: =Расходы[[#This Row],[Декабрь План]]-Расходы[[#This Row],[Декабрь Факт]] -> 0 | AM13: 0 | AN13: 0 | AO13: 0
B14: Уход за ребенком | C14: 1800 | D14: =-SUMIFS(СуммаОпераций,КатегорияОпераций,Расходы!$B14,ДатаОперации,">="&C$5,ДатаОперации,"<"&F$5) -> 0 | E14: =Расходы[[#This Row],[Январь План]]-Расходы[[#This Row],[Январь Факт]] -> 1800 | F14: 1800 | G14: =-SUMIFS(СуммаОпераций,КатегорияОпераций,Расходы!$B14,ДатаОперации,">="&F$5,ДатаОперации,"<"&I$5) -> 0 | H14: =Расходы[[#This Row],[Февраль План]]-Расходы[[#This Row],[Февраль Факт]] -> 1800 | I14: 1800 | J14: =-SUMIFS(СуммаОпераций,КатегорияОпераций,Расходы!$B14,ДатаОперации,">="&I$5,ДатаОперации,"<"&L$5) -> 0 | K14: =Расходы[[#This Row],[Март План]]-Расходы[[#This Row],[Март Факт]] -> 1800 | L14: 1800 | M14: =-SUMIFS(СуммаОпераций,КатегорияОпераций,Расходы!$B14,ДатаОперации,">="&L$5,ДатаОперации,"<"&O$5) -> 0 | N14: =Расходы[[#This Row],[Апрель План]]-Расходы[[#This Row],[Апрель Факт]] -> 1800 | O14: 1800 | P14: =-SUMIFS(СуммаОпераций,КатегорияОпераций,Расходы!$B14,ДатаОперации,">="&O$5,ДатаОперации,"<"&R$5) -> 0 | Q14: =Расходы[[#This Row],[Май План]]-Расходы[[#This Row],[Май Факт]] -> 1800 | R14: 1800 | S14: =-SUMIFS(СуммаОпераций,КатегорияОпераций,Расходы!$B14,ДатаОперации,">="&R$5,ДатаОперации,"<"&U$5) -> 0 | T14: =Расходы[[#This Row],[Июнь План]]-Расходы[[#This Row],[Июнь Факт]] -> 1800 | U14: 1800 | V14: =-SUMIFS(СуммаОпераций,КатегорияОпераций,Расходы!$B14,ДатаОперации,">="&U$5,ДатаОперации,"<"&X$5) -> 0 | W14: =Расходы[[#This Row],[Июль План]]-Расходы[[#This Row],[Июль Факт]] -> 1800 | X14: 1800 | Y14: =-SUMIFS(СуммаОпераций,КатегорияОпераций,Расходы!$B14,ДатаОперации,">="&X$5,ДатаОперации,"<"&AA$5) -> 0 | Z14: =Расходы[[#This Row],[Август План]]-Расходы[[#This Row],[Август Факт]] -> 1800 | AA14: 1800 | AB14: =-SUMIFS(СуммаОпераций,КатегорияОпераций,Расходы!$B14,ДатаОперации,">="&AA$5,ДатаОперации,"<"&AD$5) -> 0 | AC14: =Расходы[[#This Row],[Сентябрь План]]-Расходы[[#This Row],[Сентябрь Факт]] -> 1800 | AD14: 1800 | AE14: =-SUMIFS(СуммаОпераций,КатегорияОпераций,Расходы!$B14,ДатаОперации,">="&AD$5,ДатаОперации,"<"&AG$5) -> 0 | AF14: =Расходы[[#This Row],[Октябрь План]]-Расходы[[#This Row],[Октябрь Факт]] -> 1800 | AG14: 1800 | AH14: =-SUMIFS(СуммаОпераций,КатегорияОпераций,Расходы!$B14,ДатаОперации,">="&AG$5,ДатаОперации,"<"&AJ$5) -> 0 | AI14: =Расходы[[#This Row],[Ноябрь План]]-Расходы[[#This Row],[Ноябрь Факт]] -> 1800 | AJ14: 1800 | AK14: =-SUMIFS(СуммаОпераций,КатегорияОпераций,Расходы!$B14,ДатаОперации,">="&AJ$5,ДатаОперации,"<"&DATE($B$4,13,1)) -> 0 | AL14: =Расходы[[#This Row],[Декабрь План]]-Расходы[[#This Row],[Декабрь Факт]] -> 1800 | AM14: 21600 | AN14: 0 | AO14: 21600
B15: Обучение | C15: 2500 | D15: =-SUMIFS(СуммаОпераций,КатегорияОпераций,Расходы!$B15,ДатаОперации,">="&C$5,ДатаОперации,"<"&F$5) -> 0 | E15: =Расходы[[#This Row],[Январь План]]-Расходы[[#This Row],[Январь Факт]] -> 2500 | F15: 2500 | G15: =-SUMIFS(СуммаОпераций,КатегорияОпераций,Расходы!$B15,ДатаОперации,">="&F$5,ДатаОперации,"<"&I$5) -> 471 | H15: =Расходы[[#This Row],[Февраль План]]-Расходы[[#This Row],[Февраль Факт]] -> 2029 | I15: 2500 | J15: =-SUMIFS(СуммаОпераций,КатегорияОпераций,Расходы!$B15,ДатаОперации,">="&I$5,ДатаОперации,"<"&L$5) -> 290 | K15: =Расходы[[#This Row],[Март План]]-Расходы[[#This Row],[Март Факт]] -> 2210 | L15: 2500 | M15: =-SUMIFS(СуммаОпераций,КатегорияОпераций,Расходы!$B15,ДатаОперации,">="&L$5,ДатаОперации,"<"&O$5) -> 0 | N15: =Расходы[[#This Row],[Апрель План]]-Расходы[[#This Row],[Апрель Факт]] -> 2500 | O15: 2500 | P15: =-SUMIFS(СуммаОпераций,КатегорияОпераций,Расходы!$B15,ДатаОперации,">="&O$5,ДатаОперации,"<"&R$5) -> 471 | Q15: =Расходы[[#This Row],[Май План]]-Расходы[[#This Row],[Май Факт]] -> 2029 | R15: 2500 | S15: =-SUMIFS(СуммаОпераций,КатегорияОпераций,Расходы!$B15,ДатаОперации,">="&R$5,ДатаОперации,"<"&U$5) -> 290 | T15: =Расходы[[#This Row],[Июнь План]]-Расходы[[#This Row],[Июнь Факт]] -> 2210 | U15: 2500 | V15: =-SUMIFS(СуммаОпераций,КатегорияОпераций,Расходы!$B15,ДатаОперации,">="&U$5,ДатаОперации,"<"&X$5) -> 0 | W15: =Расходы[[#This Row],[Июль План]]-Расходы[[#This Row],[Июль Факт]] -> 2500 | X15: 2500 | Y15: =-SUMIFS(СуммаОпераций,КатегорияОпераций,Расходы!$B15,ДатаОперации,">="&X$5,ДатаОперации,"<"&AA$5) -> 471 | Z15: =Расходы[[#This Row],[Август План]]-Расходы[[#This Row],[Август Факт]] -> 2029 | AA15: 2500 | AB15: =-SUMIFS(СуммаОпераций,КатегорияОпераций,Расходы!$B15,ДатаОперации,">="&AA$5,ДатаОперации,"<"&AD$5) -> 290 | AC15: =Расходы[[#This Row],[Сентябрь План]]-Расходы[[#This Row],[Сентябрь Факт]] -> 2210 | AD15: 2500 | AE15: =-SUMIFS(СуммаОпераций,КатегорияОпераций,Расходы!$B15,ДатаОперации,">="&AD$5,ДатаОперации,"<"&AG$5) -> 0 | AF15: =Расходы[[#This Row],[Октябрь План]]-Расходы[[#This Row],[Октябрь Факт]] -> 2500 | AG15: 2500 | AH15: =-SUMIFS(СуммаОпераций,КатегорияОпераций,Расходы!$B15,ДатаОперации,">="&AG$5,ДатаОперации,"<"&AJ$5) -> 471 | AI15: =Расходы[[#This Row],[Ноябрь План]]-Расходы[[#This Row],[Ноябрь Факт]] -> 2029 | AJ15: 2500 | AK15: =-SUMIFS(СуммаОпераций,КатегорияОпераций,Расходы!$B15,ДатаОперации,">="&AJ$5,ДатаОперации,"<"&DATE($B$4,13,1)) -> 290 | AL15: =Расходы[[#This Row],[Декабрь План]]-Расходы[[#This Row],[Декабрь Факт]] -> 2210 | AM15: 30000 | AN15: 3044 | AO15: 26956
B16: Домашние животные | C16: 750 | D16: =-SUMIFS(СуммаОпераций,КатегорияОпераций,Расходы!$B16,ДатаОперации,">="&C$5,ДатаОперации,"<"&F$5) -> 0 | E16: =Расходы[[#This Row],[Январь План]]-Расходы[[#This Row],[Январь Факт]] -> 750 | F16: 750 | G16: =-SUMIFS(СуммаОпераций,КатегорияОпераций,Расходы!$B16,ДатаОперации,">="&F$5,ДатаОперации,"<"&I$5) -> 0 | H16: =Расходы[[#This Row],[Февраль План]]-Расходы[[#This Row],[Февраль Факт]] -> 750 | I16: 750 | J16: =-SUMIFS(СуммаОпераций,КатегорияОпераций,Расходы!$B16,ДатаОперации,">="&I$5,ДатаОперации,"<"&L$5) -> 0 | K16: =Расходы[[#This Row],[Март План]]-Расходы[[#This Row],[Март Факт]] -> 750 | L16: 750 | M16: =-SUMIFS(СуммаОпераций,КатегорияОпераций,Расходы!$B16,ДатаОперации,">="&L$5,ДатаОперации,"<"&O$5) -> 0 | N16: =Расходы[[#This Row],[Апрель План]]-Расходы[[#This Row],[Апрель Факт]] -> 750 | O16: 750 | P16: =-SUMIFS(СуммаОпераций,КатегорияОпераций,Расходы!$B16,ДатаОперации,">="&O$5,ДатаОперации,"<"&R$5) -> 0 | Q16: =Расходы[[#This Row],[Май План]]-Расходы[[#This Row],[Май Факт]] -> 750 | R16: 750 | S16: =-SUMIFS(СуммаОпераций,КатегорияОпераций,Расходы!$B16,ДатаОперации,">="&R$5,ДатаОперации,"<"&U$5) -> 0 | T16: =Расходы[[#This Row],[Июнь План]]-Расходы[[#This Row],[Июнь Факт]] -> 750 | U16: 750 | V16: =-SUMIFS(СуммаОпераций,КатегорияОпераций,Расходы!$B16,ДатаОперации,">="&U$5,ДатаОперации,"<"&X$5) -> 0 | W16: =Расходы[[#This Row],[Июль План]]-Расходы[[#This Row],[Июль Факт]] -> 750 | X16: 750 | Y16: =-SUMIFS(СуммаОпераций,КатегорияОпераций,Расходы!$B16,ДатаОперации,">="&X$5,ДатаОперации,"<"&AA$5) -> 0 | Z16: =Расходы[[#This Row],[Август План]]-Расходы[[#This Row],[Август Факт]] -> 750 | AA16: 750 | AB16: =-SUMIFS(СуммаОпераций,КатегорияОпераций,Расходы!$B16,ДатаОперации,">="&AA$5,ДатаОперации,"<"&AD$5) -> 0 | AC16: =Расходы[[#This Row],[Сентябрь План]]-Расходы[[#This Row],[Сентябрь Факт]] -> 750 | AD16: 750 | AE16: =-SUMIFS(СуммаОпераций,КатегорияОпераций,Расходы!$B16,ДатаОперации,">="&AD$5,ДатаОперации,"<"&AG$5) -> 0 | AF16: =Расходы[[#This Row],[Октябрь План]]-Расходы[[#This Row],[Октябрь Факт]] -> 750 | AG16: 750 | AH16: =-SUMIFS(СуммаОпераций,КатегорияОпераций,Расходы!$B16,ДатаОперации,">="&AG$5,ДатаОперации,"<"&AJ$5) -> 0 | AI16: =Расходы[[#This Row],[Ноябрь План]]-Расходы[[#This Row],[Ноябрь Факт]] -> 750 | AJ16: 750 | AK16: =-SUMIFS(СуммаОпераций,КатегорияОпераций,Расходы!$B16,ДатаОперации,">="&AJ$5,ДатаОперации,"<"&DATE($B$4,13,1)) -> 0 | AL16: =Расходы[[#This Row],[Декабрь План]]-Расходы[[#This Row],[Декабрь Факт]] -> 750 | AM16: 9000 | AN16: 0 | AO16: 9000
B17: Транспорт | C17: 2500 | D17: =-SUMIFS(СуммаОпераций,КатегорияОпераций,Расходы!$B17,ДатаОперации,">="&C$5,ДатаОперации,"<"&F$5) -> 2367 | E17: =Расходы[[#This Row],[Январь План]]-Расходы[[#This Row],[Январь Факт]] -> 133 | F17: 2500 | G17: =-SUMIFS(СуммаОпераций,КатегорияОпераций,Расходы!$B17,ДатаОперации,">="&F$5,ДатаОперации,"<"&I$5) -> 1207 | H17: =Расходы[[#This Row],[Февраль План]]-Расходы[[#This Row],[Февраль Факт]] -> 1293 | I17: 2500 | J17: =-SUMIFS(СуммаОпераций,КатегорияОпераций,Расходы!$B17,ДатаОперации,">="&I$5,ДатаОперации,"<"&L$5) -> 2053 | K17: =Расходы[[#This Row],[Март План]]-Расходы[[#This Row],[Март Факт]] -> 447 | L17: 2500 | M17: =-SUMIFS(СуммаОпераций,КатегорияОпераций,Расходы!$B17,ДатаОперации,">="&L$5,ДатаОперации,"<"&O$5) -> 2367 | N17: =Расходы[[#This Row],[Апрель План]]-Расходы[[#This Row],[Апрель Факт]] -> 133 | O17: 2500 | P17: =-SUMIFS(СуммаОпераций,КатегорияОпераций,Расходы!$B17,ДатаОперации,">="&O$5,ДатаОперации,"<"&R$5) -> 1207 | Q17: =Расходы[[#This Row],[Май План]]-Расходы[[#This Row],[Май Факт]] -> 1293 | R17: 2500 | S17: =-SUMIFS(СуммаОпераций,КатегорияОпераций,Расходы!$B17,ДатаОперации,">="&R$5,ДатаОперации,"<"&U$5) -> 2053 | T17: =Расходы[[#This Row],[Июнь План]]-Расходы[[#This Row],[Июнь Факт]] -> 447 | U17: 2500 | V17: =-SUMIFS(СуммаОпераций,КатегорияОпераций,Расходы!$B17,ДатаОперации,">="&U$5,ДатаОперации,"<"&X$5) -> 2367 | W17: =Расходы[[#This Row],[Июль План]]-Расходы[[#This Row],[Июль Факт]] -> 133 | X17: 2500 | Y17: =-SUMIFS(СуммаОпераций,КатегорияОпераций,Расходы!$B17,ДатаОперации,">="&X$5,ДатаОперации,"<"&AA$5) -> 1207 | Z17: =Расходы[[#This Row],[Август План]]-Расходы[[#This Row],[Август Факт]] -> 1293 | AA17: 2500 | AB17: =-SUMIFS(СуммаОпераций,КатегорияОпераций,Расходы!$B17,ДатаОперации,">="&AA$5,ДатаОперации,"<"&AD$5) -> 2053 | AC17: =Расходы[[#This Row],[Сентябрь План]]-Расходы[[#This Row],[Сентябрь Факт]] -> 447 | AD17: 2500 | AE17: =-SUMIFS(СуммаОпераций,КатегорияОпераций,Расходы!$B17,ДатаОперации,">="&AD$5,ДатаОперации,"<"&AG$5) -> 2367 | AF17: =Расходы[[#This Row],[Октябрь План]]-Расходы[[#This Row],[Октябрь Факт]] -> 133 | AG17: 2500 | AH17: =-SUMIFS(СуммаОпераций,КатегорияОпераций,Расходы!$B17,ДатаОперации,">="&AG$5,ДатаОперации,"<"&AJ$5) -> 1207 | AI17: =Расходы[[#This Row],[Ноябрь План]]-Расходы[[#This Row],[Ноябрь Факт]] -> 1293 | AJ17: 2500 | AK17: =-SUMIFS(СуммаОпераций,КатегорияОпераций,Расходы!$B17,ДатаОперации,">="&AJ$5,ДатаОперации,"<"&DATE($B$4,13,1)) -> 2053 | AL17: =Расходы[[#This Row],[Декабрь План]]-Расходы[[#This Row],[Декабрь Факт]] -> 447 | AM17: 30000 | AN17: 22508 | AO17: 7492
B18: Переводы | D18: =-SUMIFS(СуммаОпераций,КатегорияОпераций,Расходы!$B18,ДатаОперации,">="&C$5,ДатаОперации,"<"&F$5) -> 26050 | E18: =Расходы[[#This Row],[Январь План]]-Расходы[[#This Row],[Январь Факт]] -> -26050 | G18: =-SUMIFS(СуммаОпераций,КатегорияОпераций,Расходы!$B18,ДатаОперации,">="&F$5,ДатаОперации,"<"&I$5) -> 4799 | H18: =Расходы[[#This Row],[Январь План]]-Расходы[[#This Row],[Январь Факт]] -> -26050 | J18: =-SUMIFS(СуммаОпераций,КатегорияОпераций,Расходы!$B18,ДатаОперации,">="&I$5,ДатаОперации,"<"&L$5) -> -800 | K18: =Расходы[[#This Row],[Январь План]]-Расходы[[#This Row],[Январь Факт]] -> -26050 | M18: =-SUMIFS(СуммаОпераций,КатегорияОпераций,Расходы!$B18,ДатаОперации,">="&L$5,ДатаОперации,"<"&O$5) -> 26050 | N18: =Расходы[[#This Row],[Январь План]]-Расходы[[#This Row],[Январь Факт]] -> -26050 | P18: =-SUMIFS(СуммаОпераций,КатегорияОпераций,Расходы!$B18,ДатаОперации,">="&O$5,ДатаОперации,"<"&R$5) -> 4799 | Q18: =Расходы[[#This Row],[Январь План]]-Расходы[[#This Row],[Январь Факт]] -> -26050 | S18: =-SUMIFS(СуммаОпераций,КатегорияОпераций,Расходы!$B18,ДатаОперации,">="&R$5,ДатаОперации,"<"&U$5) -> -800 | T18: =Расходы[[#This Row],[Январь План]]-Расходы[[#This Row],[Январь Факт]] -> -26050 | V18: =-SUMIFS(СуммаОпераций,КатегорияОпераций,Расходы!$B18,ДатаОперации,">="&U$5,ДатаОперации,"<"&X$5) -> 26050 | W18: =Расходы[[#This Row],[Январь План]]-Расходы[[#This Row],[Январь Факт]] -> -26050 | Y18: =-SUMIFS(СуммаОпераций,КатегорияОпераций,Расходы!$B18,ДатаОперации,">="&X$5,ДатаОперации,"<"&AA$5) -> 4799 | Z18: =Расходы[[#This Row],[Январь План]]-Расходы[[#This Row],[Январь Факт]] -> -26050 | AB18: =-SUMIFS(СуммаОпераций,КатегорияОпераций,Расходы!$B18,ДатаОперации,">="&AA$5,ДатаОперации,"<"&AD$5) -> -800 | AC18: =Расходы[[#This Row],[Январь План]]-Расходы[[#This Row],[Январь Факт]] -> -26050 | AE18: =-SUMIFS(СуммаОпераций,КатегорияОпераций,Расходы!$B18,ДатаОперации,">="&AD$5,ДатаОперации,"<"&AG$5) -> 26050 | AF18: =Расходы[[#This Row],[Январь План]]-Расходы[[#This Row],[Январь Факт]] -> -26050 | AH18: =-SUMIFS(СуммаОпераций,КатегорияОпераций,Расходы!$B18,ДатаОперации,">="&AG$5,ДатаОперации,"<"&AJ$5) -> 4799 | AI18: =Расходы[[#This Row],[Январь План]]-Расходы[[#This Row],[Январь Факт]] -> -26050 | AK18: =-SUMIFS(СуммаОпераций,КатегорияОпераций,Расходы!$B18,ДатаОперации,">="&AJ$5,ДатаОперации,"<"&DATE($B$4,13,1)) -> -800 | AL18: =Расходы[[#This Row],[Январь План]]-Расходы[[#This Row],[Январь Факт]] -> -26050 | AM18: 0 | AN18: 120196 | AO18: -120196
B19: Медицина | D19: =-SUMIFS(СуммаОпераций,КатегорияОпераций,Расходы!$B19,ДатаОперации,">="&C$5,ДатаОперации,"<"&F$5) -> 6091 | E19: =Расходы[[#This Row],[Январь План]]-Расходы[[#This Row],[Январь Факт]] -> -6091 | G19: =-SUMIFS(СуммаОпераций,КатегорияОпераций,Расходы!$B19,ДатаОперации,">="&F$5,ДатаОперации,"<"&I$5) -> 2649 | H19: =Расходы[[#This Row],[Январь План]]-Расходы[[#This Row],[Январь Факт]] -> -6091 | J19: =-SUMIFS(СуммаОпераций,КатегорияОпераций,Расходы!$B19,ДатаОперации,">="&I$5,ДатаОперации,"<"&L$5) -> 10225.65 | K19: =Расходы[[#This Row],[Январь План]]-Расходы[[#This Row],[Январь Факт]] -> -6091 | M19: =-SUMIFS(СуммаОпераций,КатегорияОпераций,Расходы!$B19,ДатаОперации,">="&L$5,ДатаОперации,"<"&O$5) -> 6091 | N19: =Расходы[[#This Row],[Январь План]]-Расходы[[#This Row],[Январь Факт]] -> -6091 | P19: =-SUMIFS(СуммаОпераций,КатегорияОпераций,Расходы!$B19,ДатаОперации,">="&O$5,ДатаОперации,"<"&R$5) -> 2649 | Q19: =Расходы[[#This Row],[Январь План]]-Расходы[[#This Row],[Январь Факт]] -> -6091 | S19: =-SUMIFS(СуммаОпераций,КатегорияОпераций,Расходы!$B19,ДатаОперации,">="&R$5,ДатаОперации,"<"&U$5) -> 10225.65 | T19: =Расходы[[#This Row],[Январь План]]-Расходы[[#This Row],[Январь Факт]] -> -6091 | V19: =-SUMIFS(СуммаОпераций,КатегорияОпераций,Расходы!$B19,ДатаОперации,">="&U$5,ДатаОперации,"<"&X$5) -> 6091 | W19: =Расходы[[#This Row],[Январь План]]-Расходы[[#This Row],[Январь Факт]] -> -6091 | Y19: =-SUMIFS(СуммаОпераций,КатегорияОпераций,Расходы!$B19,ДатаОперации,">="&X$5,ДатаОперации,"<"&AA$5) -> 2649 | Z19: =Расходы[[#This Row],[Январь План]]-Расходы[[#This Row],[Январь Факт]] -> -6091 | AB19: =-SUMIFS(СуммаОпераций,КатегорияОпераций,Расходы!$B19,ДатаОперации,">="&AA$5,ДатаОперации,"<"&AD$5) -> 10225.65 | AC19: =Расходы[[#This Row],[Январь План]]-Расходы[[#This Row],[Январь Факт]] -> -6091 | AE19: =-SUMIFS(СуммаОпераций,КатегорияОпераций,Расходы!$B19,ДатаОперации,">="&AD$5,ДатаОперации,"<"&AG$5) -> 6091 | AF19: =Расходы[[#This Row],[Январь План]]-Расходы[[#This Row],[Январь Факт]] -> -6091 | AH19: =-SUMIFS(СуммаОпераций,КатегорияОпераций,Расходы!$B19,ДатаОперации,">="&AG$5,ДатаОперации,"<"&AJ$5) -> 2649 | AI19: =Расходы[[#This Row],[Январь План]]-Расходы[[#This Row],[Январь Факт]] -> -6091 | AK19: =-SUMIFS(СуммаОпераций,КатегорияОпераций,Расходы!$B19,ДатаОперации,">="&AJ$5,ДатаОперации,"<"&DATE($B$4,13,1)) -> 10225.65 | AL19: =Расходы[[#This Row],[Январь План]]-Расходы[[#This Row],[Январь Факт]] -> -6091 | AM19: 0 | AN19: 75862.6 | AO19: -75862.6
B20: Снятие наличных | D20: =-SUMIFS(СуммаОпераций,КатегорияОпераций,Расходы!$B20,ДатаОперации,">="&C$5,ДатаОперации,"<"&F$5) -> 0 | E20: =Расходы[[#This Row],[Январь План]]-Расходы[[#This Row],[Январь Факт]] -> 0 | G20: =-SUMIFS(СуммаОпераций,КатегорияОпераций,Расходы!$B20,ДатаОперации,">="&F$5,ДатаОперации,"<"&I$5) -> 0 | H20: =Расходы[[#This Row],[Январь План]]-Расходы[[#This Row],[Январь Факт]] -> 0 | J20: =-SUMIFS(СуммаОпераций,КатегорияОпераций,Расходы!$B20,ДатаОперации,">="&I$5,ДатаОперации,"<"&L$5) -> 130000 | K20: =Расходы[[#This Row],[Январь План]]-Расходы[[#This Row],[Январь Факт]] -> 0 | M20: =-SUMIFS(СуммаОпераций,КатегорияОпераций,Расходы!$B20,ДатаОперации,">="&L$5,ДатаОперации,"<"&O$5) -> 0 | N20: =Расходы[[#This Row],[Январь План]]-Расходы[[#This Row],[Январь Факт]] -> 0 | P20: =-SUMIFS(СуммаОпераций,КатегорияОпераций,Расходы!$B20,ДатаОперации,">="&O$5,ДатаОперации,"<"&R$5) -> 0 | Q20: =Расходы[[#This Row],[Январь План]]-Расходы[[#This Row],[Январь Факт]] -> 0 | S20: =-SUMIFS(СуммаОпераций,КатегорияОпераций,Расходы!$B20,ДатаОперации,">="&R$5,ДатаОперации,"<"&U$5) -> 130000 | T20: =Расходы[[#This Row],[Январь План]]-Расходы[[#This Row],[Январь Факт]] -> 0 | V20: =-SUMIFS(СуммаОпераций,КатегорияОпераций,Расходы!$B20,ДатаОперации,">="&U$5,ДатаОперации,"<"&X$5) -> 0 | W20: =Расходы[[#This Row],[Январь План]]-Расходы[[#This Row],[Январь Факт]] -> 0 | Y20: =-SUMIFS(СуммаОпераций,КатегорияОпераций,Расходы!$B20,ДатаОперации,">="&X$5,ДатаОперации,"<"&AA$5) -> 0 | Z20: =Расходы[[#This Row],[Январь План]]-Расходы[[#This Row],[Январь Факт]] -> 0 | AB20: =-SUMIFS(СуммаОпераций,КатегорияОпераций,Расходы!$B20,ДатаОперации,">="&AA$5,ДатаОперации,"<"&AD$5) -> 130000 | AC20: =Расходы[[#This Row],[Январь План]]-Расходы[[#This Row],[Январь Факт]] -> 0 | AE20: =-SUMIFS(СуммаОпераций,КатегорияОпераций,Расходы!$B20,ДатаОперации,">="&AD$5,ДатаОперации,"<"&AG$5) -> 0 | AF20: =Расходы[[#This Row],[Январь План]]-Расходы[[#This Row],[Январь Факт]] -> 0 | AH20: =-SUMIFS(СуммаОпераций,КатегорияОпераций,Расходы!$B20,ДатаОперации,">="&AG$5,ДатаОперации,"<"&AJ$5) -> 0 | AI20: =Расходы[[#This Row],[Январь План]]-Расходы[[#This Row],[Январь Факт]] -> 0 | AK20: =-SUMIFS(СуммаОпераций,КатегорияОпераций,Расходы!$B20,ДатаОперации,">="&AJ$5,ДатаОперации,"<"&DATE($B$4,13,1)) -> 130000 | AL20: =Расходы[[#This Row],[Январь План]]-Расходы[[#This Row],[Январь Факт]] -> 0 | AM20: 0 | AN20: 520000 | AO20: -520000
B21: Поездки | D21: =-SUMIFS(СуммаОпераций,КатегорияОпераций,Расходы!$B21,ДатаОперации,">="&C$5,ДатаОперации,"<"&F$5) -> 0 | E21: =Расходы[[#This Row],[Январь План]]-Расходы[[#This Row],[Январь Факт]] -> 0 | G21: =-SUMIFS(СуммаОпераций,КатегорияОпераций,Расходы!$B21,ДатаОперации,">="&F$5,ДатаОперации,"<"&I$5) -> 26088.8 | H21: =Расходы[[#This Row],[Январь План]]-Расходы[[#This Row],[Январь Факт]] -> 0 | J21: =-SUMIFS(СуммаОпераций,КатегорияОпераций,Расходы!$B21,ДатаОперации,">="&I$5,ДатаОперации,"<"&L$5) -> -14652 | K21: =Расходы[[#This Row],[Январь План]]-Расходы[[#This Row],[Январь Факт]] -> 0 | M21: =-SUMIFS(СуммаОпераций,КатегорияОпераций,Расходы!$B21,ДатаОперации,">="&L$5,ДатаОперации,"<"&O$5) -> 0 | N21: =Расходы[[#This Row],[Январь План]]-Расходы[[#This Row],[Январь Факт]] -> 0 | P21: =-SUMIFS(СуммаОпераций,КатегорияОпераций,Расходы!$B21,ДатаОперации,">="&O$5,ДатаОперации,"<"&R$5) -> 26088.8 | Q21: =Расходы[[#This Row],[Январь План]]-Расходы[[#This Row],[Январь Факт]] -> 0 | S21: =-SUMIFS(СуммаОпераций,КатегорияОпераций,Расходы!$B21,ДатаОперации,">="&R$5,ДатаОперации,"<"&U$5) -> -14652 | T21: =Расходы[[#This Row],[Январь План]]-Расходы[[#This Row],[Январь Факт]] -> 0 | V21: =-SUMIFS(СуммаОпераций,КатегорияОпераций,Расходы!$B21,ДатаОперации,">="&U$5,ДатаОперации,"<"&X$5) -> 0 | W21: =Расходы[[#This Row],[Январь План]]-Расходы[[#This Row],[Январь Факт]] -> 0 | Y21: =-SUMIFS(СуммаОпераций,КатегорияОпераций,Расходы!$B21,ДатаОперации,">="&X$5,ДатаОперации,"<"&AA$5) -> 26088.8 | Z21: =Расходы[[#This Row],[Январь План]]-Расходы[[#This Row],[Январь Факт]] -> 0 | AB21: =-SUMIFS(СуммаОпераций,КатегорияОпераций,Расходы!$B21,ДатаОперации,">="&AA$5,ДатаОперации,"<"&AD$5) -> -14652 | AC21: =Расходы[[#This Row],[Январь План]]-Расходы[[#This Row],[Январь Факт]] -> 0 | AE21: =-SUMIFS(СуммаОпераций,КатегорияОпераций,Расходы!$B21,ДатаОперации,">="&AD$5,ДатаОперации,"<"&AG$5) -> 0 | AF21: =Расходы[[#This Row],[Январь План]]-Расходы[[#This Row],[Январь Факт]] -> 0 | AH21: =-SUMIFS(СуммаОпераций,КатегорияОпераций,Расходы!$B21,ДатаОперации,">="&AG$5,ДатаОперации,"<"&AJ$5) -> 26088.8 | AI21: =Расходы[[#This Row],[Январь План]]-Расходы[[#This Row],[Январь Факт]] -> 0 | AK21: =-SUMIFS(СуммаОпераций,КатегорияОпераций,Расходы!$B21,ДатаОперации,">="&AJ$5,ДатаОперации,"<"&DATE($B$4,13,1)) -> -14652 | AL21: =Расходы[[#This Row],[Январь План]]-Расходы[[#This Row],[Январь Факт]] -> 0 | AM21: 0 | AN21: 45747.2 | AO21: -45747.2
B22: Рестораны | D22: =-SUMIFS(СуммаОпераций,КатегорияОпераций,Расходы!$B22,ДатаОперации,">="&C$5,ДатаОперации,"<"&F$5) -> 7265 | E22: =Расходы[[#This Row],[Январь План]]-Расходы[[#This Row],[Январь Факт]] -> -7265 | G22: =-SUMIFS(СуммаОпераций,КатегорияОпераций,Расходы!$B22,ДатаОперации,">="&F$5,ДатаОперации,"<"&I$5) -> 10792.78 | H22: =Расходы[[#This Row],[Январь План]]-Расходы[[#This Row],[Январь Факт]] -> -7265 | J22: =-SUMIFS(СуммаОпераций,КатегорияОпераций,Расходы!$B22,ДатаОперации,">="&I$5,ДатаОперации,"<"&L$5) -> 9744 | K22: =Расходы[[#This Row],[Январь План]]-Расходы[[#This Row],[Январь Факт]] -> -7265 | M22: =-SUMIFS(СуммаОпераций,КатегорияОпераций,Расходы!$B22,ДатаОперации,">="&L$5,ДатаОперации,"<"&O$5) -> 7265 | N22: =Расходы[[#This Row],[Январь План]]-Расходы[[#This Row],[Январь Факт]] -> -7265 | P22: =-SUMIFS(СуммаОпераций,КатегорияОпераций,Расходы!$B22,ДатаОперации,">="&O$5,ДатаОперации,"<"&R$5) -> 10792.78 | Q22: =Расходы[[#This Row],[Январь План]]-Расходы[[#This Row],[Январь Факт]] -> -7265 | S22: =-SUMIFS(СуммаОпераций,КатегорияОпераций,Расходы!$B22,ДатаОперации,">="&R$5,ДатаОперации,"<"&U$5) -> 9744 | T22: =Расходы[[#This Row],[Январь План]]-Расходы[[#This Row],[Январь Факт]] -> -7265 | V22: =-SUMIFS(СуммаОпераций,КатегорияОпераций,Расходы!$B22,ДатаОперации,">="&U$5,ДатаОперации,"<"&X$5) -> 7265 | W22: =Расходы[[#This Row],[Январь План]]-Расходы[[#This Row],[Январь Факт]] -> -7265 | Y22: =-SUMIFS(СуммаОпераций,КатегорияОпераций,Расходы!$B22,ДатаОперации,">="&X$5,ДатаОперации,"<"&AA$5) -> 10792.78 | Z22: =Расходы[[#This Row],[Январь План]]-Расходы[[#This Row],[Январь Факт]] -> -7265 | AB22: =-SUMIFS(СуммаОпераций,КатегорияОпераций,Расходы!$B22,ДатаОперации,">="&AA$5,ДатаОперации,"<"&AD$5) -> 9744 | AC22: =Расходы[[#This Row],[Январь План]]-Расходы[[#This Row],[Январь Факт]] -> -7265 | AE22: =-SUMIFS(СуммаОпераций,КатегорияОпераций,Расходы!$B22,ДатаОперации,">="&AD$5,ДатаОперации,"<"&AG$5) -> 7265 | AF22: =Расходы[[#This Row],[Январь План]]-Расходы[[#This Row],[Январь Факт]] -> -7265 | AH22: =-SUMIFS(СуммаОпераций,КатегорияОпераций,Расходы!$B22,ДатаОперации,">="&AG$5,ДатаОперации,"<"&AJ$5) -> 10792.78 | AI22: =Расходы[[#This Row],[Январь План]]-Расходы[[#This Row],[Январь Факт]] -> -7265 | AK22: =-SUMIFS(СуммаОпераций,КатегорияОпераций,Расходы!$B22,ДатаОперации,">="&AJ$5,ДатаОперации,"<"&DATE($B$4,13,1)) -> 9744 | AL22: =Расходы[[#This Row],[Январь План]]-Расходы[[#This Row],[Январь Факт]] -> -7265 | AM22: 0 | AN22: 111207.12 | AO22: -111207.12
B23: Одежда и обувь | D23: =-SUMIFS(СуммаОпераций,КатегорияОпераций,Расходы!$B23,ДатаОперации,">="&C$5,ДатаОперации,"<"&F$5) -> 0 | E23: =Расходы[[#This Row],[Январь План]]-Расходы[[#This Row],[Январь Факт]] -> 0 | G23: =-SUMIFS(СуммаОпераций,КатегорияОпераций,Расходы!$B23,ДатаОперации,">="&F$5,ДатаОперации,"<"&I$5) -> 0 | H23: =Расходы[[#This Row],[Январь План]]-Расходы[[#This Row],[Январь Факт]] -> 0 | J23: =-SUMIFS(СуммаОпераций,КатегорияОпераций,Расходы!$B23,ДатаОперации,">="&I$5,ДатаОперации,"<"&L$5) -> 4200 | K23: =Расходы[[#This Row],[Январь План]]-Расходы[[#This Row],[Январь Факт]] -> 0 | M23: =-SUMIFS(СуммаОпераций,КатегорияОпераций,Расходы!$B23,ДатаОперации,">="&L$5,ДатаОперации,"<"&O$5) -> 0 | N23: =Расходы[[#This Row],[Январь План]]-Расходы[[#This Row],[Январь Факт]] -> 0 | P23: =-SUMIFS(СуммаОпераций,КатегорияОпераций,Расходы!$B23,ДатаОперации,">="&O$5,ДатаОперации,"<"&R$5) -> 0 | Q23: =Расходы[[#This Row],[Январь План]]-Расходы[[#This Row],[Январь Факт]] -> 0 | S23: =-SUMIFS(СуммаОпераций,КатегорияОпераций,Расходы!$B23,ДатаОперации,">="&R$5,ДатаОперации,"<"&U$5) -> 4200 | T23: =Расходы[[#This Row],[Январь План]]-Расходы[[#This Row],[Январь Факт]] -> 0 | V23: =-SUMIFS(СуммаОпераций,КатегорияОпераций,Расходы!$B23,ДатаОперации,">="&U$5,ДатаОперации,"<"&X$5) -> 0 | W23: =Расходы[[#This Row],[Январь План]]-Расходы[[#This Row],[Январь Факт]] -> 0 | Y23: =-SUMIFS(СуммаОпераций,КатегорияОпераций,Расходы!$B23,ДатаОперации,">="&X$5,ДатаОперации,"<"&AA$5) -> 0 | Z23: =Расходы[[#This Row],[Январь План]]-Расходы[[#This Row],[Январь Факт]] -> 0 | AB23: =-SUMIFS(СуммаОпераций,КатегорияОпераций,Расходы!$B23,ДатаОперации,">="&AA$5,ДатаОперации,"<"&AD$5) -> 4200 | AC23: =Расходы[[#This Row],[Январь План]]-Расходы[[#This Row],[Январь Факт]] -> 0 | AE23: =-SUMIFS(СуммаОпераций,КатегорияОпераций,Расходы!$B23,ДатаОперации,">="&AD$5,ДатаОперации,"<"&AG$5) -> 0 | AF23: =Расходы[[#This Row],[Январь План]]-Расходы[[#This Row],[Январь Факт]] -> 0 | AH23: =-SUMIFS(СуммаОпераций,КатегорияОпераций,Расходы!$B23,ДатаОперации,">="&AG$5,ДатаОперации,"<"&AJ$5) -> 0 | AI23: =Расходы[[#This Row],[Январь План]]-Расходы[[#This Row],[Январь Факт]] -> 0 | AK23: =-SUMIFS(СуммаОпераций,КатегорияОпераций,Расходы!$B23,ДатаОперации,">="&AJ$5,ДатаОперации,"<"&DATE($B$4,13,1)) -> 4200 | AL23: =Расходы[[#This Row],[Январь План]]-Расходы[[#This Row],[Январь Факт]] -> 0 | AM23: 0 | AN23: 16800 | AO23: -16800
B24: Товары для дома, ремонта | D24: =-SUMIFS(СуммаОпераций,КатегорияОпераций,Расходы!$B24,ДатаОперации,">="&C$5,ДатаОперации,"<"&F$5) -> 0 | E24: =Расходы[[#This Row],[Январь План]]-Расходы[[#This Row],[Январь Факт]] -> 0 | G24: =-SUMIFS(СуммаОпераций,КатегорияОпераций,Расходы!$B24,ДатаОперации,">="&F$5,ДатаОперации,"<"&I$5) -> 1642 | H24: =Расходы[[#This Row],[Январь План]]-Расходы[[#This Row],[Январь Факт]] -> 0 | J24: =-SUMIFS(СуммаОпераций,КатегорияОпераций,Расходы!$B24,ДатаОперации,">="&I$5,ДатаОперации,"<"&L$5) -> 368 | K24: =Расходы[[#This Row],[Январь План]]-Расходы[[#This Row],[Январь Факт]] -> 0 | M24: =-SUMIFS(СуммаОпераций,КатегорияОпераций,Расходы!$B24,ДатаОперации,">="&L$5,ДатаОперации,"<"&O$5) -> 0 | N24: =Расходы[[#This Row],[Январь План]]-Расходы[[#This Row],[Январь Факт]] -> 0 | P24: =-SUMIFS(СуммаОпераций,КатегорияОпераций,Расходы!$B24,ДатаОперации,">="&O$5,ДатаОперации,"<"&R$5) -> 1642 | Q24: =Расходы[[#This Row],[Январь План]]-Расходы[[#This Row],[Январь Факт]] -> 0 | S24: =-SUMIFS(СуммаОпераций,КатегорияОпераций,Расходы!$B24,ДатаОперации,">="&R$5,ДатаОперации,"<"&U$5) -> 368 | T24: =Расходы[[#This Row],[Январь План]]-Расходы[[#This Row],[Январь Факт]] -> 0 | V24: =-SUMIFS(СуммаОпераций,КатегорияОпераций,Расходы!$B24,ДатаОперации,">="&U$5,ДатаОперации,"<"&X$5) -> 0 | W24: =Расходы[[#This Row],[Январь План]]-Расходы[[#This Row],[Январь Факт]] -> 0 | Y24: =-SUMIFS(СуммаОпераций,КатегорияОпераций,Расходы!$B24,ДатаОперации,">="&X$5,ДатаОперации,"<"&AA$5) -> 1642 | Z24: =Расходы[[#This Row],[Январь План]]-Расходы[[#This Row],[Январь Факт]] -> 0 | AB24: =-SUMIFS(СуммаОпераций,КатегорияОпераций,Расходы!$B24,ДатаОперации,">="&AA$5,ДатаОперации,"<"&AD$5) -> 368 | AC24: =Расходы[[#This Row],[Январь План]]-Расходы[[#This Row],[Январь Факт]] -> 0 | AE24: =-SUMIFS(СуммаОпераций,КатегорияОпераций,Расходы!$B24,ДатаОперации,">="&AD$5,ДатаОперации,"<"&AG$5) -> 0 | AF24: =Расходы[[#This Row],[Январь План]]-Расходы[[#This Row],[Январь Факт]] -> 0 | AH24: =-SUMIFS(СуммаОпераций,КатегорияОпераций,Расходы!$B24,ДатаОперации,">="&AG$5,ДатаОперации,"<"&AJ$5) -> 1642 | AI24: =Расходы[[#This Row],[Январь План]]-Расходы[[#This Row],[Январь Факт]] -> 0 | AK24: =-SUMIFS(СуммаОпераций,КатегорияОпераций,Расходы!$B24,ДатаОперации,">="&AJ$5,ДатаОперации,"<"&DATE($B$4,13,1)) -> 368 | AL24: =Расходы[[#This Row],[Январь План]]-Расходы[[#This Row],[Январь Факт]] -> 0 | AM24: 0 | AN24: 8040 | AO24: -8040
B25: Развлечения | D25: =-SUMIFS(СуммаОпераций,КатегорияОпераций,Расходы!$B25,ДатаОперации,">="&C$5,ДатаОперации,"<"&F$5) -> 9018 | E25: =Расходы[[#This Row],[Январь План]]-Расходы[[#This Row],[Январь Факт]] -> -9018 | G25: =-SUMIFS(СуммаОпераций,КатегорияОпераций,Расходы!$B25,ДатаОперации,">="&F$5,ДатаОперации,"<"&I$5) -> 684 | H25: =Расходы[[#This Row],[Январь План]]-Расходы[[#This Row],[Январь Факт]] -> -9018 | J25: =-SUMIFS(СуммаОпераций,КатегорияОпераций,Расходы!$B25,ДатаОперации,">="&I$5,ДатаОперации,"<"&L$5) -> 1053 | K25: =Расходы[[#This Row],[Январь План]]-Расходы[[#This Row],[Январь Факт]] -> -9018 | M25: =-SUMIFS(СуммаОпераций,КатегорияОпераций,Расходы!$B25,ДатаОперации,">="&L$5,ДатаОперации,"<"&O$5) -> 9018 | N25: =Расходы[[#This Row],[Январь План]]-Расходы[[#This Row],[Январь Факт]] -> -9018 | P25: =-SUMIFS(СуммаОпераций,КатегорияОпераций,Расходы!$B25,ДатаОперации,">="&O$5,ДатаОперации,"<"&R$5) -> 684 | Q25: =Расходы[[#This Row],[Январь План]]-Расходы[[#This Row],[Январь Факт]] -> -9018 | S25: =-SUMIFS(СуммаОпераций,КатегорияОпераций,Расходы!$B25,ДатаОперации,">="&R$5,ДатаОперации,"<"&U$5) -> 1053 | T25: =Расходы[[#This Row],[Январь План]]-Расходы[[#This Row],[Январь Факт]] -> -9018 | V25: =-SUMIFS(СуммаОпераций,КатегорияОпераций,Расходы!$B25,ДатаОперации,">="&U$5,ДатаОперации,"<"&X$5) -> 9018 | W25: =Расходы[[#This Row],[Январь План]]-Расходы[[#This Row],[Январь Факт]] -> -9018 | Y25: =-SUMIFS(СуммаОпераций,КатегорияОпераций,Расходы!$B25,ДатаОперации,">="&X$5,ДатаОперации,"<"&AA$5) -> 684 | Z25: =Расходы[[#This Row],[Январь План]]-Расходы[[#This Row],[Январь Факт]] -> -9018 | AB25: =-SUMIFS(СуммаОпераций,КатегорияОпераций,Расходы!$B25,ДатаОперации,">="&AA$5,ДатаОперации,"<"&AD$5) -> 1053 | AC25: =Расходы[[#This Row],[Январь План]]-Расходы[[#This Row],[Январь Факт]] -> -9018 | AE25: =-SUMIFS(СуммаОпераций,КатегорияОпераций,Расходы!$B25,ДатаОперации,">="&AD$5,ДатаОперации,"<"&AG$5) -> 9018 | AF25: =Расходы[[#This Row],[Январь План]]-Расходы[[#This Row],[Январь Факт]] -> -9018 | AH25: =-SUMIFS(СуммаОпераций,КатегорияОпераций,Расходы!$B25,ДатаОперации,">="&AG$5,ДатаОперации,"<"&AJ$5) -> 684 | AI25: =Расходы[[#This Row],[Январь План]]-Расходы[[#This Row],[Январь Факт]] -> -9018 | AK25: =-SUMIFS(СуммаОпераций,КатегорияОпераций,Расходы!$B25,ДатаОперации,">="&AJ$5,ДатаОперации,"<"&DATE($B$4,13,1)) -> 1053 | AL25: =Расходы[[#This Row],[Январь План]]-Расходы[[#This Row],[Январь Факт]] -> -9018 | AM25: 0 | AN25: 43020 | AO25: -43020
B26: Услуги для внешнего вида | D26: =-SUMIFS(СуммаОпераций,КатегорияОпераций,Расходы!$B26,ДатаОперации,">="&C$5,ДатаОперации,"<"&F$5) -> 1100 | E26: =Расходы[[#This Row],[Январь План]]-Расходы[[#This Row],[Январь Факт]] -> -1100 | G26: =-SUMIFS(СуммаОпераций,КатегорияОпераций,Расходы!$B26,ДатаОперации,">="&F$5,ДатаОперации,"<"&I$5) -> 0 | H26: =Расходы[[#This Row],[Январь План]]-Расходы[[#This Row],[Январь Факт]] -> -1100 | J26: =-SUMIFS(СуммаОпераций,КатегорияОпераций,Расходы!$B26,ДатаОперации,">="&I$5,ДатаОперации,"<"&L$5) -> 0 | K26: =Расходы[[#This Row],[Январь План]]-Расходы[[#This Row],[Январь Факт]] -> -1100 | M26: =-SUMIFS(СуммаОпераций,КатегорияОпераций,Расходы!$B26,ДатаОперации,">="&L$5,ДатаОперации,"<"&O$5) -> 1100 | N26: =Расходы[[#This Row],[Январь План]]-Расходы[[#This Row],[Январь Факт]] -> -1100 | P26: =-SUMIFS(СуммаОпераций,КатегорияОпераций,Расходы!$B26,ДатаОперации,">="&O$5,ДатаОперации,"<"&R$5) -> 0 | Q26: =Расходы[[#This Row],[Январь План]]-Расходы[[#This Row],[Январь Факт]] -> -1100 | S26: =-SUMIFS(СуммаОпераций,КатегорияОпераций,Расходы!$B26,ДатаОперации,">="&R$5,ДатаОперации,"<"&U$5) -> 0 | T26: =Расходы[[#This Row],[Январь План]]-Расходы[[#This Row],[Январь Факт]] -> -1100 | V26: =-SUMIFS(СуммаОпераций,КатегорияОпераций,Расходы!$B26,ДатаОперации,">="&U$5,ДатаОперации,"<"&X$5) -> 1100 | W26: =Расходы[[#This Row],[Январь План]]-Расходы[[#This Row],[Январь Факт]] -> -1100 | Y26: =-SUMIFS(СуммаОпераций,КатегорияОпераций,Расходы!$B26,ДатаОперации,">="&X$5,ДатаОперации,"<"&AA$5) -> 0 | Z26: =Расходы[[#This Row],[Январь План]]-Расходы[[#This Row],[Январь Факт]] -> -1100 | AB26: =-SUMIFS(СуммаОпераций,КатегорияОпераций,Расходы!$B26,ДатаОперации,">="&AA$5,ДатаОперации,"<"&AD$5) -> 0 | AC26: =Расходы[[#This Row],[Январь План]]-Расходы[[#This Row],[Январь Факт]] -> -1100 | AE26: =-SUMIFS(СуммаОпераций,КатегорияОпераций,Расходы!$B26,ДатаОперации,">="&AD$5,ДатаОперации,"<"&AG$5) -> 1100 | AF26: =Расходы[[#This Row],[Январь План]]-Расходы[[#This Row],[Январь Факт]] -> -1100 | AH26: =-SUMIFS(СуммаОпераций,КатегорияОпераций,Расходы!$B26,ДатаОперации,">="&AG$5,ДатаОперации,"<"&AJ$5) -> 0 | AI26: =Расходы[[#This Row],[Январь План]]-Расходы[[#This Row],[Январь Факт]] -> -1100 | AK26: =-SUMIFS(СуммаОпераций,КатегорияОпераций,Расходы!$B26,ДатаОперации,">="&AJ$5,ДатаОперации,"<"&DATE($B$4,13,1)) -> 0 | AL26: =Расходы[[#This Row],[Январь План]]-Расходы[[#This Row],[Январь Факт]] -> -1100 | AM26: 0 | AN26: 4400 | AO26: -4400
B27: Топливо | D27: =-SUMIFS(СуммаОпераций,КатегорияОпераций,Расходы!$B27,ДатаОперации,">="&C$5,ДатаОперации,"<"&F$5) -> 0 | E27: =Расходы[[#This Row],[Январь План]]-Расходы[[#This Row],[Январь Факт]] -> 0 | G27: =-SUMIFS(СуммаОпераций,КатегорияОпераций,Расходы!$B27,ДатаОперации,">="&F$5,ДатаОперации,"<"&I$5) -> 0 | H27: =Расходы[[#This Row],[Январь План]]-Расходы[[#This Row],[Январь Факт]] -> 0 | J27: =-SUMIFS(СуммаОпераций,КатегорияОпераций,Расходы!$B27,ДатаОперации,">="&I$5,ДатаОперации,"<"&L$5) -> 0 | K27: =Расходы[[#This Row],[Январь План]]-Расходы[[#This Row],[Январь Факт]] -> 0 | M27: =-SUMIFS(СуммаОпераций,КатегорияОпераций,Расходы!$B27,ДатаОперации,">="&L$5,ДатаОперации,"<"&O$5) -> 0 | N27: =Расходы[[#This Row],[Январь План]]-Расходы[[#This Row],[Январь Факт]] -> 0 | P27: =-SUMIFS(СуммаОпераций,КатегорияОпераций,Расходы!$B27,ДатаОперации,">="&O$5,ДатаОперации,"<"&R$5) -> 0 | Q27: =Расходы[[#This Row],[Январь План]]-Расходы[[#This Row],[Январь Факт]] -> 0 | S27: =-SUMIFS(СуммаОпераций,КатегорияОпераций,Расходы!$B27,ДатаОперации,">="&R$5,ДатаОперации,"<"&U$5) -> 0 | T27: =Расходы[[#This Row],[Январь План]]-Расходы[[#This Row],[Январь Факт]] -> 0 | V27: =-SUMIFS(СуммаОпераций,КатегорияОпераций,Расходы!$B27,ДатаОперации,">="&U$5,ДатаОперации,"<"&X$5) -> 0 | W27: =Расходы[[#This Row],[Январь План]]-Расходы[[#This Row],[Январь Факт]] -> 0 | Y27: =-SUMIFS(СуммаОпераций,КатегорияОпераций,Расходы!$B27,ДатаОперации,">="&X$5,ДатаОперации,"<"&AA$5) -> 0 | Z27: =Расходы[[#This Row],[Январь План]]-Расходы[[#This Row],[Январь Факт]] -> 0 | AB27: =-SUMIFS(СуммаОпераций,КатегорияОпераций,Расходы!$B27,ДатаОперации,">="&AA$5,ДатаОперации,"<"&AD$5) -> 0 | AC27: =Расходы[[#This Row],[Январь План]]-Расходы[[#This Row],[Январь Факт]] -> 0 | AE27: =-SUMIFS(СуммаОпераций,КатегорияОпераций,Расходы!$B27,ДатаОперации,">="&AD$5,ДатаОперации,"<"&AG$5) -> 0 | AF27: =Расходы[[#This Row],[Январь План]]-Расходы[[#This Row],[Январь Факт]] -> 0 | AH27: =-SUMIFS(СуммаОпераций,КатегорияОпераций,Расходы!$B27,ДатаОперации,">="&AG$5,ДатаОперации,"<"&AJ$5) -> 0 | AI27: =Расходы[[#This Row],[Январь План]]-Расходы[[#This Row],[Январь Факт]] -> 0 | AK27: =-SUMIFS(СуммаОпераций,КатегорияОпераций,Расходы!$B27,ДатаОперации,">="&AJ$5,ДатаОперации,"<"&DATE($B$4,13,1)) -> 0 | AL27: =Расходы[[#This Row],[Январь План]]-Расходы[[#This Row],[Январь Факт]] -> 0 | AM27: 0 | AN27: 0 | AO27: 0
B28: Страхование | C28: 2550 | D28: =-SUMIFS(СуммаОпераций,КатегорияОпераций,Расходы!$B28,ДатаОперации,">="&C$5,ДатаОперации,"<"&F$5) -> 0 | E28: =Расходы[[#This Row],[Январь План]]-Расходы[[#This Row],[Январь Факт]] -> 2550 | F28: 2550 | G28: =-SUMIFS(СуммаОпераций,КатегорияОпераций,Расходы!$B28,ДатаОперации,">="&F$5,ДатаОперации,"<"&I$5) -> 0 | H28: =Расходы[[#This Row],[Февраль План]]-Расходы[[#This Row],[Февраль Факт]] -> 2550 | I28: 2550 | J28: =-SUMIFS(СуммаОпераций,КатегорияОпераций,Расходы!$B28,ДатаОперации,">="&I$5,ДатаОперации,"<"&L$5) -> 0 | K28: =Расходы[[#This Row],[Март План]]-Расходы[[#This Row],[Март Факт]] -> 2550 | L28: 2550 | M28: =-SUMIFS(СуммаОпераций,КатегорияОпераций,Расходы!$B28,ДатаОперации,">="&L$5,ДатаОперации,"<"&O$5) -> 0 | N28: =Расходы[[#This Row],[Апрель План]]-Расходы[[#This Row],[Апрель Факт]] -> 2550 | O28: 2550 | P28: =-SUMIFS(СуммаОпераций,КатегорияОпераций,Расходы!$B28,ДатаОперации,">="&O$5,ДатаОперации,"<"&R$5) -> 0 | Q28: =Расходы[[#This Row],[Май План]]-Расходы[[#This Row],[Май Факт]] -> 2550 | R28: 2550 | S28: =-SUMIFS(СуммаОпераций,КатегорияОпераций,Расходы!$B28,ДатаОперации,">="&R$5,ДатаОперации,"<"&U$5) -> 0 | T28: =Расходы[[#This Row],[Июнь План]]-Расходы[[#This Row],[Июнь Факт]] -> 2550 | U28: 2550 | V28: =-SUMIFS(СуммаОпераций,КатегорияОпераций,Расходы!$B28,ДатаОперации,">="&U$5,ДатаОперации,"<"&X$5) -> 0 | W28: =Расходы[[#This Row],[Июль План]]-Расходы[[#This Row],[Июль Факт]] -> 2550 | X28: 2550 | Y28: =-SUMIFS(СуммаОпераций,КатегорияОпераций,Расходы!$B28,ДатаОперации,">="&X$5,ДатаОперации,"<"&AA$5) -> 0 | Z28: =Расходы[[#This Row],[Август План]]-Расходы[[#This Row],[Август Факт]] -> 2550 | AA28: 2550 | AB28: =-SUMIFS(СуммаОпераций,КатегорияОпераций,Расходы!$B28,ДатаОперации,">="&AA$5,ДатаОперации,"<"&AD$5) -> 0 | AC28: =Расходы[[#This Row],[Сентябрь План]]-Расходы[[#This Row],[Сентябрь Факт]] -> 2550 | AD28: 2550 | AE28: =-SUMIFS(СуммаОпераций,КатегорияОпераций,Расходы!$B28,ДатаОперации,">="&AD$5,ДатаОперации,"<"&AG$5) -> 0 | AF28: =Расходы[[#This Row],[Октябрь План]]-Расходы[[#This Row],[Октябрь Факт]] -> 2550 | AG28: 2550 | AH28: =-SUMIFS(СуммаОпераций,КатегорияОпераций,Расходы!$B28,ДатаОперации,">="&AG$5,ДатаОперации,"<"&AJ$5) -> 0 | AI28: =Расходы[[#This Row],[Ноябрь План]]-Расходы[[#This Row],[Ноябрь Факт]] -> 2550 | AJ28: 2550 | AK28: =-SUMIFS(СуммаОпераций,КатегорияОпераций,Расходы!$B28,ДатаОперации,">="&AJ$5,ДатаОперации,"<"&DATE($B$4,13,1)) -> 0 | AL28: =Расходы[[#This Row],[Декабрь План]]-Расходы[[#This Row],[Декабрь Факт]] -> 2550 | AM28: 30600 | AN28: 0 | AO28: 30600
B29: Кредитные карты | C29: 1000 | D29: =-SUMIFS(СуммаОпераций,КатегорияОпераций,Расходы!$B29,ДатаОперации,">="&C$5,ДатаОперации,"<"&F$5) -> 0 | E29: =Расходы[[#This Row],[Январь План]]-Расходы[[#This Row],[Январь Факт]] -> 1000 | F29: 1000 | G29: =-SUMIFS(СуммаОпераций,КатегорияОпераций,Расходы!$B29,ДатаОперации,">="&F$5,ДатаОперации,"<"&I$5) -> 0 | H29: =Расходы[[#This Row],[Февраль План]]-Расходы[[#This Row],[Февраль Факт]] -> 1000 | I29: 1000 | J29: =-SUMIFS(СуммаОпераций,КатегорияОпераций,Расходы!$B29,ДатаОперации,">="&I$5,ДатаОперации,"<"&L$5) -> 0 | K29: =Расходы[[#This Row],[Март План]]-Расходы[[#This Row],[Март Факт]] -> 1000 | L29: 1000 | M29: =-SUMIFS(СуммаОпераций,КатегорияОпераций,Расходы!$B29,ДатаОперации,">="&L$5,ДатаОперации,"<"&O$5) -> 0 | N29: =Расходы[[#This Row],[Апрель План]]-Расходы[[#This Row],[Апрель Факт]] -> 1000 | O29: 1000 | P29: =-SUMIFS(СуммаОпераций,КатегорияОпераций,Расходы!$B29,ДатаОперации,">="&O$5,ДатаОперации,"<"&R$5) -> 0 | Q29: =Расходы[[#This Row],[Май План]]-Расходы[[#This Row],[Май Факт]] -> 1000 | R29: 1000 | S29: =-SUMIFS(СуммаОпераций,КатегорияОпераций,Расходы!$B29,ДатаОперации,">="&R$5,ДатаОперации,"<"&U$5) -> 0 | T29: =Расходы[[#This Row],[Июнь План]]-Расходы[[#This Row],[Июнь Факт]] -> 1000 | U29: 1000 | V29: =-SUMIFS(СуммаОпераций,КатегорияОпераций,Расходы!$B29,ДатаОперации,">="&U$5,ДатаОперации,"<"&X$5) -> 0 | W29: =Расходы[[#This Row],[Июль План]]-Расходы[[#This Row],[Июль Факт]] -> 1000 | X29: 1000 | Y29: =-SUMIFS(СуммаОпераций,КатегорияОпераций,Расходы!$B29,ДатаОперации,">="&X$5,ДатаОперации,"<"&AA$5) -> 0 | Z29: =Расходы[[#This Row],[Август План]]-Расходы[[#This Row],[Август Факт]] -> 1000 | AA29: 1000 | AB29: =-SUMIFS(СуммаОпераций,КатегорияОпераций,Расходы!$B29,ДатаОперации,">="&AA$5,ДатаОперации,"<"&AD$5) -> 0 | AC29: =Расходы[[#This Row],[Сентябрь План]]-Расходы[[#This Row],[Сентябрь Факт]] -> 1000 | AD29: 1000 | AE29: =-SUMIFS(СуммаОпераций,КатегорияОпераций,Расходы!$B29,ДатаОперации,">="&AD$5,ДатаОперации,"<"&AG$5) -> 0 | AF29: =Расходы[[#This Row],[Октябрь План]]-Расходы[[#This Row],[Октябрь Факт]] -> 1000 | AG29: 1000 | AH29: =-SUMIFS(СуммаОпераций,КатегорияОпераций,Расходы!$B29,ДатаОперации,">="&AG$5,ДатаОперации,"<"&AJ$5) -> 0 | AI29: =Расходы[[#This Row],[Ноябрь План]]-Расходы[[#This Row],[Ноябрь Факт]] -> 1000 | AJ29: 1000 | AK29: =-SUMIFS(СуммаОпераций,КатегорияОпераций,Расходы!$B29,ДатаОперации,">="&AJ$5,ДатаОперации,"<"&DATE($B$4,13,1)) -> 0 | AL29: =Расходы[[#This Row],[Декабрь План]]-Расходы[[#This Row],[Декабрь Факт]] -> 1000 | AM29: 12000 | AN29: 0 | AO29: 12000
B30: Выплата тела кредита | C30: 0 | D30: =-SUMIFS(СуммаОпераций,КатегорияОпераций,Расходы!$B30,ДатаОперации,">="&C$5,ДатаОперации,"<"&F$5) -> 0 | E30: =Расходы[[#This Row],[Январь План]]-Расходы[[#This Row],[Январь Факт]] -> 0 | F30: 0 | G30: =-SUMIFS(СуммаОпераций,КатегорияОпераций,Расходы!$B30,ДатаОперации,">="&F$5,ДатаОперации,"<"&I$5) -> 0 | H30: =Расходы[[#This Row],[Февраль План]]-Расходы[[#This Row],[Февраль Факт]] -> 0 | I30: 0 | J30: =-SUMIFS(СуммаОпераций,КатегорияОпераций,Расходы!$B30,ДатаОперации,">="&I$5,ДатаОперации,"<"&L$5) -> 0 | K30: =Расходы[[#This Row],[Март План]]-Расходы[[#This Row],[Март Факт]] -> 0 | L30: 0 | M30: =-SUMIFS(СуммаОпераций,КатегорияОпераций,Расходы!$B30,ДатаОперации,">="&L$5,ДатаОперации,"<"&O$5) -> 0 | N30: =Расходы[[#This Row],[Апрель План]]-Расходы[[#This Row],[Апрель Факт]] -> 0 | O30: 0 | P30: =-SUMIFS(СуммаОпераций,КатегорияОпераций,Расходы!$B30,ДатаОперации,">="&O$5,ДатаОперации,"<"&R$5) -> 0 | Q30: =Расходы[[#This Row],[Май План]]-Расходы[[#This Row],[Май Факт]] -> 0 | R30: 0 | S30: =-SUMIFS(СуммаОпераций,КатегорияОпераций,Расходы!$B30,ДатаОперации,">="&R$5,ДатаОперации,"<"&U$5) -> 0 | T30: =Расходы[[#This Row],[Июнь План]]-Расходы[[#This Row],[Июнь Факт]] -> 0 | U30: 0 | V30: =-SUMIFS(СуммаОпераций,КатегорияОпераций,Расходы!$B30,ДатаОперации,">="&U$5,ДатаОперации,"<"&X$5) -> 0 | W30: =Расходы[[#This Row],[Июль План]]-Расходы[[#This Row],[Июль Факт]] -> 0 | X30: 0 | Y30: =-SUMIFS(СуммаОпераций,КатегорияОпераций,Расходы!$B30,ДатаОперации,">="&X$5,ДатаОперации,"<"&AA$5) -> 0 | Z30: =Расходы[[#This Row],[Август План]]-Расходы[[#This Row],[Август Факт]] -> 0 | AA30: 0 | AB30: =-SUMIFS(СуммаОпераций,КатегорияОпераций,Расходы!$B30,ДатаОперации,">="&AA$5,ДатаОперации,"<"&AD$5) -> 0 | AC30: =Расходы[[#This Row],[Сентябрь План]]-Расходы[[#This Row],[Сентябрь Факт]] -> 0 | AD30: 0 | AE30: =-SUMIFS(СуммаОпераций,КатегорияОпераций,Расходы!$B30,ДатаОперации,">="&AD$5,ДатаОперации,"<"&AG$5) -> 0 | AF30: =Расходы[[#This Row],[Октябрь План]]-Расходы[[#This Row],[Октябрь Факт]] -> 0 | AG30: 0 | AH30: =-SUMIFS(СуммаОпераций,КатегорияОпераций,Расходы!$B30,ДатаОперации,">="&AG$5,ДатаОперации,"<"&AJ$5) -> 0 | AI30: =Расходы[[#This Row],[Ноябрь План]]-Расходы[[#This Row],[Ноябрь Факт]] -> 0 | AJ30: 0 | AK30: =-SUMIFS(СуммаОпераций,КатегорияОпераций,Расходы!$B30,ДатаОперации,">="&AJ$5,ДатаОперации,"<"&DATE($B$4,13,1)) -> 0 | AL30: =Расходы[[#This Row],[Декабрь План]]-Расходы[[#This Row],[Декабрь Факт]] -> 0 | AM30: 0 | AN30: 0 | AO30: 0
B31: % по кредитам | D31: =-SUMIFS(СуммаОпераций,КатегорияОпераций,Расходы!$B31,ДатаОперации,">="&C$5,ДатаОперации,"<"&F$5) -> 0 | E31: =Расходы[[#This Row],[Январь План]]-Расходы[[#This Row],[Январь Факт]] -> 0 | G31: =-SUMIFS(СуммаОпераций,КатегорияОпераций,Расходы!$B31,ДатаОперации,">="&F$5,ДатаОперации,"<"&I$5) -> 0 | H31: =Расходы[[#This Row],[Февраль План]]-Расходы[[#This Row],[Февраль Факт]] -> 0 | J31: =-SUMIFS(СуммаОпераций,КатегорияОпераций,Расходы!$B31,ДатаОперации,">="&I$5,ДатаОперации,"<"&L$5) -> 0 | K31: =Расходы[[#This Row],[Март План]]-Расходы[[#This Row],[Март Факт]] -> 0 | M31: =-SUMIFS(СуммаОпераций,КатегорияОпераций,Расходы!$B31,ДатаОперации,">="&L$5,ДатаОперации,"<"&O$5) -> 0 | N31: =Расходы[[#This Row],[Апрель План]]-Расходы[[#This Row],[Апрель Факт]] -> 0 | P31: =-SUMIFS(СуммаОпераций,КатегорияОпераций,Расходы!$B31,ДатаОперации,">="&O$5,ДатаОперации,"<"&R$5) -> 0 | Q31: =Расходы[[#This Row],[Май План]]-Расходы[[#This Row],[Май Факт]] -> 0 | S31: =-SUMIFS(СуммаОпераций,КатегорияОпераций,Расходы!$B31,ДатаОперации,">="&R$5,ДатаОперации,"<"&U$5) -> 0 | T31: =Расходы[[#This Row],[Июнь План]]-Расходы[[#This Row],[Июнь Факт]] -> 0 | V31: =-SUMIFS(СуммаОпераций,КатегорияОпераций,Расходы!$B31,ДатаОперации,">="&U$5,ДатаОперации,"<"&X$5) -> 0 | W31: =Расходы[[#This Row],[Июль План]]-Расходы[[#This Row],[Июль Факт]] -> 0 | Y31: =-SUMIFS(СуммаОпераций,КатегорияОпераций,Расходы!$B31,ДатаОперации,">="&X$5,ДатаОперации,"<"&AA$5) -> 0 | Z31: =Расходы[[#This Row],[Август План]]-Расходы[[#This Row],[Август Факт]] -> 0 | AB31: =-SUMIFS(СуммаОпераций,КатегорияОпераций,Расходы!$B31,ДатаОперации,">="&AA$5,ДатаОперации,"<"&AD$5) -> 0 | AC31: =Расходы[[#This Row],[Сентябрь План]]-Расходы[[#This Row],[Сентябрь Факт]] -> 0 | AE31: =-SUMIFS(СуммаОпераций,КатегорияОпераций,Расходы!$B31,ДатаОперации,">="&AD$5,ДатаОперации,"<"&AG$5) -> 0 | AF31: =Расходы[[#This Row],[Октябрь План]]-Расходы[[#This Row],[Октябрь Факт]] -> 0 | AH31: =-SUMIFS(СуммаОпераций,КатегорияОпераций,Расходы!$B31,ДатаОперации,">="&AG$5,ДатаОперации,"<"&AJ$5) -> 0 | AI31: =Расходы[[#This Row],[Ноябрь План]]-Расходы[[#This Row],[Ноябрь Факт]] -> 0 | AK31: =-SUMIFS(СуммаОпераций,КатегорияОпераций,Расходы!$B31,ДатаОперации,">="&AJ$5,ДатаОперации,"<"&DATE($B$4,13,1)) -> 0 | AL31: =Расходы[[#This Row],[Декабрь План]]-Расходы[[#This Row],[Декабрь Факт]] -> 0 | AM31: 0 | AN31: 0 | AO31: 0
B32: Налоги | C32: 0 | D32: =-SUMIFS(СуммаОпераций,КатегорияОпераций,Расходы!$B32,ДатаОперации,">="&C$5,ДатаОперации,"<"&F$5) -> 0 | E32: =Расходы[[#This Row],[Январь План]]-Расходы[[#This Row],[Январь Факт]] -> 0 | F32: 0 | G32: =-SUMIFS(СуммаОпераций,КатегорияОпераций,Расходы!$B32,ДатаОперации,">="&F$5,ДатаОперации,"<"&I$5) -> 0 | H32: =Расходы[[#This Row],[Февраль План]]-Расходы[[#This Row],[Февраль Факт]] -> 0 | I32: 0 | J32: =-SUMIFS(СуммаОпераций,КатегорияОпераций,Расходы!$B32,ДатаОперации,">="&I$5,ДатаОперации,"<"&L$5) -> 0 | K32: =Расходы[[#This Row],[Март План]]-Расходы[[#This Row],[Март Факт]] -> 0 | L32: 0 | M32: =-SUMIFS(СуммаОпераций,КатегорияОпераций,Расходы!$B32,ДатаОперации,">="&L$5,ДатаОперации,"<"&O$5) -> 0 | N32: =Расходы[[#This Row],[Апрель План]]-Расходы[[#This Row],[Апрель Факт]] -> 0 | O32: 0 | P32: =-SUMIFS(СуммаОпераций,КатегорияОпераций,Расходы!$B32,ДатаОперации,">="&O$5,ДатаОперации,"<"&R$5) -> 0 | Q32: =Расходы[[#This Row],[Май План]]-Расходы[[#This Row],[Май Факт]] -> 0 | R32: 0 | S32: =-SUMIFS(СуммаОпераций,КатегорияОпераций,Расходы!$B32,ДатаОперации,">="&R$5,ДатаОперации,"<"&U$5) -> 0 | T32: =Расходы[[#This Row],[Июнь План]]-Расходы[[#This Row],[Июнь Факт]] -> 0 | U32: 0 | V32: =-SUMIFS(СуммаОпераций,КатегорияОпераций,Расходы!$B32,ДатаОперации,">="&U$5,ДатаОперации,"<"&X$5) -> 0 | W32: =Расходы[[#This Row],[Июль План]]-Расходы[[#This Row],[Июль Факт]] -> 0 | X32: 0 | Y32: =-SUMIFS(СуммаОпераций,КатегорияОпераций,Расходы!$B32,ДатаОперации,">="&X$5,ДатаОперации,"<"&AA$5) -> 0 | Z32: =Расходы[[#This Row],[Август План]]-Расходы[[#This Row],[Август Факт]] -> 0 | AA32: 0 | AB32: =-SUMIFS(СуммаОпераций,КатегорияОпераций,Расходы!$B32,ДатаОперации,">="&AA$5,ДатаОперации,"<"&AD$5) -> 0 | AC32: =Расходы[[#This Row],[Сентябрь План]]-Расходы[[#This Row],[Сентябрь Факт]] -> 0 | AD32: 0 | AE32: =-SUMIFS(СуммаОпераций,КатегорияОпераций,Расходы!$B32,ДатаОперации,">="&AD$5,ДатаОперации,"<"&AG$5) -> 0 | AF32: =Расходы[[#This Row],[Октябрь План]]-Расходы[[#This Row],[Октябрь Факт]] -> 0 | AG32: 0 | AH32: =-SUMIFS(СуммаОпераций,КатегорияОпераций,Расходы!$B32,ДатаОперации,">="&AG$5,ДатаОперации,"<"&AJ$5) -> 0 | AI32: =Расходы[[#This Row],[Ноябрь План]]-Расходы[[#This Row],[Ноябрь Факт]] -> 0 | AJ32: 0 | AK32: =-SUMIFS(СуммаОпераций,КатегорияОпераций,Расходы!$B32,ДатаОперации,">="&AJ$5,ДатаОперации,"<"&DATE($B$4,13,1)) -> 0 | AL32: =Расходы[[#This Row],[Декабрь План]]-Расходы[[#This Row],[Декабрь Факт]] -> 0 | AM32: 0 | AN32: 0 | AO32: 0
B33: Подарки, благотворительность | C33: 1500 | D33: =-SUMIFS(СуммаОпераций,КатегорияОпераций,Расходы!$B33,ДатаОперации,">="&C$5,ДатаОперации,"<"&F$5) -> 0 | E33: =Расходы[[#This Row],[Январь План]]-Расходы[[#This Row],[Январь Факт]] -> 1500 | F33: 1500 | G33: =-SUMIFS(СуммаОпераций,КатегорияОпераций,Расходы!$B33,ДатаОперации,">="&F$5,ДатаОперации,"<"&I$5) -> 0 | H33: =Расходы[[#This Row],[Февраль План]]-Расходы[[#This Row],[Февраль Факт]] -> 1500 | I33: 1500 | J33: =-SUMIFS(СуммаОпераций,КатегорияОпераций,Расходы!$B33,ДатаОперации,">="&I$5,ДатаОперации,"<"&L$5) -> 1690 | K33: =Расходы[[#This Row],[Март План]]-Расходы[[#This Row],[Март Факт]] -> -190 | L33: 1500 | M33: =-SUMIFS(СуммаОпераций,КатегорияОпераций,Расходы!$B33,ДатаОперации,">="&L$5,ДатаОперации,"<"&O$5) -> 0 | N33: =Расходы[[#This Row],[Апрель План]]-Расходы[[#This Row],[Апрель Факт]] -> 1500 | O33: 1500 | P33: =-SUMIFS(СуммаОпераций,КатегорияОпераций,Расходы!$B33,ДатаОперации,">="&O$5,ДатаОперации,"<"&R$5) -> 0 | Q33: =Расходы[[#This Row],[Май План]]-Расходы[[#This Row],[Май Факт]] -> 1500 | R33: 1500 | S33: =-SUMIFS(СуммаОпераций,КатегорияОпераций,Расходы!$B33,ДатаОперации,">="&R$5,ДатаОперации,"<"&U$5) -> 1690 | T33: =Расходы[[#This Row],[Июнь План]]-Расходы[[#This Row],[Июнь Факт]] -> -190 | U33: 1500 | V33: =-SUMIFS(СуммаОпераций,КатегорияОпераций,Расходы!$B33,ДатаОперации,">="&U$5,ДатаОперации,"<"&X$5) -> 0 | W33: =Расходы[[#This Row],[Июль План]]-Расходы[[#This Row],[Июль Факт]] -> 1500 | X33: 1500 | Y33: =-SUMIFS(СуммаОпераций,КатегорияОпераций,Расходы!$B33,ДатаОперации,">="&X$5,ДатаОперации,"<"&AA$5) -> 0 | Z33: =Расходы[[#This Row],[Август План]]-Расходы[[#This Row],[Август Факт]] -> 1500 | AA33: 1500 | AB33: =-SUMIFS(СуммаОпераций,КатегорияОпераций,Расходы!$B33,ДатаОперации,">="&AA$5,ДатаОперации,"<"&AD$5) -> 1690 | AC33: =Расходы[[#This Row],[Сентябрь План]]-Расходы[[#This Row],[Сентябрь Факт]] -> -190 | AD33: 1500 | AE33: =-SUMIFS(СуммаОпераций,КатегорияОпераций,Расходы!$B33,ДатаОперации,">="&AD$5,ДатаОперации,"<"&AG$5) -> 0 | AF33: =Расходы[[#This Row],[Октябрь План]]-Расходы[[#This Row],[Октябрь Факт]] -> 1500 | AG33: 1500 | AH33: =-SUMIFS(СуммаОпераций,КатегорияОпераций,Расходы!$B33,ДатаОперации,">="&AG$5,ДатаОперации,"<"&AJ$5) -> 0 | AI33: =Расходы[[#This Row],[Ноябрь План]]-Расходы[[#This Row],[Ноябрь Факт]] -> 1500 | AJ33: 1500 | AK33: =-SUMIFS(СуммаОпераций,КатегорияОпераций,Расходы!$B33,ДатаОперации,">="&AJ$5,ДатаОперации,"<"&DATE($B$4,13,1)) -> 1690 | AL33: =Расходы[[#This Row],[Декабрь План]]-Расходы[[#This Row],[Декабрь Факт]] -> -190 | AM33: 18000 | AN33: 6760 | AO33: 11240
B34: Сбережения | C34: 2250 | D34: =-SUMIFS(СуммаОпераций,КатегорияОпераций,Расходы!$B34,ДатаОперации,">="&C$5,ДатаОперации,"<"&F$5) -> 0 | E34: =Расходы[[#This Row],[Январь План]]-Расходы[[#This Row],[Январь Факт]] -> 2250 | F34: 2250 | G34: =-SUMIFS(СуммаОпераций,КатегорияОпераций,Расходы!$B34,ДатаОперации,">="&F$5,ДатаОперации,"<"&I$5) -> 0 | H34: =Расходы[[#This Row],[Февраль План]]-Расходы[[#This Row],[Февраль Факт]] -> 2250 | I34: 2250 | J34: =-SUMIFS(СуммаОпераций,КатегорияОпераций,Расходы!$B34,ДатаОперации,">="&I$5,ДатаОперации,"<"&L$5) -> 0 | K34: =Расходы[[#This Row],[Март План]]-Расходы[[#This Row],[Март Факт]] -> 2250 | L34: 2250 | M34: =-SUMIFS(СуммаОпераций,КатегорияОпераций,Расходы!$B34,ДатаОперации,">="&L$5,ДатаОперации,"<"&O$5) -> 0 | N34: =Расходы[[#This Row],[Апрель План]]-Расходы[[#This Row],[Апрель Факт]] -> 2250 | O34: 2250 | P34: =-SUMIFS(СуммаОпераций,КатегорияОпераций,Расходы!$B34,ДатаОперации,">="&O$5,ДатаОперации,"<"&R$5) -> 0 | Q34: =Расходы[[#This Row],[Май План]]-Расходы[[#This Row],[Май Факт]] -> 2250 | R34: 2250 | S34: =-SUMIFS(СуммаОпераций,КатегорияОпераций,Расходы!$B34,ДатаОперации,">="&R$5,ДатаОперации,"<"&U$5) -> 0 | T34: =Расходы[[#This Row],[Июнь План]]-Расходы[[#This Row],[Июнь Факт]] -> 2250 | U34: 2250 | V34: =-SUMIFS(СуммаОпераций,КатегорияОпераций,Расходы!$B34,ДатаОперации,">="&U$5,ДатаОперации,"<"&X$5) -> 0 | W34: =Расходы[[#This Row],[Июль План]]-Расходы[[#This Row],[Июль Факт]] -> 2250 | X34: 2250 | Y34: =-SUMIFS(СуммаОпераций,КатегорияОпераций,Расходы!$B34,ДатаОперации,">="&X$5,ДатаОперации,"<"&AA$5) -> 0 | Z34: =Расходы[[#This Row],[Август План]]-Расходы[[#This Row],[Август Факт]] -> 2250 | AA34: 2250 | AB34: =-SUMIFS(СуммаОпераций,КатегорияОпераций,Расходы!$B34,ДатаОперации,">="&AA$5,ДатаОперации,"<"&AD$5) -> 0 | AC34: =Расходы[[#This Row],[Сентябрь План]]-Расходы[[#This Row],[Сентябрь Факт]] -> 2250 | AD34: 2250 | AE34: =-SUMIFS(СуммаОпераций,КатегорияОпераций,Расходы!$B34,ДатаОперации,">="&AD$5,ДатаОперации,"<"&AG$5) -> 0 | AF34: =Расходы[[#This Row],[Октябрь План]]-Расходы[[#This Row],[Октябрь Факт]] -> 2250 | AG34: 2250 | AH34: =-SUMIFS(СуммаОпераций,КатегорияОпераций,Расходы!$B34,ДатаОперации,">="&AG$5,ДатаОперации,"<"&AJ$5) -> 0 | AI34: =Расходы[[#This Row],[Ноябрь План]]-Расходы[[#This Row],[Ноябрь Факт]] -> 2250 | AJ34: 2250 | AK34: =-SUMIFS(СуммаОпераций,КатегорияОпераций,Расходы!$B34,ДатаОперации,">="&AJ$5,ДатаОперации,"<"&DATE($B$4,13,1)) -> 0 | AL34: =Расходы[[#This Row],[Декабрь План]]-Расходы[[#This Row],[Декабрь Факт]] -> 2250 | AM34: 27000 | AN34: 0 | AO34: 27000
B35: Другое | C35: 0 | D35: =-SUMIFS(СуммаОпераций,КатегорияОпераций,Расходы!$B35,ДатаОперации,">="&C$5,ДатаОперации,"<"&F$5) -> 2054.09 | E35: =Расходы[[#This Row],[Январь План]]-Расходы[[#This Row],[Январь Факт]] -> -2054.09 | F35: 0 | G35: =-SUMIFS(СуммаОпераций,КатегорияОпераций,Расходы!$B35,ДатаОперации,">="&F$5,ДатаОперации,"<"&I$5) -> 2805.04 | H35: =Расходы[[#This Row],[Февраль План]]-Расходы[[#This Row],[Февраль Факт]] -> -2805.04 | I35: 0 | J35: =-SUMIFS(СуммаОпераций,КатегорияОпераций,Расходы!$B35,ДатаОперации,">="&I$5,ДатаОперации,"<"&L$5) -> 1778 | K35: =Расходы[[#This Row],[Март План]]-Расходы[[#This Row],[Март Факт]] -> -1778 | L35: 0 | M35: =-SUMIFS(СуммаОпераций,КатегорияОпераций,Расходы!$B35,ДатаОперации,">="&L$5,ДатаОперации,"<"&O$5) -> 2054.09 | N35: =Расходы[[#This Row],[Апрель План]]-Расходы[[#This Row],[Апрель Факт]] -> -2054.09 | O35: 0 | P35: =-SUMIFS(СуммаОпераций,КатегорияОпераций,Расходы!$B35,ДатаОперации,">="&O$5,ДатаОперации,"<"&R$5) -> 2805.04 | Q35: =Расходы[[#This Row],[Май План]]-Расходы[[#This Row],[Май Факт]] -> -2805.04 | R35: 0 | S35: =-SUMIFS(СуммаОпераций,КатегорияОпераций,Расходы!$B35,ДатаОперации,">="&R$5,ДатаОперации,"<"&U$5) -> 1778 | T35: =Расходы[[#This Row],[Июнь План]]-Расходы[[#This Row],[Июнь Факт]] -> -1778 | U35: 0 | V35: =-SUMIFS(СуммаОпераций,КатегорияОпераций,Расходы!$B35,ДатаОперации,">="&U$5,ДатаОперации,"<"&X$5) -> 2054.09 | W35: =Расходы[[#This Row],[Июль План]]-Расходы[[#This Row],[Июль Факт]] -> -2054.09 | X35: 0 | Y35: =-SUMIFS(СуммаОпераций,КатегорияОпераций,Расходы!$B35,ДатаОперации,">="&X$5,ДатаОперации,"<"&AA$5) -> 2805.04 | Z35: =Расходы[[#This Row],[Август План]]-Расходы[[#This Row],[Август Факт]] -> -2805.04 | AA35: 0 | AB35: =-SUMIFS(СуммаОпераций,КатегорияОпераций,Расходы!$B35,ДатаОперации,">="&AA$5,ДатаОперации,"<"&AD$5) -> 1778 | AC35: =Расходы[[#This Row],[Сентябрь План]]-Расходы[[#This Row],[Сентябрь Факт]] -> -1778 | AD35: 0 | AE35: =-SUMIFS(СуммаОпераций,КатегорияОпераций,Расходы!$B35,ДатаОперации,">="&AD$5,ДатаОперации,"<"&AG$5) -> 2054.09 | AF35: =Расходы[[#This Row],[Октябрь План]]-Расходы[[#This Row],[Октябрь Факт]] -> -2054.09 | AG35: 0 | AH35: =-SUMIFS(СуммаОпераций,КатегорияОпераций,Расходы!$B35,ДатаОперации,">="&AG$5,ДатаОперации,"<"&AJ$5) -> 2805.04 | AI35: =Расходы[[#This Row],[Ноябрь План]]-Расходы[[#This Row],[Ноябрь Факт]] -> -2805.04 | AJ35: 0 | AK35: =-SUMIFS(СуммаОпераций,КатегорияОпераций,Расходы!$B35,ДатаОперации,">="&AJ$5,ДатаОперации,"<"&DATE($B$4,13,1)) -> 1778 | AL35: =Расходы[[#This Row],[Декабрь План]]-Расходы[[#This Row],[Декабрь Факт]] -> -1778 | AM35: 0 | AN35: 26548.52 | AO35: -26548.52
B36: Итого | C36: =SUBTOTAL(109,Расходы[Январь План]) -> 34730 | D36: =SUBTOTAL(109,Расходы[Январь Факт]) -> 64809.44 | E36: =SUBTOTAL(109,Расходы[Январь Разница]) -> -30079.44 | F36: =SUBTOTAL(109,Расходы[Февраль План]) -> 34730 | G36: =SUBTOTAL(109,Расходы[Февраль Факт]) -> 66968.53 | H36: =SUBTOTAL(109,Расходы[Февраль Разница]) -> -35106.95 | I36: =SUBTOTAL(109,Расходы[Март План]) -> 34730 | J36: =SUBTOTAL(109,Расходы[Март Факт]) -> 166924.73 | K36: =SUBTOTAL(109,Расходы[Март Разница]) -> -41580.08 | L36: =SUBTOTAL(109,Расходы[Апрель План]) -> 34730 | M36: =SUBTOTAL(109,Расходы[Апрель Факт]) -> 64809.44 | N36: =SUBTOTAL(109,Расходы[Апрель Разница]) -> -30079.44 | O36: =SUBTOTAL(109,Расходы[Май План]) -> 34730 | P36: =SUBTOTAL(109,Расходы[Май Факт]) -> 66968.53 | Q36: =SUBTOTAL(109,Расходы[Май Разница]) -> -35106.95 | R36: =SUBTOTAL(109,Расходы[Июнь План]) -> 34730 | S36: =SUBTOTAL(109,Расходы[Июнь Факт]) -> 166924.73 | T36: =SUBTOTAL(109,Расходы[Июнь Разница]) -> -41580.08 | U36: =SUBTOTAL(109,Расходы[Июль План]) -> 34730 | V36: =SUBTOTAL(109,Расходы[Июль Факт]) -> 64809.44 | W36: =SUBTOTAL(109,Расходы[Июль Разница]) -> -30079.44 | X36: =SUBTOTAL(109,Расходы[Август План]) -> 34730 | Y36: =SUBTOTAL(109,Расходы[Август Факт]) -> 66968.53 | Z36: =SUBTOTAL(109,Расходы[Август Разница]) -> -35106.95 | AA36: =SUBTOTAL(109,Расходы[Сентябрь План]) -> 34730 | AB36: =SUBTOTAL(109,Расходы[Сентябрь Факт]) -> 166924.73 | AC36: =SUBTOTAL(109,Расходы[Сентябрь Разница]) -> -41580.08 | AD36: =SUBTOTAL(109,Расходы[Октябрь План]) -> 34730 | AE36: =SUBTOTAL(109,Расходы[Октябрь Факт]) -> 64809.44 | AF36: =SUBTOTAL(109,Расходы[Октябрь Разница]) -> -30079.44 | AG36: =SUBTOTAL(109,Расходы[Ноябрь План]) -> 34730 | AH36: =SUBTOTAL(109,Расходы[Ноябрь Факт]) -> 66968.53 | AI36: =SUBTOTAL(109,Расходы[Ноябрь Разница]) -> -35106.95 | AJ36: =SUBTOTAL(109,Расходы[Декабрь План]) -> 34730 | AK36: =SUBTOTAL(109,Расходы[Декабрь Факт]) -> 166924.73 | AL36: =SUBTOTAL(109,Расходы[Декабрь Разница]) -> -41580.08 | AM36: =SUBTOTAL(109,AM7:AM35) -> 416760 | AN36: =SUBTOTAL(109,AN7:AN35) -> 1194810.8 | AO36: =AM36-AN36 -> -778050.8
B58: Выберете месяц:
B59: Сентябрь

Sheet Баланс
B1: =Имя -> Михаил
B2: =BudgetTitle -> Личный бюджет
B4: =Год -> 2020
B5: Баланс | C5: Декабрь | D5: Январь | E5: Февраль | F5: Март | G5: Апрель | H5: Май | I5: Июнь | J5: Июль | K5: Август | L5: Сентябрь | M5: Октябрь | N5: Ноябрь | O5: Декабрь
C6: Факт | D6: Факт | E6: Факт | F6: Факт | G6: Факт | H6: Факт | I6: Факт | J6: Факт | K6: Факт | L6: Факт | M6: Факт | N6: Факт | O6: Факт
B7: Квартира | C7: 8000000 | D7: 8000000 | E7: 8000000 | F7: 8000000 | G7: 8000000 | H7: 8000000 | I7: 8000000 | J7: 8000000 | K7: 8000000 | L7: 8000000 | M7: 8000000 | N7: 8000000 | O7: 8000000
B8: Автомобиль | C8: 1200000 | D8: 1200000 | E8: 1200000 | F8: 1200000 | G8: 1200000 | H8: 1200000 | I8: 1200000 | J8: 1200000 | K8: 1200000 | L8: 1200000 | M8: 1200000 | N8: 1200000 | O8: 1200000
B9: Иное имущество | C9: 250000 | D9: 250000 | E9: 250000 | F9: 250000 | G9: 250000 | H9: 250000 | I9: 250000 | J9: 250000 | K9: 250000 | L9: 250000 | M9: 250000 | N9: 250000 | O9: 250000
B10: Итого основные активы | C10: =SUBTOTAL(109,Основные_активы[Факт Декабрь]) -> 9450000 | D10: =SUBTOTAL(109,Основные_активы[Факт Январь]) -> 9450000 | E10: =SUBTOTAL(109,Основные_активы[Факт Февраль]) -> 9450000 | F10: =SUBTOTAL(109,Основные_активы[Факт Март]) -> 9450000 | G10: =SUBTOTAL(109,Основные_активы[Факт Апрель]) -> 9450000 | H10: =SUBTOTAL(109,Основные_активы[Факт Май]) -> 9450000 | I10: =SUBTOTAL(109,Основные_активы[Факт Июнь]) -> 9450000 | J10: =SUBTOTAL(109,Основные_активы[Факт Июль]) -> 9450000 | K10: =SUBTOTAL(109,Основные_активы[Факт Август]) -> 9450000 | L10: =SUBTOTAL(109,Основные_активы[Факт Сентябрь]) -> 9450000 | M10: =SUBTOTAL(109,Основные_активы[Факт Октябрь]) -> 9450000 | N10: =SUBTOTAL(109,Основные_активы[Факт Ноябрь]) -> 9450000 | O10: =SUBTOTAL(109,Основные_активы[Факт Декабрь2]) -> 9450000
B12: Остатки на счетах | C12: 20000 | D12: =C12+'Движение денежных средств'!$D$11*0.4 -> 29343.04 | E12: =D12+'Движение денежных средств'!$G$11*0.4 -> 39357.504 | F12: =E12+'Движение денежных средств'!$J$11*0.4 -> 9621.132 | G12: =F12+'Движение денежных средств'!$M$11*0.4 -> 18964.172 | H12: =G12+'Движение денежных средств'!$P$11*0.4 -> 28978.636 | I12: =H12+'Движение денежных средств'!$S$11*0.3 -> 6676.357 | J12: =I12+'Движение денежных средств'!$V$11*0.4 -> 16019.397 | K12: =J12+'Движение денежных средств'!$Y$11*0.4 -> 26033.861 | L12: =K12+'Движение денежных средств'!$AB$11*0.2 -> 11165.675 | M12: =L12+'Движение денежных средств'!$AE$11*0.4 -> 20508.715 | N12: =M12+'Движение денежных средств'!$AH$11*0.4 -> 30523.179 | O12: =N12+'Движение денежных средств'!$AK$11*0.4 -> 786.807
B13: Финансовые вложения | C13: 100000 | D13: =C13+'Движение денежных средств'!$D$11*0.4 -> 109343.04 | E13: =D13+'Движение денежных средств'!$G$11*0.4 -> 119357.504 | F13: =E13+'Движение денежных средств'!$J$11*0.5 -> 82187.039 | G13: =F13+'Движение денежных средств'!$M$11*0.4 -> 91530.079 | H13: =G13+'Движение денежных средств'!$P$11*0.4 -> 101544.543 | I13: =H13+'Движение денежных средств'!$S$11*0.6 -> 56939.985 | J13: =I13+'Движение денежных средств'!$V$11*0.4 -> 66283.025 | K13: =J13+'Движение денежных средств'!$Y$11*0.4 -> 76297.489 | L13: =K13+'Движение денежных средств'!$AB$11*0.7 -> 24258.838 | M13: =L13+'Движение денежных средств'!$AE$11*0.4 -> 33601.878 | N13: =M13+'Движение денежных средств'!$AH$11*0.4 -> 43616.342 | O13: =N13+'Движение денежных средств'!$AK$11*0.5 -> 6445.877
B14: Наличные | C14: 20000 | D14: =C14+'Движение денежных средств'!$D$11*0.1 -> 22335.76 | E14: =D14+'Движение денежных средств'!$G$11*0.1 -> 24839.376 | F14: =E14+'Движение денежных средств'!$J$11*0.1 -> 17405.283 | G14: =F14+'Движение денежных средств'!$M$11*0.1 -> 19741.043 | H14: =G14+'Движение денежных средств'!$P$11*0.1 -> 22244.659 | I14: =H14+'Движение денежных средств'!$S$11*0.1 -> 14810.566 | J14: =I14+'Движение денежных средств'!$V$11*0.1 -> 17146.326 | K14: =J14+'Движение денежных средств'!$Y$11*0.1 -> 19649.942 | L14: =K14+'Движение денежных средств'!$AB$11*0.1 -> 12215.849 | M14: =L14+'Движение денежных средств'!$AE$11*0.1 -> 14551.609 | N14: =M14+'Движение денежных средств'!$AH$11*0.1 -> 17055.225 | O14: =N14+'Движение денежных средств'!$AK$11*0.1 -> 9621.132
B15: Итого оборотные активы | C15: =SUBTOTAL(109,Оборотные_активы[Факт Декабрь]) -> 140000 | D15: =SUBTOTAL(109,Оборотные_активы[Факт Январь]) -> 161021.84 | E15: =SUBTOTAL(109,Оборотные_активы[Факт Февраль]) -> 183554.384 | F15: =SUBTOTAL(109,Оборотные_активы[Факт Март]) -> 109213.454 | G15: =SUBTOTAL(109,Оборотные_активы[Факт Апрель]) -> 130235.294 | H15: =SUBTOTAL(109,Оборотные_активы[Факт Май]) -> 152767.838 | I15: =SUBTOTAL(109,Оборотные_активы[Факт Июнь]) -> 78426.908 | J15: =SUBTOTAL(109,Оборотные_активы[Факт Июль]) -> 99448.748 | K15: =SUBTOTAL(109,Оборотные_активы[Факт Август]) -> 121981.292 | L15: =SUBTOTAL(109,Оборотные_активы[Факт Сентябрь]) -> 47640.362 | M15: =SUBTOTAL(109,Оборотные_активы[Факт Октябрь]) -> 68662.202 | N15: =SUBTOTAL(109,Оборотные_активы[Факт Ноябрь]) -> 91194.746 | O15: =SUBTOTAL(109,Оборотные_активы[Факт Декабрь2]) -> 16853.816
B16: Итого активы | C16: =Оборотные_активы[[#Totals],[Факт Декабрь]]+Основные_активы[[#Totals],[Факт Декабрь]] -> 9590000 | D16: =Оборотные_активы[[#Totals],[Факт Январь]]+Основные_активы[[#Totals],[Факт Январь]] -> 9611021.84 | E16: =Оборотные_активы[[#Totals],[Факт Февраль]]+Основные_активы[[#Totals],[Факт Февраль]] -> 9633554.384 | F16: =Оборотные_активы[[#Totals],[Факт Март]]+Основные_активы[[#Totals],[Факт Март]] -> 9559213.454 | G16: =Оборотные_активы[[#Totals],[Факт Апрель]]+Основные_активы[[#Totals],[Факт Апрель]] -> 9580235.294 | H16: =Оборотные_активы[[#Totals],[Факт Май]]+Основные_активы[[#Totals],[Факт Май]] -> 9602767.838 | I16: =Оборотные_активы[[#Totals],[Факт Июнь]]+Основные_активы[[#Totals],[Факт Июнь]] -> 9528426.908 | J16: =Оборотные_активы[[#Totals],[Факт Июль]]+Основные_активы[[#Totals],[Факт Июль]] -> 9549448.748 | K16: =Оборотные_активы[[#Totals],[Факт Август]]+Основные_активы[[#Totals],[Факт Август]] -> 9571981.292 | L16: =Оборотные_активы[[#Totals],[Факт Сентябрь]]+Основные_активы[[#Totals],[Факт Сентябрь]] -> 9497640.362 | M16: =Оборотные_активы[[#Totals],[Факт Октябрь]]+Основные_активы[[#Totals],[Факт Октябрь]] -> 9518662.202 | N16: =Оборотные_активы[[#Totals],[Факт Ноябрь]]+Основные_активы[[#Totals],[Факт Ноябрь]] -> 9541194.746 | O16: =Оборотные_активы[[#Totals],[Факт Декабрь2]]+Основные_активы[[#Totals],[Факт Декабрь2]] -> 9466853.816
B18: Собственный капитал | C18: =C16-C19-C20 -> 6290000 | D18: =D16-D19-D20 -> 6313357.6 | E18: =E16-E19-E20 -> 6338393.76 | F18: 6264052.83 | G18: =G16-G19-G20 -> 6287410.43 | H18: 6312446.59 | I18: 6238105.66 | J18: 6261463.26 | K18: 6286499.42 | L18: 6212158.49 | M18: 6235516.09 | N18: 6260552.25 | O18: 6186211.32
B19: Краткосрочные кредиты | C19: =C25 -> 300000 | D19: =D25 -> 297664.24 | E19: =E25 -> 295160.624 | F19: 295160.624 | G19: =G25 -> 292824.864 | H19: 290321.248 | I19: =I25 -> 290321.248 | J19: 287985.488 | K19: =K25 -> 285481.872 | L19: 285481.872 | M19: 283146.112 | N19: 280642.496 | O19: 280642.496
B20: Долгосрочные кредиты | C20: =C30 -> 3000000 | D20: =D30 -> 3000000 | E20: =E30 -> 3000000 | F20: 3000000 | G20: =G30 -> 3000000 | H20: 3000000 | I20: 3000000 | J20: 3000000 | K20: 3000000 | L20: 3000000 | M20: 3000000 | N20: 3000000 | O20: 3000000
B21: Итого пассивы | C21: =SUM(C18:C20) -> 9590000 | D21: =SUM(D18:D20) -> 9611021.84 | E21: =SUM(E18:E20) -> 9633554.384 | F21: 9559213.454 | G21: 9580235.294 | H21: 9602767.838 | I21: 9528426.908 | J21: 9549448.748 | K21: 9571981.292 | L21: 9497640.362 | M21: 9518662.202 | N21: 9541194.746 | O21: 9466853.816
B24: Кредиты и займы
B25: Остаток по краткосрочным кредитам | C25: 300000 | D25: =C25-'Движение денежных средств'!$D$11*0.1 -> 297664.24 | E25: =D25-'Движение денежных средств'!$G$11*0.1 -> 295160.624 | F25: =E25 -> 295160.624 | G25: =F25-'Движение денежных средств'!$M$11*0.1 -> 292824.864 | H25: =G25-'Движение денежных средств'!$P$11*0.1 -> 290321.248 | I25: =H25 -> 290321.248 | J25: =I25-'Движение денежных средств'!$V$11*0.1 -> 287985.488 | K25: =J25-'Движение денежных средств'!$Y$11*0.1 -> 285481.872 | L25: 285481.872 | M25: =L25-'Движение денежных средств'!$AE$11*0.1 -> 283146.112 | N25: =M25-'Движение денежных средств'!$AH$11*0.1 -> 280642.496 | O25: 280642.496
B26: Ежемесячные выплаты по кредитам | C26: =C28 -> 5000 | D26: =D28 -> 4961.070667 | E26: 4919.343733 | F26: =F28 -> 4919.343733 | G26: 4880.4144 | H26: 4838.687467 | I26: 4838.687467 | J26: 4799.758133 | K26: 4758.0312 | L26: 4758.0312 | M26: 4719.101867 | N26: 4677.374933 | O26: 4677.374933
B27: Ставка % (в месяц) по краткосрочным кредитам | C27: 0.2 | D27: 0.2 | E27: 0.2 | F27: 0.2 | G27: 0.2 | H27: 0.2 | I27: 0.2 | J27: 0.2 | K27: 0.2 | L27: 0.2 | M27: 0.2 | N27: 0.2 | O27: 0.2
B28: Расчет процентов по краткосрочным кредитам | C28: =C25*C27/12 -> 5000 | D28: =D25*D27/12 -> 4961.070667 | E28: =E25*E27/12 -> 4919.343733 | F28: =F25*F27/12 -> 4919.343733 | G28: =G25*G27/12 -> 4880.4144 | H28: 4838.687467 | I28: 4838.687467 | J28: =J25*J27/12 -> 4799.758133 | K28: 4758.0312 | L28: =L25*L27/12 -> 4758.0312 | M28: =M25*M27/12 -> 4719.101867 | N28: 4677.374933 | O28: 4677.374933
B30: Остаток по долгосрочным кредитам | C30: 3000000 | D30: =C30 -> 3000000 | E30: =D30 -> 3000000 | F30: 3000000 | G30: 3000000 | H30: 3000000 | I30: 3000000 | J30: 3000000 | K30: 3000000 | L30: 3000000 | M30: 3000000 | N30: 3000000 | O30: 3000000
B31: Ежемесячные выплаты по кредитам | C31: =C33 -> 30000 | D31: =D33 -> 30000 | E31: 30000 | F31: =F33 -> 30000 | G31: 30000 | H31: 30000 | I31: 30000 | J31: 30000 | K31: 30000 | L31: 30000 | M31: 30000 | N31: 30000 | O31: 30000
B32: Ставка % (в месяц) по долгосрочным кредитам | C32: 0.12 | D32: 0.12 | E32: 0.12 | F32: 0.12 | G32: 0.12 | H32: 0.12 | I32: 0.12 | J32: 0.12 | K32: 0.12 | L32: 0.12 | M32: 0.12 | N32: 0.12 | O32: 0.12
B33: Расчет процентов по долгосрочным кредитам | C33: =C30*C32/12 -> 30000 | D33: =D30*D32/12 -> 30000 | E33: 30000 | F33: 30000 | G33: =G30*G32/12 -> 30000 | H33: 30000 | I33: 30000 | J33: 30000 | K33: 30000 | L33: 30000 | M33: 30000 | N33: 30000 | O33: 30000
B36: Финансовые вложения
B37: Депозит 1 | C37: =C13 -> 100000 | D37: =D13 -> 109343.04 | E37: 119357.504 | F37: 82187.039 | G37: 91530.079 | H37: 101544.543 | I37: 56939.985 | J37: 66283.025 | K37: 76297.489 | L37: 24258.838 | M37: 33601.878 | N37: 43616.342 | O37: 6445.877
B38: Ставка, % в месяц | C38: 0.07 | D38: 0.07 | E38: 0.07 | F38: 0.07 | G38: 0.07 | H38: 0.07 | I38: 0.07 | J38: 0.07 | K38: 0.07 | L38: 0.07 | M38: 0.07 | N38: 0.07 | O38: 0.07
B39: Доходы от вложений | C39: =C37*C38/12 -> 583.3333333 | D39: =D37*D38/12 -> 637.8344 | E39: 696.2521067 | F39: 479.4243942 | G39: 533.9254608 | H39: 592.3431675 | I39: 332.1499125 | J39: 386.6509792 | K39: 445.0686858 | L39: 141.5098883 | M39: 196.010955 | N39: 254.4286617 | O39: 37.60094917
B42: Доходность основных активов
B43: Чистый финансовый результат, руб. | D43: ='Движение денежных средств'!D11 -> 23357.6 | E43: ='Движение денежных средств'!G11 -> 25036.16 | F43: ='Движение денежных средств'!J11 -> -74340.93 | G43: ='Движение денежных средств'!M11 -> 23357.6 | H43: ='Движение денежных средств'!P11 -> 25036.16 | I43: ='Движение денежных средств'!S11 -> -74340.93 | J43: ='Движение денежных средств'!V11 -> 23357.6 | K43: ='Движение денежных средств'!Y11 -> 25036.16 | L43: ='Движение денежных средств'!AB11 -> -74340.93 | M43: ='Движение денежных средств'!AE11 -> 23357.6 | N43: ='Движение денежных средств'!AH11 -> 25036.16 | O43: ='Движение денежных средств'!AK11 -> -74340.93
B44: Доходность основных активов, % годовых | D44: =D43/Основные_активы[[#Totals],[Факт Январь]]*12 -> 0.02966044444 | E44: =E43/Основные_активы[[#Totals],[Факт Январь]]*12 -> 0.03179194921 | F44: =F43/Основные_активы[[#Totals],[Факт Январь]]*12 -> -0.09440118095 | G44: =G43/Основные_активы[[#Totals],[Факт Январь]]*12 -> 0.02966044444 | H44: =H43/Основные_активы[[#Totals],[Факт Январь]]*12 -> 0.03179194921 | I44: =I43/Основные_активы[[#Totals],[Факт Январь]]*12 -> -0.09440118095 | J44: =J43/Основные_активы[[#Totals],[Факт Январь]]*12 -> 0.02966044444 | K44: =K43/Основные_активы[[#Totals],[Факт Январь]]*12 -> 0.03179194921 | L44: =L43/Основные_активы[[#Totals],[Факт Январь]]*12 -> -0.09440118095 | M44: =M43/Основные_активы[[#Totals],[Факт Январь]]*12 -> 0.02966044444 | N44: =N43/Основные_активы[[#Totals],[Факт Январь]]*12 -> 0.03179194921 | O44: =O43/Основные_активы[[#Totals],[Факт Январь]]*12 -> -0.09440118095

Sheet Соответствия статей (hidden)
A1: Категория Тинькофф | B1: Категория Расходы | C1: Список уникальных статей
A2: Сервис. услуги | B2: Другое | C2: Другое | D2: Банк | E2: Январь | F2: D
A3: Финан. услуги | B3: Переводы | C3: Переводы | D3: Наличные | E3: Февраль | F3: G
A4: Переводы | B4: Переводы | C4: Медицина | E4: Март | F4: J
A5: Разные товары | B5: Другое | C5: Продукты | E5: Апрель | F5: M
A6: Аптеки | B6: Медицина | C6: Снятие наличных | E6: Май | F6: P
A7: Супермаркеты | B7: Продукты | C7: Телефонная связь | E7: Июнь | F7: S
A8: Другое | B8: Другое | C8: Транспорт | E8: Июль | F8: V
A9: Наличные | B9: Снятие наличных | C9: Поездки | E9: Август | F9: Y
A10: Мобильные/иб | B10: Телефонная связь | C10: Рестораны | E10: Сентябрь | F10: AB
A11: Транспорт | B11: Транспорт | C11: Подарки, благотворительность | E11: Октябрь | F11: AE
A12: Авиабилеты | B12: Поездки | C12: Коммунальные услуги | E12: Ноябрь | F12: AH
A13: Ж/д билеты | B13: Поездки | C13: Одежда и обувь | E13: Декабрь | F13: AK
A14: Фастфуд | B14: Рестораны | C14: Товары для дома, ремонта
A15: Сувениры | B15: Подарки, благотворительность | C15: Обучение
A16: Мед. услуги | B16: Медицина | C16: Развлечения
A17: Жкх/иб | B17: Коммунальные услуги | C17: Услуги для внешнего вида
A18: Рестораны | B18: Рестораны | C18: Топливо
A19: Одежда, обувь | B19: Одежда и обувь | C19: Интернет
A20: Дом, ремонт | B20: Товары для дома, ремонта | C20: Жилье
A21: Книги | B21: Обучение | C21: Телевидение
A22: Цветы | B22: Подарки, благотворительность | C22: Ремонт, техническое обслуживание
A23: Кино | B23: Развлечения | C23: Уход за ребенком
A24: Переводы/иб | B24: Переводы | C24: Домашние животные
A25: ДРУГИЕ ОПЕРАЦИИ | B25: Другое | C25: Налоги
A26: Гос. сборы | B26: Другое | C26: % по кредитам
A27: Фото/видео | B27: Другое | C27: Сбережения
A28: Развлечения | B28: Развлечения | C28: Страхование
A29: Красота | B29: Услуги для внешнего вида | C29: Кредитные карты
A30: Музыка | B30: Развлечения | C30: Выплата тела кредита
A31: Топливо | B31: Топливо | C31: Заработная плата
A32: Отели | B32: Поездки | C32: Оплата за преподавание
A33: Интернет | B33: Интернет | C33: Прочие доходы
B34: Жилье | C34: Дивиденды
A35: Обучение | B35: Обучение | C35: Проценты по вкладам
B36: Телевидение
B37: Ремонт, техническое обслуживание
B38: Уход за ребенком
A39: Животные | B39: Домашние животные
B40: Налоги
B41: % по кредитам
B42: Сбережения
B43: Страхование
B44: Кредитные карты
B45: Выплата тела кредита
A46: Заработная плата | B46: Заработная плата
A47: Оплата за преподавание | B47: Оплата за преподавание
A48: Прочие доходы | B48: Прочие доходы
A49: Дивиденды | B49: Дивиденды
A50: Проценты по вкладам | B50: Проценты по вкладам

Sheet Отчет по операциям
A1: Дата операции | B1: Дата платежа | C1: Номер карты | D1: Статус | E1: Сумма операции | F1: Валюта операции | G1: Сумма платежа | H1: Валюта платежа | I1: Кэшбэк | J1: Категория | K1: MCC | L1: Описание | M1: Бонусы (включая кэшбэк) | N1: Статья расходов/доходов | O1: Банк/наличные | P1: Доход/Расход
A2: 2020-03-31T23:08:49 | B2: 2020-04-02 | C2: *7127 | D2: OK | E2: -400 | F2: RUB | G2: -400 | H2: RUB | J2: Сервис. услуги | K2: 7311 | L2: Y.M*youdo | M2: 0 | N2: =IFERROR(IF(A2="","",VLOOKUP(J2,'Соответствия статей'!$A$2:$B$50,2,0)),"Другое") -> Другое | O2: Банк | P2: Расход
A3: 2020-03-31T19:55:21 | B3: 2020-04-01 | C3: *7127 | D3: OK | E3: -100 | F3: RUB | G3: -100 | H3: RUB | J3: Сервис. услуги | K3: 7361 | L3: PayMaster | M3: 1 | N3: =IFERROR(IF(A3="","",VLOOKUP(J3,'Соответствия статей'!$A$2:$B$50,2,0)),"Другое") -> Другое | O3: Банк | P3: Расход
A4: 2020-03-31T17:06:30 | B4: 2020-04-02 | C4: *7127 | D4: OK | E4: -206.55 | F4: RUB | G4: -206.55 | H4: RUB | J4: Аптеки | K4: 5912 | L4: Аптека 36,6 | M4: 2 | N4: =IFERROR(IF(A4="","",VLOOKUP(J4,'Соответствия статей'!$A$2:$B$50,2,0)),"Другое") -> Медицина | O4: Банк | P4: Расход
A5: 2020-03-31T16:36:49 | B5: 2020-04-02 | C5: *7127 | D5: OK | E5: -559 | F5: RUB | G5: -559 | H5: RUB | J5: Аптеки | K5: 5912 | L5: Аптеки Первая Помощь | M5: 5 | N5: =IFERROR(IF(A5="","",VLOOKUP(J5,'Соответствия статей'!$A$2:$B$50,2,0)),"Другое") -> Медицина | O5: Банк | P5: Расход
A6: 2020-03-31T16:26:24 | B6: 2020-04-02 | C6: *7127 | D6: OK | E6: -215.98 | F6: RUB | G6: -215.98 | H6: RUB | J6: Супермаркеты | K6: 5411 | L6: Семишагофф | M6: 2 | N6: =IFERROR(IF(A6="","",VLOOKUP(J6,'Соответствия статей'!$A$2:$B$50,2,0)),"Другое") -> Продукты | O6: Банк | P6: Расход
A7: 2020-03-31T13:17:30 | B7: 2020-03-31 | C7: *7127 | D7: OK | E7: 209 | F7: RUB | G7: 209 | H7: RUB | J7: Прочие доходы | L7: Компенсация покупки | M7: 0 | N7: =IFERROR(IF(A7="","",VLOOKUP(J7,'Соответствия статей'!$A$2:$B$50,2,0)),"Другое") -> Прочие доходы | O7: Банк | P7: Доход
A8: 2020-03-31T13:17:13 | B8: 2020-03-31 | C8: *7127 | D8: OK | E8: 200 | F8: RUB | G8: 200 | H8: RUB | J8: Прочие доходы | L8: Компенсация покупки | M8: 0 | N8: =IFERROR(IF(A8="","",VLOOKUP(J8,'Соответствия статей'!$A$2:$B$50,2,0)),"Другое") -> Прочие доходы | O8: Банк | P8: Доход
A9: 2020-03-31T13:17:00 | B9: 2020-03-31 | C9: *7127 | D9: OK | E9: 200 | F9: RUB | G9: 200 | H9: RUB | J9: Прочие доходы | L9: Компенсация покупки | M9: 0 | N9: =IFERROR(IF(A9="","",VLOOKUP(J9,'Соответствия статей'!$A$2:$B$50,2,0)),"Другое") -> Прочие доходы | O9: Банк | P9: Доход
A10: 2020-03-31T13:16:26 | B10: 2020-03-31 | C10: *7127 | D10: OK | E10: 265 | F10: RUB | G10: 265 | H10: RUB | J10: Прочие доходы | L10: Компенсация покупки | M10: 0 | N10: =IFERROR(IF(A10="","",VLOOKUP(J10,'Соответствия статей'!$A$2:$B$50,2,0)),"Другое") -> Прочие доходы | O10: Банк | P10: Доход
A11: 2020-03-31T13:16:08 | B11: 2020-03-31 | C11: *7127 | D11: OK | E11: 250 | F11: RUB | G11: 250 | H11: RUB | J11: Прочие доходы | L11: Компенсация покупки | M11: 0 | N11: =IFERROR(IF(A11="","",VLOOKUP(J11,'Соответствия статей'!$A$2:$B$50,2,0)),"Другое") -> Прочие доходы | O11: Банк | P11: Доход
A12: 2020-03-31T13:15:48 | B12: 2020-03-31 | C12: *7127 | D12: OK | E12: 240 | F12: RUB | G12: 240 | H12: RUB | J12: Прочие доходы | L12: Компенсация покупки | M12: 0 | N12: =IFERROR(IF(A12="","",VLOOKUP(J12,'Соответствия статей'!$A$2:$B$50,2,0)),"Другое") -> Прочие доходы | O12: Банк | P12: Доход
A13: 2020-03-30T22:33:51 | B13: 2020-03-30 | D13: OK | E13: -59 | F13: RUB | G13: -59 | H13: RUB | J13: Другое | L13: Плата за оповещения об операциях | M13: 0 | N13: =IFERROR(IF(A13="","",VLOOKUP(J13,'Соответствия статей'!$A$2:$B$50,2,0)),"Другое") -> Другое | O13: Банк | P13: Расход
A14: 2020-03-27T09:09:31 | B14: 2020-03-30 | C14: *7127 | D14: OK | E14: -3764 | F14: RUB | G14: -3764 | H14: RUB | J14: Супермаркеты | K14: 5411 | L14: Перекресток | M14: 37 | N14: =IFERROR(IF(A14="","",VLOOKUP(J14,'Соответствия статей'!$A$2:$B$50,2,0)),"Другое") -> Продукты | O14: Банк | P14: Расход
A15: 2020-03-25T17:54:29 | B15: 2020-03-27 | C15: *8173 | D15: OK | E15: -507.75 | F15: RUB | G15: -507.75 | H15: RUB | I15: 5 | J15: Супермаркеты | K15: 5411 | L15: Перекресток | M15: 5 | N15: =IFERROR(IF(A15="","",VLOOKUP(J15,'Соответствия статей'!$A$2:$B$50,2,0)),"Другое") -> Продукты | O15: Банк | P15: Расход
A16: 2020-03-25T17:42:43 | B16: 2020-03-25 | C16: *8173 | D16: OK | E16: -130000 | F16: RUB | G16: -130000 | H16: RUB | J16: Наличные | K16: 6011 | L16: Банкомат Тинькофф | M16: 0 | N16: =IFERROR(IF(A16="","",VLOOKUP(J16,'Соответствия статей'!$A$2:$B$50,2,0)),"Другое") -> Снятие наличных | O16: Банк | P16: Расход
A17: 2020-03-24T21:27:51 | B17: 2020-03-25 | C17: *7127 | D17: OK | E17: -100 | F17: RUB | G17: -100 | H17: RUB | J17: Мобильные/иб | L17: Ростелеком Мобильная связь +79932213431 | M17: 0 | N17: =IFERROR(IF(A17="","",VLOOKUP(J17,'Соответствия статей'!$A$2:$B$50,2,0)),"Другое") -> Телефонная связь | O17: Банк | P17: Расход
A18: 2020-03-24T20:41:12 | B18: 2020-03-26 | C18: *7127 | D18: OK | E18: -264.79 | F18: RUB | G18: -264.79 | H18: RUB | J18: Супермаркеты | K18: 5411 | L18: Дикси | M18: 2 | N18: =IFERROR(IF(A18="","",VLOOKUP(J18,'Соответствия статей'!$A$2:$B$50,2,0)),"Другое") -> Продукты | O18: Банк | P18: Расход
A19: 2020-03-24T20:25:04 | B19: 2020-03-26 | C19: *7127 | D19: OK | E19: -946 | F19: RUB | G19: -946 | H19: RUB | J19: Аптеки | K19: 5912 | L19: Озерки | M19: 9 | N19: =IFERROR(IF(A19="","",VLOOKUP(J19,'Соответствия статей'!$A$2:$B$50,2,0)),"Другое") -> Медицина | O19: Банк | P19: Расход
A20: 2020-03-23T23:13:50 | B20: 2020-03-23 | D20: OK | E20: -99 | F20: RUB | G20: -99 | H20: RUB | J20: Другое | L20: Плата за обслуживание | M20: 0 | N20: =IFERROR(IF(A20="","",VLOOKUP(J20,'Соответствия статей'!$A$2:$B$50,2,0)),"Другое") -> Другое | O20: Банк | P20: Расход
A21: 2020-03-23T22:49:06 | B21: 2020-03-23 | D21: OK | E21: 227 | F21: RUB | G21: 227 | H21: RUB | J21: Прочие доходы | L21: Вознаграждение за операции покупок | M21: 0 | N21: =IFERROR(IF(A21="","",VLOOKUP(J21,'Соответствия статей'!$A$2:$B$50,2,0)),"Другое") -> Прочие доходы | O21: Банк | P21: Доход
A22: 2020-03-23T22:37:43 | B22: 2020-03-25 | C22: *8173 | D22: OK | E22: -101 | F22: RUB | G22: -101 | H22: RUB | I22: 5 | J22: Транспорт | K22: 4121 | L22: Uber | M22: 5 | N22: =IFERROR(IF(A22="","",VLOOKUP(J22,'Соответствия статей'!$A$2:$B$50,2,0)),"Другое") -> Транспорт | O22: Банк | P22: Расход
A23: 2020-03-23T22:07:34 | B23: 2020-03-25 | C23: *7127 | D23: OK | E23: -1856.58 | F23: RUB | G23: -1856.58 | H23: RUB | J23: Супермаркеты | K23: 5411 | L23: Перекресток | M23: 18 | N23: =IFERROR(IF(A23="","",VLOOKUP(J23,'Соответствия статей'!$A$2:$B$50,2,0)),"Другое") -> Продукты | O23: Банк | P23: Расход
A24: 2020-03-23T21:46:03 | B24: 2020-03-23 | D24: OK | E24: 239.78 | F24: RUB | G24: 239.78 | H24: RUB | J24: Прочие доходы | L24: Проценты на остаток по счету | M24: 0 | N24: =IFERROR(IF(A24="","",VLOOKUP(J24,'Соответствия статей'!$A$2:$B$50,2,0)),"Другое") -> Прочие доходы | O24: Банк | P24: Доход
A25: 2020-03-23T19:55:17 | B25: 2020-03-23 | C25: *8173 | D25: OK | E25: 900 | F25: RUB | G25: 900 | H25: RUB | J25: Прочие доходы | L25: Иван Ш. | M25: 0 | N25: =IFERROR(IF(A25="","",VLOOKUP(J25,'Соответствия статей'!$A$2:$B$50,2,0)),"Другое") -> Прочие доходы | O25: Банк | P25: Доход
A26: 2020-03-23T14:12:48 | B26: 2020-03-24 | C26: *7127 | D26: OK | E26: 48751 | F26: RUB | G26: 48751 | H26: RUB | J26: Супермаркеты | K26: 5411 | L26: Ozon.ru | M26: -487 | N26: =IFERROR(IF(A26="","",VLOOKUP(J26,'Соответствия статей'!$A$2:$B$50,2,0)),"Другое") -> Продукты | O26: Банк | P26: Расход
A27: 2020-03-23T14:02:37 | B27: 2020-03-24 | C27: *7127 | D27: OK | E27: -48751 | F27: RUB | G27: -48751 | H27: RUB | J27: Супермаркеты | K27: 5411 | L27: Ozon.ru | M27: 487 | N27: =IFERROR(IF(A27="","",VLOOKUP(J27,'Соответствия статей'!$A$2:$B$50,2,0)),"Другое") -> Продукты | O27: Банк | P27: Расход
A28: 2020-03-22T14:59:46 | B28: 2020-03-24 | C28: *8173 | D28: OK | E28: -100 | F28: RUB | G28: -100 | H28: RUB | I28: 5 | J28: Транспорт | K28: 4111 | L28: Метро Санкт-Петербург | M28: 5 | N28: =IFERROR(IF(A28="","",VLOOKUP(J28,'Соответствия статей'!$A$2:$B$50,2,0)),"Другое") -> Транспорт | O28: Банк | P28: Расход
A29: 2020-03-22T04:43:15 | B29: 2020-03-23 | C29: *7127 | D29: OK | E29: 300 | F29: RUB | G29: 300 | H29: RUB | J29: Авиабилеты | K29: 4511 | L29: Авиакомпания UTair | M29: -3 | N29: =IFERROR(IF(A29="","",VLOOKUP(J29,'Соответствия статей'!$A$2:$B$50,2,0)),"Другое") -> Поездки | O29: Банк | P29: Расход
A30: 2020-03-22T04:43:14 | B30: 2020-03-23 | C30: *7127 | D30: OK | E30: 300 | F30: RUB | G30: 300 | H30: RUB | J30: Авиабилеты | K30: 4511 | L30: Авиакомпания UTair | M30: -3 | N30: =IFERROR(IF(A30="","",VLOOKUP(J30,'Соответствия статей'!$A$2:$B$50,2,0)),"Другое") -> Поездки | O30: Банк | P30: Расход
A31: 2020-03-22T04:43:13 | B31: 2020-03-23 | C31: *7127 | D31: OK | E31: 300 | F31: RUB | G31: 300 | H31: RUB | J31: Авиабилеты | K31: 4511 | L31: Авиакомпания UTair | M31: -3 | N31: =IFERROR(IF(A31="","",VLOOKUP(J31,'Соответствия статей'!$A$2:$B$50,2,0)),"Другое") -> Поездки | O31: Банк | P31: Расход
A32: 2020-03-22T04:40:15 | B32: 2020-03-23 | C32: *7127 | D32: OK | E32: 299 | F32: RUB | G32: 299 | H32: RUB | J32: Авиабилеты | K32: 4511 | L32: Авиакомпания UTair | M32: -2 | N32: =IFERROR(IF(A32="","",VLOOKUP(J32,'Соответствия статей'!$A$2:$B$50,2,0)),"Другое") -> Поездки | O32: Банк | P32: Расход
A33: 2020-03-22T04:40:14 | B33: 2020-03-23 | C33: *7127 | D33: OK | E33: 199 | F33: RUB | G33: 199 | H33: RUB | J33: Авиабилеты | K33: 4511 | L33: Авиакомпания UTair | M33: -1 | N33: =IFERROR(IF(A33="","",VLOOKUP(J33,'Соответствия статей'!$A$2:$B$50,2,0)),"Другое") -> Поездки | O33: Банк | P33: Расход
A34: 2020-03-22T04:40:13 | B34: 2020-03-23 | C34: *7127 | D34: OK | E34: 199 | F34: RUB | G34: 199 | H34: RUB | J34: Авиабилеты | K34: 4511 | L34: Авиакомпания UTair | M34: -1 | N34: =IFERROR(IF(A34="","",VLOOKUP(J34,'Соответствия статей'!$A$2:$B$50,2,0)),"Другое") -> Поездки | O34: Банк | P34: Расход
A35: 2020-03-21T15:43:23 | B35: 2020-03-23 | C35: *7127 | D35: OK | E35: -15.2 | F35: RUB | G35: -15.2 | H35: RUB | J35: Аптеки | K35: 5912 | L35: Apteka 193 | M35: 0 | N35: =IFERROR(IF(A35="","",VLOOKUP(J35,'Соответствия статей'!$A$2:$B$50,2,0)),"Другое") -> Медицина | O35: Банк | P35: Расход
A36: 2020-03-21T15:41:31 | B36: 2020-03-23 | C36: *7127 | D36: OK | E36: -247 | F36: RUB | G36: -247 | H36: RUB | J36: Аптеки | K36: 5912 | L36: Apteka 193 | M36: 2 | N36: =IFERROR(IF(A36="","",VLOOKUP(J36,'Соответствия статей'!$A$2:$B$50,2,0)),"Другое") -> Медицина | O36: Банк | P36: Расход
A37: 2020-03-19T17:12:02 | B37: 2020-03-20 | C37: *7127 | D37: OK | E37: 6193.4 | F37: RUB | G37: 6193.4 | H37: RUB | J37: Ж/д билеты | K37: 4112 | L37: РЖД | M37: -61 | N37: =IFERROR(IF(A37="","",VLOOKUP(J37,'Соответствия статей'!$A$2:$B$50,2,0)),"Другое") -> Поездки | O37: Банк | P37: Расход
A38: 2020-03-19T17:12:02 | B38: 2020-03-20 | C38: *7127 | D38: OK | E38: 4332.9 | F38: RUB | G38: 4332.9 | H38: RUB | J38: Ж/д билеты | K38: 4112 | L38: РЖД | M38: -43 | N38: =IFERROR(IF(A38="","",VLOOKUP(J38,'Соответствия статей'!$A$2:$B$50,2,0)),"Другое") -> Поездки | O38: Банк | P38: Расход
A39: 2020-03-19T17:12:02 | B39: 2020-03-20 | C39: *7127 | D39: OK | E39: 2528.7 | F39: RUB | G39: 2528.7 | H39: RUB | J39: Ж/д билеты | K39: 4112 | L39: РЖД | M39: -25 | N39: =IFERROR(IF(A39="","",VLOOKUP(J39,'Соответствия статей'!$A$2:$B$50,2,0)),"Другое") -> Поездки | O39: Банк | P39: Расход
A40: 2020-03-19T14:36:45 | B40: 2020-03-21 | C40: *7127 | D40: OK | E40: -1325 | F40: RUB | G40: -1325 | H40: RUB | J40: Аптеки | K40: 5912 | L40: Озерки | M40: 13 | N40: =IFERROR(IF(A40="","",VLOOKUP(J40,'Соответствия статей'!$A$2:$B$50,2,0)),"Другое") -> Медицина | O40: Банк | P40: Расход
A41: 2020-03-19T13:50:17 | B41: 2020-03-21 | C41: *7127 | D41: OK | E41: -240 | F41: RUB | G41: -240 | H41: RUB | J41: Фастфуд | K41: 5814 | L41: Рестораны ТАРЕЛКА | M41: 2 | N41: =IFERROR(IF(A41="","",VLOOKUP(J41,'Соответствия статей'!$A$2:$B$50,2,0)),"Другое") -> Рестораны | O41: Банк | P41: Расход
A42: 2020-03-19T09:34:34 | B42: 2020-03-21 | C42: *7127 | D42: OK | E42: -200 | F42: RUB | G42: -200 | H42: RUB | J42: Транспорт | K42: 4111 | L42: Метро Санкт-Петербург | M42: 2 | N42: =IFERROR(IF(A42="","",VLOOKUP(J42,'Соответствия статей'!$A$2:$B$50,2,0)),"Другое") -> Транспорт | O42: Банк | P42: Расход
A43: 2020-03-18T19:17:35 | B43: 2020-03-20 | C43: *8173 | D43: OK | E43: -59.6 | F43: RUB | G43: -59.6 | H43: RUB | I43: 0 | J43: Аптеки | K43: 5912 | L43: Аптека 36,6 | M43: 0 | N43: =IFERROR(IF(A43="","",VLOOKUP(J43,'Соответствия статей'!$A$2:$B$50,2,0)),"Другое") -> Медицина | O43: Банк | P43: Расход
A44: 2020-03-18T16:03:33 | B44: 2020-03-18 | C44: *7127 | D44: OK | E44: -230 | F44: RUB | G44: -230 | H44: RUB | J44: Сувениры | K44: 5947 | L44: IP Zajtseva A N | M44: 2 | N44: =IFERROR(IF(A44="","",VLOOKUP(J44,'Соответствия статей'!$A$2:$B$50,2,0)),"Другое") -> Подарки, благотворительность | O44: Банк | P44: Расход
A45: 2020-03-18T10:40:20 | B45: 2020-03-19 | C45: *7127 | D45: OK | E45: -1600 | F45: RUB | G45: -1600 | H45: RUB | J45: Мед. услуги | K45: 8099 | L45: A-Mediya LLC | M45: 16 | N45: =IFERROR(IF(A45="","",VLOOKUP(J45,'Соответствия статей'!$A$2:$B$50,2,0)),"Другое") -> Медицина | O45: Банк | P45: Расход
A46: 2020-03-17T20:00:54 | B46: 2020-03-19 | C46: *7127 | D46: OK | E46: -256 | F46: RUB | G46: -256 | H46: RUB | J46: Аптеки | K46: 5912 | L46: Озерки | M46: 2 | N46: =IFERROR(IF(A46="","",VLOOKUP(J46,'Соответствия статей'!$A$2:$B$50,2,0)),"Другое") -> Медицина | O46: Банк | P46: Расход
A47: 2020-03-17T13:20:43 | B47: 2020-03-19 | C47: *7127 | D47: OK | E47: -799.98 | F47: RUB | G47: -799.98 | H47: RUB | J47: Супермаркеты | K47: 5411 | L47: Пятерочка | M47: 7 | N47: =IFERROR(IF(A47="","",VLOOKUP(J47,'Соответствия статей'!$A$2:$B$50,2,0)),"Другое") -> Продукты | O47: Банк | P47: Расход
A48: 2020-03-17T12:31:35 | B48: 2020-03-19 | C48: *7127 | D48: OK | E48: -250 | F48: RUB | G48: -250 | H48: RUB | J48: Фастфуд | K48: 5814 | L48: Рестораны ТАРЕЛКА | M48: 2 | N48: =IFERROR(IF(A48="","",VLOOKUP(J48,'Соответствия статей'!$A$2:$B$50,2,0)),"Другое") -> Рестораны | O48: Банк | P48: Расход
A49: 2020-03-17T10:25:14 | B49: 2020-03-19 | C49: *7357 | D49: OK | E49: -39 | F49: RUB | G49: -39 | H49: RUB | I49: 0 | J49: Фастфуд | K49: 5814 | L49: Babushkiny Pirogi | M49: 0 | N49: =IFERROR(IF(A49="","",VLOOKUP(J49,'Соответствия статей'!$A$2:$B$50,2,0)),"Другое") -> Рестораны | O49: Банк | P49: Расход
A50: 2020-03-17T09:33:36 | B50: 2020-03-19 | C50: *7357 | D50: OK | E50: -200 | F50: RUB | G50: -200 | H50: RUB | I50: 10 | J50: Транспорт | K50: 4111 | L50: Метро Санкт-Петербург | M50: 10 | N50: =IFERROR(IF(A50="","",VLOOKUP(J50,'Соответствия статей'!$A$2:$B$50,2,0)),"Другое") -> Транспорт | O50: Банк | P50: Расход
A51: 2020-03-17 | B51: 2020-03-17 | C51: *7127 | D51: OK | E51: 800 | F51: RUB | G51: 800 | H51: RUB | J51: Финан. услуги | K51: 6536 | L51: Сбербанк | M51: 0 | N51: =IFERROR(IF(A51="","",VLOOKUP(J51,'Соответствия статей'!$A$2:$B$50,2,0)),"Другое") -> Переводы | O51: Банк | P51: Расход
A52: 2020-03-16T13:58:31 | B52: 2020-03-18 | C52: *7127 | D52: OK | E52: -238 | F52: RUB | G52: -238 | H52: RUB | J52: Аптеки | K52: 5912 | L52: Apt1208 Neptun | M52: 2 | N52: =IFERROR(IF(A52="","",VLOOKUP(J52,'Соответствия статей'!$A$2:$B$50,2,0)),"Другое") -> Медицина | O52: Банк | P52: Расход
A53: 2020-03-16T13:38:29 | B53: 2020-03-18 | C53: *8173 | D53: OK | E53: -25 | F53: RUB | G53: -25 | H53: RUB | I53: 0 | J53: Супермаркеты | K53: 5499 | L53: Petro-Servis | M53: 0 | N53: =IFERROR(IF(A53="","",VLOOKUP(J53,'Соответствия статей'!$A$2:$B$50,2,0)),"Другое") -> Продукты | O53: Банк | P53: Расход
A54: 2020-03-16T13:14:12 | B54: 2020-03-18 | C54: *8173 | D54: OK | E54: -200 | F54: RUB | G54: -200 | H54: RUB | I54: 2 | J54: Фастфуд | K54: 5814 | L54: Stolovaya | M54: 2 | N54: =IFERROR(IF(A54="","",VLOOKUP(J54,'Соответствия статей'!$A$2:$B$50,2,0)),"Другое") -> Рестораны | O54: Банк | P54: Расход
A55: 2020-03-16T13:05:33 | B55: 2020-03-18 | C55: *7127 | D55: OK | E55: -265 | F55: RUB | G55: -265 | H55: RUB | J55: Фастфуд | K55: 5814 | L55: Рестораны ТАРЕЛКА | M55: 2 | N55: =IFERROR(IF(A55="","",VLOOKUP(J55,'Соответствия статей'!$A$2:$B$50,2,0)),"Другое") -> Рестораны | O55: Банк | P55: Расход
A56: 2020-03-16T09:08:52 | B56: 2020-03-17 | C56: *7127 | D56: OK | E56: -4025 | F56: RUB | G56: -4025 | H56: RUB | J56: Супермаркеты | K56: 5411 | L56: Перекресток | M56: 40 | N56: =IFERROR(IF(A56="","",VLOOKUP(J56,'Соответствия статей'!$A$2:$B$50,2,0)),"Другое") -> Продукты | O56: Банк | P56: Расход
A57: 2020-03-15T18:32:54 | B57: 2020-03-16 | C57: *7127 | D57: OK | E57: -758.34 | F57: RUB | G57: -758.34 | H57: RUB | J57: Жкх/иб | K57: 4900 | L57: Петроэлектросбыт | M57: 0 | N57: =IFERROR(IF(A57="","",VLOOKUP(J57,'Соответствия статей'!$A$2:$B$50,2,0)),"Другое") -> Коммунальные услуги | O57: Банк | P57: Расход
A58: 2020-03-15T16:53:42 | B58: 2020-03-17 | C58: *7127 | D58: OK | E58: -1354 | F58: RUB | G58: -1354 | H58: RUB | J58: Аптеки | K58: 5912 | L58: Озерки | M58: 13 | N58: =IFERROR(IF(A58="","",VLOOKUP(J58,'Соответствия статей'!$A$2:$B$50,2,0)),"Другое") -> Медицина | O58: Банк | P58: Расход
A59: 2020-03-13T21:01:13 | B59: 2020-03-16 | C59: *7127 | D59: OK | E59: -252.95 | F59: RUB | G59: -252.95 | H59: RUB | J59: Супермаркеты | K59: 5411 | L59: Семишагофф | M59: 2 | N59: =IFERROR(IF(A59="","",VLOOKUP(J59,'Соответствия статей'!$A$2:$B$50,2,0)),"Другое") -> Продукты | O59: Банк | P59: Расход
A60: 2020-03-13T16:56:00 | B60: 2020-03-14 | C60: *7127 | D60: OK | E60: -25 | F60: RUB | G60: -25 | H60: RUB | J60: Фастфуд | K60: 5814 | L60: OOO As-Vend | M60: 0 | N60: =IFERROR(IF(A60="","",VLOOKUP(J60,'Соответствия статей'!$A$2:$B$50,2,0)),"Другое") -> Рестораны | O60: Банк | P60: Расход
A61: 2020-03-13T14:21:03 | B61: 2020-03-16 | C61: *7357 | D61: OK | E61: -110 | F61: RUB | G61: -110 | H61: RUB | I61: 1 | J61: Разные товары | K61: 5311 | L61: Fixprice | M61: 1 | N61: =IFERROR(IF(A61="","",VLOOKUP(J61,'Соответствия статей'!$A$2:$B$50,2,0)),"Другое") -> Другое | O61: Банк | P61: Расход
A62: 2020-03-13T13:17:30 | B62: 2020-03-16 | C62: *7127 | D62: OK | E62: -25 | F62: RUB | G62: -25 | H62: RUB | J62: Супермаркеты | K62: 5499 | L62: Petro-Servis | M62: 0 | N62: =IFERROR(IF(A62="","",VLOOKUP(J62,'Соответствия статей'!$A$2:$B$50,2,0)),"Другое") -> Продукты | O62: Банк | P62: Расход
A63: 2020-03-13T12:55:29 | B63: 2020-03-16 | C63: *7127 | D63: OK | E63: -200 | F63: RUB | G63: -200 | H63: RUB | J63: Фастфуд | K63: 5814 | L63: Stolovaya | M63: 2 | N63: =IFERROR(IF(A63="","",VLOOKUP(J63,'Соответствия статей'!$A$2:$B$50,2,0)),"Другое") -> Рестораны | O63: Банк | P63: Расход
A64: 2020-03-12T22:23:11 | B64: 2020-03-14 | C64: *8173 | D64: OK | E64: -200 | F64: RUB | G64: -200 | H64: RUB | I64: 10 | J64: Транспорт | K64: 4111 | L64: Метро Санкт-Петербург | M64: 10 | N64: =IFERROR(IF(A64="","",VLOOKUP(J64,'Соответствия статей'!$A$2:$B$50,2,0)),"Другое") -> Транспорт | O64: Банк | P64: Расход
A65: 2020-03-12T21:23:38 | B65: 2020-03-14 | C65: *8173 | D65: OK | E65: -55 | F65: RUB | G65: -55 | H65: RUB | I65: 2 | J65: Транспорт | K65: 4111 | L65: Метро Санкт-Петербург | M65: 2 | N65: =IFERROR(IF(A65="","",VLOOKUP(J65,'Соответствия статей'!$A$2:$B$50,2,0)),"Другое") -> Транспорт | O65: Банк | P65: Расход
A66: 2020-03-12T19:34:24 | B66: 2020-03-14 | C66: *7357 | D66: OK | E66: -51.9 | F66: RUB | G66: -51.9 | H66: RUB | I66: 0 | J66: Супермаркеты | K66: 5411 | L66: Перекресток | M66: 0 | N66: =IFERROR(IF(A66="","",VLOOKUP(J66,'Соответствия статей'!$A$2:$B$50,2,0)),"Другое") -> Продукты | O66: Банк | P66: Расход
A67: 2020-03-12T13:47:03 | B67: 2020-03-14 | C67: *7127 | D67: OK | E67: -25 | F67: RUB | G67: -25 | H67: RUB | J67: Супермаркеты | K67: 5499 | L67: Petro-Servis | M67: 0 | N67: =IFERROR(IF(A67="","",VLOOKUP(J67,'Соответствия статей'!$A$2:$B$50,2,0)),"Другое") -> Продукты | O67: Банк | P67: Расход
A68: 2020-03-12T13:15:18 | B68: 2020-03-14 | C68: *7127 | D68: OK | E68: -200 | F68: RUB | G68: -200 | H68: RUB | J68: Фастфуд | K68: 5814 | L68: Stolovaya | M68: 2 | N68: =IFERROR(IF(A68="","",VLOOKUP(J68,'Соответствия статей'!$A$2:$B$50,2,0)),"Другое") -> Рестораны | O68: Банк | P68: Расход
A69: 2020-03-12T10:02:28 | B69: 2020-03-12 | C69: *8173 | D69: OK | E69: 2300 | F69: RUB | G69: 2300 | H69: RUB | J69: Прочие доходы | L69: Иван Ш. | M69: 0 | N69: =IFERROR(IF(A69="","",VLOOKUP(J69,'Соответствия статей'!$A$2:$B$50,2,0)),"Другое") -> Прочие доходы | O69: Банк | P69: Доход
A70: 2020-03-12T09:21:25 | B70: 2020-03-14 | C70: *7357 | D70: OK | E70: -200 | F70: RUB | G70: -200 | H70: RUB | I70: 10 | J70: Транспорт | K70: 4111 | L70: Метро Санкт-Петербург | M70: 10 | N70: =IFERROR(IF(A70="","",VLOOKUP(J70,'Соответствия статей'!$A$2:$B$50,2,0)),"Другое") -> Транспорт | O70: Банк | P70: Расход
A71: 2020-03-12T02:55:30 | B71: 2020-03-13 | C71: *8173 | D71: OK | E71: -101 | F71: RUB | G71: -101 | H71: RUB | I71: 5 | J71: Транспорт | K71: 4121 | L71: Uber | M71: 5 | N71: =IFERROR(IF(A71="","",VLOOKUP(J71,'Соответствия статей'!$A$2:$B$50,2,0)),"Другое") -> Транспорт | O71: Банк | P71: Расход
A72: 2020-03-11T23:05:00 | B72: 2020-03-13 | C72: *7127 | D72: OK | E72: -55 | F72: RUB | G72: -55 | H72: RUB | J72: Транспорт | K72: 4111 | L72: Метро Санкт-Петербург | M72: 0 | N72: =IFERROR(IF(A72="","",VLOOKUP(J72,'Соответствия статей'!$A$2:$B$50,2,0)),"Другое") -> Транспорт | O72: Банк | P72: Расход
A73: 2020-03-11T22:29:23 | B73: 2020-03-13 | C73: *7357 | D73: OK | E73: -540 | F73: RUB | G73: -540 | H73: RUB | I73: 5 | J73: Фастфуд | K73: 5814 | L73: IP Mokhov V. A. | M73: 5 | N73: =IFERROR(IF(A73="","",VLOOKUP(J73,'Соответствия статей'!$A$2:$B$50,2,0)),"Другое") -> Рестораны | O73: Банк | P73: Расход
A74: 2020-03-11T18:46:35 | B74: 2020-03-13 | C74: *7127 | D74: OK | E74: -209 | F74: RUB | G74: -209 | H74: RUB | J74: Фастфуд | K74: 5814 | L74: Теремок | M74: 2 | N74: =IFERROR(IF(A74="","",VLOOKUP(J74,'Соответствия статей'!$A$2:$B$50,2,0)),"Другое") -> Рестораны | O74: Банк | P74: Расход
A75: 2020-03-11T12:28:32 | B75: 2020-03-13 | C75: *7127 | D75: OK | E75: -25 | F75: RUB | G75: -25 | H75: RUB | J75: Супермаркеты | K75: 5499 | L75: Petro-Servis | M75: 0 | N75: =IFERROR(IF(A75="","",VLOOKUP(J75,'Соответствия статей'!$A$2:$B$50,2,0)),"Другое") -> Продукты | O75: Банк | P75: Расход
A76: 2020-03-11T10:44:38 | B76: 2020-03-12 | C76: *7127 | D76: OK | E76: -3464 | F76: RUB | G76: -3464 | H76: RUB | J76: Рестораны | K76: 5812 | L76: Достаевский | M76: 34 | N76: =IFERROR(IF(A76="","",VLOOKUP(J76,'Соответствия статей'!$A$2:$B$50,2,0)),"Другое") -> Рестораны | O76: Банк | P76: Расход
A77: 2020-03-10T22:16:42 | B77: 2020-03-12 | C77: *7127 | D77: OK | E77: -1973.49 | F77: RUB | G77: -1973.49 | H77: RUB | J77: Супермаркеты | K77: 5411 | L77: Перекресток | M77: 19 | N77: =IFERROR(IF(A77="","",VLOOKUP(J77,'Соответствия статей'!$A$2:$B$50,2,0)),"Другое") -> Продукты | O77: Банк | P77: Расход
A78: 2020-03-10T22:02:07 | B78: 2020-03-11 | C78: *7127 | D78: OK | E78: -4200 | F78: RUB | G78: -4200 | H78: RUB | J78: Одежда, обувь | K78: 5621 | L78: IP Sharapova E.N. | M78: 42 | N78: =IFERROR(IF(A78="","",VLOOKUP(J78,'Соответствия статей'!$A$2:$B$50,2,0)),"Другое") -> Одежда и обувь | O78: Банк | P78: Расход
A79: 2020-03-10T20:14:28 | B79: 2020-03-12 | C79: *7357 | D79: OK | E79: -200 | F79: RUB | G79: -200 | H79: RUB | I79: 10 | J79: Транспорт | K79: 4111 | L79: Метро Санкт-Петербург | M79: 10 | N79: =IFERROR(IF(A79="","",VLOOKUP(J79,'Соответствия статей'!$A$2:$B$50,2,0)),"Другое") -> Транспорт | O79: Банк | P79: Расход
A80: 2020-03-10T13:46:49 | B80: 2020-03-11 | C80: *7127 | D80: OK | E80: -25 | F80: RUB | G80: -25 | H80: RUB | J80: Фастфуд | K80: 5814 | L80: Petro-Servis | M80: 0 | N80: =IFERROR(IF(A80="","",VLOOKUP(J80,'Соответствия статей'!$A$2:$B$50,2,0)),"Другое") -> Рестораны | O80: Банк | P80: Расход
A81: 2020-03-10T12:04:46 | B81: 2020-03-12 | C81: *7357 | D81: OK | E81: -253 | F81: RUB | G81: -253 | H81: RUB | I81: 2 | J81: Фастфуд | K81: 5814 | L81: Рестораны ТАРЕЛКА | M81: 2 | N81: =IFERROR(IF(A81="","",VLOOKUP(J81,'Соответствия статей'!$A$2:$B$50,2,0)),"Другое") -> Рестораны | O81: Банк | P81: Расход
A82: 2020-03-10T00:57:09 | B82: 2020-03-10 | C82: *7127 | D82: OK | E82: -510 | F82: RUB | G82: -510 | H82: RUB | J82: Сервис. услуги | K82: 7311 | L82: ВКонтакте | M82: 0 | N82: =IFERROR(IF(A82="","",VLOOKUP(J82,'Соответствия статей'!$A$2:$B$50,2,0)),"Другое") -> Другое | O82: Банк | P82: Расход
A83: 2020-03-09T19:47:14 | B83: 2020-03-11 | C83: *7357 | D83: OK | E83: -64.9 | F83: RUB | G83: -64.9 | H83: RUB | I83: 0 | J83: Супермаркеты | K83: 5411 | L83: Перекресток | M83: 0 | N83: =IFERROR(IF(A83="","",VLOOKUP(J83,'Соответствия статей'!$A$2:$B$50,2,0)),"Другое") -> Продукты | O83: Банк | P83: Расход
A84: 2020-03-09T19:41:41 | B84: 2020-03-11 | C84: *7357 | D84: OK | E84: -69 | F84: RUB | G84: -69 | H84: RUB | I84: 0 | J84: Дом, ремонт | K84: 5211 | L84: СТАРТ | M84: 0 | N84: =IFERROR(IF(A84="","",VLOOKUP(J84,'Соответствия статей'!$A$2:$B$50,2,0)),"Другое") -> Товары для дома, ремонта | O84: Банк | P84: Расход
A85: 2020-03-09T19:39:55 | B85: 2020-03-11 | C85: *7127 | D85: OK | E85: -259 | F85: RUB | G85: -259 | H85: RUB | J85: Книги | K85: 5942 | L85: Буквоед | M85: 2 | N85: =IFERROR(IF(A85="","",VLOOKUP(J85,'Соответствия статей'!$A$2:$B$50,2,0)),"Другое") -> Обучение | O85: Банк | P85: Расход
A86: 2020-03-09T19:23:51 | B86: 2020-03-11 | C86: *8173 | D86: OK | E86: -97 | F86: RUB | G86: -97 | H86: RUB | I86: 4 | J86: Транспорт | K86: 4121 | L86: Uber | M86: 4 | N86: =IFERROR(IF(A86="","",VLOOKUP(J86,'Соответствия статей'!$A$2:$B$50,2,0)),"Другое") -> Транспорт | O86: Банк | P86: Расход
A87: 2020-03-09T17:43:18 | B87: 2020-03-11 | C87: *7127 | D87: OK | E87: -422 | F87: RUB | G87: -422 | H87: RUB | J87: Фастфуд | K87: 5814 | L87: Додо Пицца | M87: 4 | N87: =IFERROR(IF(A87="","",VLOOKUP(J87,'Соответствия статей'!$A$2:$B$50,2,0)),"Другое") -> Рестораны | O87: Банк | P87: Расход
A88: 2020-03-08T19:12:11 | B88: 2020-03-09 | C88: *7127 | D88: OK | E88: -1100 | F88: RUB | G88: -1100 | H88: RUB | J88: Цветы | K88: 5992 | L88: Salon Tsvety | M88: 11 | N88: =IFERROR(IF(A88="","",VLOOKUP(J88,'Соответствия статей'!$A$2:$B$50,2,0)),"Другое") -> Подарки, благотворительность | O88: Банк | P88: Расход
A89: 2020-03-08T18:31:04 | B89: 2020-03-10 | C89: *7127 | D89: OK | E89: -622 | F89: RUB | G89: -622 | H89: RUB | J89: Фастфуд | K89: 5814 | L89: McDonald's | M89: 6 | N89: =IFERROR(IF(A89="","",VLOOKUP(J89,'Соответствия статей'!$A$2:$B$50,2,0)),"Другое") -> Рестораны | O89: Банк | P89: Расход
A90: 2020-03-08T16:27:47 | B90: 2020-03-10 | C90: *8173 | D90: OK | E90: -1053 | F90: RUB | G90: -1053 | H90: RUB | I90: 52 | J90: Кино | K90: 7832 | L90: Синема Парк | M90: 52 | N90: =IFERROR(IF(A90="","",VLOOKUP(J90,'Соответствия статей'!$A$2:$B$50,2,0)),"Другое") -> Развлечения | O90: Банк | P90: Расход
A91: 2020-03-08T15:20:30 | B91: 2020-03-10 | C91: *8173 | D91: OK | E91: -144 | F91: RUB | G91: -144 | H91: RUB | I91: 7 | J91: Транспорт | K91: 4121 | L91: Uber | M91: 7 | N91: =IFERROR(IF(A91="","",VLOOKUP(J91,'Соответствия статей'!$A$2:$B$50,2,0)),"Другое") -> Транспорт | O91: Банк | P91: Расход
A92: 2020-03-08T14:55:48 | B92: 2020-03-10 | C92: *8173 | D92: OK | E92: -113 | F92: RUB | G92: -113 | H92: RUB | I92: 1 | J92: Супермаркеты | K92: 5411 | L92: Latte | M92: 1 | N92: =IFERROR(IF(A92="","",VLOOKUP(J92,'Соответствия статей'!$A$2:$B$50,2,0)),"Другое") -> Продукты | O92: Банк | P92: Расход
A93: 2020-03-08T14:02:12 | B93: 2020-03-10 | C93: *8173 | D93: OK | E93: -203.97 | F93: RUB | G93: -203.97 | H93: RUB | I93: 2 | J93: Супермаркеты | K93: 5411 | L93: Верный | M93: 2 | N93: =IFERROR(IF(A93="","",VLOOKUP(J93,'Соответствия статей'!$A$2:$B$50,2,0)),"Другое") -> Продукты | O93: Банк | P93: Расход
A94: 2020-03-07T23:19:39 | B94: 2020-03-09 | C94: *7127 | D94: OK | E94: -2540 | F94: RUB | G94: -2540 | H94: RUB | J94: Супермаркеты | K94: 5411 | L94: Перекресток | M94: 25 | N94: =IFERROR(IF(A94="","",VLOOKUP(J94,'Соответствия статей'!$A$2:$B$50,2,0)),"Другое") -> Продукты | O94: Банк | P94: Расход
A95: 2020-03-07T19:54:28 | B95: 2020-03-09 | C95: *7357 | D95: OK | E95: -196 | F95: RUB | G95: -196 | H95: RUB | I95: 1 | J95: Фастфуд | K95: 5814 | L95: Додо Пицца | M95: 1 | N95: =IFERROR(IF(A95="","",VLOOKUP(J95,'Соответствия статей'!$A$2:$B$50,2,0)),"Другое") -> Рестораны | O95: Банк | P95: Расход
A96: 2020-03-07T18:16:00 | B96: 2020-03-09 | C96: *8173 | D96: OK | E96: -299 | F96: RUB | G96: -299 | H96: RUB | I96: 2 | J96: Дом, ремонт | K96: 5211 | L96: СТАРТ | M96: 2 | N96: =IFERROR(IF(A96="","",VLOOKUP(J96,'Соответствия статей'!$A$2:$B$50,2,0)),"Другое") -> Товары для дома, ремонта | O96: Банк | P96: Расход
A97: 2020-03-07T13:17:45 | B97: 2020-03-09 | C97: *8173 | D97: OK | E97: -613 | F97: RUB | G97: -613 | H97: RUB | I97: 6 | J97: Аптеки | K97: 5912 | L97: Озерки | M97: 6 | N97: =IFERROR(IF(A97="","",VLOOKUP(J97,'Соответствия статей'!$A$2:$B$50,2,0)),"Другое") -> Медицина | O97: Банк | P97: Расход
A98: 2020-03-07T12:47:07 | B98: 2020-03-09 | C98: *8173 | D98: OK | E98: -107.99 | F98: RUB | G98: -107.99 | H98: RUB | I98: 1 | J98: Супермаркеты | K98: 5411 | L98: Семишагофф | M98: 1 | N98: =IFERROR(IF(A98="","",VLOOKUP(J98,'Соответствия статей'!$A$2:$B$50,2,0)),"Другое") -> Продукты | O98: Банк | P98: Расход
A99: 2020-03-07T06:13:44 | B99: 2020-03-07 | C99: *8173 | D99: OK | E99: 500 | F99: RUB | G99: 500 | H99: RUB | J99: Прочие доходы | L99: Иван Ш. | M99: 0 | N99: =IFERROR(IF(A99="","",VLOOKUP(J99,'Соответствия статей'!$A$2:$B$50,2,0)),"Другое") -> Прочие доходы | O99: Банк | P99: Доход
A100: 2020-03-06T22:52:50 | B100: 2020-03-09 | C100: *8173 | D100: OK | E100: -100 | F100: RUB | G100: -100 | H100: RUB | I100: 5 | J100: Транспорт | K100: 4111 | L100: Метро Санкт-Петербург | M100: 5 | N100: =IFERROR(IF(A100="","",VLOOKUP(J100,'Соответствия статей'!$A$2:$B$50,2,0)),"Другое") -> Транспорт | O100: Банк | P100: Расход
A101: 2020-03-06T21:22:07 | B101: 2020-03-09 | C101: *7127 | D101: OK | E101: -214 | F101: RUB | G101: -214 | H101: RUB | J101: Фастфуд | K101: 5814 | L101: McDonald's | M101: 2 | N101: =IFERROR(IF(A101="","",VLOOKUP(J101,'Соответствия статей'!$A$2:$B$50,2,0)),"Другое") -> Рестораны | O101: Банк | P101: Расход
A102: 2020-03-06T18:58:38 | B102: 2020-03-09 | C102: *7357 | D102: OK | E102: -500 | F102: RUB | G102: -500 | H102: RUB | I102: 5 | J102: Фастфуд | K102: 5814 | L102: Poddon | M102: 5 | N102: =IFERROR(IF(A102="","",VLOOKUP(J102,'Соответствия статей'!$A$2:$B$50,2,0)),"Другое") -> Рестораны | O102: Банк | P102: Расход
A103: 2020-03-06T16:23:13 | B103: 2020-03-09 | C103: *7127 | D103: OK | E103: -25 | F103: RUB | G103: -25 | H103: RUB | J103: Супермаркеты | K103: 5499 | L103: Petro-Servis | M103: 0 | N103: =IFERROR(IF(A103="","",VLOOKUP(J103,'Соответствия статей'!$A$2:$B$50,2,0)),"Другое") -> Продукты | O103: Банк | P103: Расход
A104: 2020-03-06T12:32:49 | B104: 2020-03-07 | C104: *7127 | D104: OK | E104: -25 | F104: RUB | G104: -25 | H104: RUB | J104: Фастфуд | K104: 5814 | L104: Petro-Servis | M104: 0 | N104: =IFERROR(IF(A104="","",VLOOKUP(J104,'Соответствия статей'!$A$2:$B$50,2,0)),"Другое") -> Рестораны | O104: Банк | P104: Расход
A105: 2020-03-06T12:12:54 | B105: 2020-03-09 | C105: *7127 | D105: OK | E105: -200 | F105: RUB | G105: -200 | H105: RUB | J105: Фастфуд | K105: 5814 | L105: Stolovaya | M105: 2 | N105: =IFERROR(IF(A105="","",VLOOKUP(J105,'Соответствия статей'!$A$2:$B$50,2,0)),"Другое") -> Рестораны | O105: Банк | P105: Расход
A106: 2020-03-06T09:13:05 | B106: 2020-03-09 | C106: *7357 | D106: OK | E106: -100 | F106: RUB | G106: -100 | H106: RUB | I106: 5 | J106: Транспорт | K106: 4111 | L106: Метро Санкт-Петербург | M106: 5 | N106: =IFERROR(IF(A106="","",VLOOKUP(J106,'Соответствия статей'!$A$2:$B$50,2,0)),"Другое") -> Транспорт | O106: Банк | P106: Расход
A107: 2020-03-06T08:16:17 | B107: 2020-03-07 | C107: *7127 | D107: OK | E107: -360 | F107: RUB | G107: -360 | H107: RUB | J107: Цветы | K107: 5992 | L107: Tsvety-3 | M107: 3 | N107: =IFERROR(IF(A107="","",VLOOKUP(J107,'Соответствия статей'!$A$2:$B$50,2,0)),"Другое") -> Подарки, благотворительность | O107: Банк | P107: Расход
A108: 2020-03-05T21:07:19 | B108: 2020-03-09 | C108: *7357 | D108: OK | E108: -420.33 | F108: RUB | G108: -420.33 | H108: RUB | I108: 4 | J108: Супермаркеты | K108: 5411 | L108: Перекресток | M108: 4 | N108: =IFERROR(IF(A108="","",VLOOKUP(J108,'Соответствия статей'!$A$2:$B$50,2,0)),"Другое") -> Продукты | O108: Банк | P108: Расход
A109: 2020-03-05T19:56:38 | B109: 2020-03-05 | C109: *7127 | D109: OK | E109: 35 | F109: RUB | G109: 35 | H109: RUB | J109: Прочие доходы | L109: Компенсация покупки | M109: 0 | N109: =IFERROR(IF(A109="","",VLOOKUP(J109,'Соответствия статей'!$A$2:$B$50,2,0)),"Другое") -> Прочие доходы | O109: Банк | P109: Доход
A110: 2020-03-05T19:56:28 | B110: 2020-03-05 | C110: *7127 | D110: OK | E110: 200 | F110: RUB | G110: 200 | H110: RUB | J110: Прочие доходы | L110: Компенсация покупки | M110: 0 | N110: =IFERROR(IF(A110="","",VLOOKUP(J110,'Соответствия статей'!$A$2:$B$50,2,0)),"Другое") -> Прочие доходы | O110: Банк | P110: Доход
A111: 2020-03-05T19:55:54 | B111: 2020-03-05 | C111: *7127 | D111: OK | E111: 200 | F111: RUB | G111: 200 | H111: RUB | J111: Прочие доходы | L111: Компенсация покупки | M111: 0 | N111: =IFERROR(IF(A111="","",VLOOKUP(J111,'Соответствия статей'!$A$2:$B$50,2,0)),"Другое") -> Прочие доходы | O111: Банк | P111: Доход
A112: 2020-03-05T19:32:12 | B112: 2020-03-05 | C112: *7127 | D112: OK | E112: -10 | F112: RUB | G112: -10 | H112: RUB | J112: Мобильные/иб | L112: Ростелеком Мобильная связь +79932213431 | M112: 0 | N112: =IFERROR(IF(A112="","",VLOOKUP(J112,'Соответствия статей'!$A$2:$B$50,2,0)),"Другое") -> Телефонная связь | O112: Банк | P112: Расход
A113: 2020-03-05T13:04:49 | B113: 2020-03-09 | C113: *7357 | D113: OK | E113: -270 | F113: RUB | G113: -270 | H113: RUB | I113: 2 | J113: Фастфуд | K113: 5814 | L113: Рестораны ТАРЕЛКА | M113: 2 | N113: =IFERROR(IF(A113="","",VLOOKUP(J113,'Соответствия статей'!$A$2:$B$50,2,0)),"Другое") -> Рестораны | O113: Банк | P113: Расход
A114: 2020-03-04T20:56:15 | B114: 2020-03-07 | C114: *7357 | D114: OK | E114: -107.99 | F114: RUB | G114: -107.99 | H114: RUB | I114: 1 | J114: Супермаркеты | K114: 5411 | L114: Семишагофф | M114: 1 | N114: =IFERROR(IF(A114="","",VLOOKUP(J114,'Соответствия статей'!$A$2:$B$50,2,0)),"Другое") -> Продукты | O114: Банк | P114: Расход
A115: 2020-03-04T20:42:42 | B115: 2020-03-07 | C115: *7357 | D115: OK | E115: -525 | F115: RUB | G115: -525 | H115: RUB | I115: 5 | J115: Аптеки | K115: 5912 | L115: Озерки | M115: 5 | N115: =IFERROR(IF(A115="","",VLOOKUP(J115,'Соответствия статей'!$A$2:$B$50,2,0)),"Другое") -> Медицина | O115: Банк | P115: Расход
A116: 2020-03-04T20:24:22 | B116: 2020-03-07 | C116: *7357 | D116: OK | E116: -122.3 | F116: RUB | G116: -122.3 | H116: RUB | I116: 1 | J116: Аптеки | K116: 5912 | L116: Аптека 36,6 | M116: 1 | N116: =IFERROR(IF(A116="","",VLOOKUP(J116,'Соответствия статей'!$A$2:$B$50,2,0)),"Другое") -> Медицина | O116: Банк | P116: Расход
A117: 2020-03-04T20:20:58 | B117: 2020-03-07 | C117: *7357 | D117: OK | E117: -601.64 | F117: RUB | G117: -601.64 | H117: RUB | I117: 6 | J117: Супермаркеты | K117: 5411 | L117: Дикси | M117: 6 | N117: =IFERROR(IF(A117="","",VLOOKUP(J117,'Соответствия статей'!$A$2:$B$50,2,0)),"Другое") -> Продукты | O117: Банк | P117: Расход
A118: 2020-03-04T17:07:58 | B118: 2020-03-05 | C118: *8173 | D118: OK | E118: -75 | F118: RUB | G118: -75 | H118: RUB | I118: 0 | J118: Фастфуд | K118: 5814 | L118: OOO As-Vend | M118: 0 | N118: =IFERROR(IF(A118="","",VLOOKUP(J118,'Соответствия статей'!$A$2:$B$50,2,0)),"Другое") -> Рестораны | O118: Банк | P118: Расход
A119: 2020-03-04T14:37:05 | B119: 2020-03-07 | C119: *7127 | D119: OK | E119: -270 | F119: RUB | G119: -270 | H119: RUB | J119: Фастфуд | K119: 5814 | L119: Рестораны ТАРЕЛКА | M119: 2 | N119: =IFERROR(IF(A119="","",VLOOKUP(J119,'Соответствия статей'!$A$2:$B$50,2,0)),"Другое") -> Рестораны | O119: Банк | P119: Расход
A120: 2020-03-04T13:08:12 | B120: 2020-03-05 | C120: *8173 | D120: OK | E120: -75 | F120: RUB | G120: -75 | H120: RUB | I120: 0 | J120: Фастфуд | K120: 5814 | L120: OOO As-Vend | M120: 0 | N120: =IFERROR(IF(A120="","",VLOOKUP(J120,'Соответствия статей'!$A$2:$B$50,2,0)),"Другое") -> Рестораны | O120: Банк | P120: Расход
A121: 2020-03-03T19:03:03 | B121: 2020-03-06 | C121: *8173 | D121: OK | E121: -509.96 | F121: RUB | G121: -509.96 | H121: RUB | I121: 5 | J121: Супермаркеты | K121: 5411 | L121: Перекресток | M121: 5 | N121: =IFERROR(IF(A121="","",VLOOKUP(J121,'Соответствия статей'!$A$2:$B$50,2,0)),"Другое") -> Продукты | O121: Банк | P121: Расход
A122: 2020-03-03T18:54:50 | B122: 2020-03-05 | C122: *7127 | D122: OK | E122: -200 | F122: RUB | G122: -200 | H122: RUB | J122: Транспорт | K122: 4111 | L122: Метро Санкт-Петербург | M122: 2 | N122: =IFERROR(IF(A122="","",VLOOKUP(J122,'Соответствия статей'!$A$2:$B$50,2,0)),"Другое") -> Транспорт | O122: Банк | P122: Расход
A123: 2020-03-03T14:51:00 | B123: 2020-03-06 | C123: *7127 | D123: OK | E123: -265 | F123: RUB | G123: -265 | H123: RUB | J123: Фастфуд | K123: 5814 | L123: Рестораны ТАРЕЛКА | M123: 2 | N123: =IFERROR(IF(A123="","",VLOOKUP(J123,'Соответствия статей'!$A$2:$B$50,2,0)),"Другое") -> Рестораны | O123: Банк | P123: Расход
A124: 2020-03-03T13:40:32 | B124: 2020-03-06 | C124: *8173 | D124: OK | E124: -25 | F124: RUB | G124: -25 | H124: RUB | I124: 0 | J124: Супермаркеты | K124: 5499 | L124: Petro-Servis | M124: 0 | N124: =IFERROR(IF(A124="","",VLOOKUP(J124,'Соответствия статей'!$A$2:$B$50,2,0)),"Другое") -> Продукты | O124: Банк | P124: Расход
A125: 2020-03-03T13:17:27 | B125: 2020-03-06 | C125: *8173 | D125: OK | E125: -200 | F125: RUB | G125: -200 | H125: RUB | I125: 2 | J125: Фастфуд | K125: 5814 | L125: Stolovaya | M125: 2 | N125: =IFERROR(IF(A125="","",VLOOKUP(J125,'Соответствия статей'!$A$2:$B$50,2,0)),"Другое") -> Рестораны | O125: Банк | P125: Расход
A126: 2020-03-03T08:40:29 | B126: 2020-03-06 | C126: *7127 | D126: OK | E126: -1600 | F126: RUB | G126: -1600 | H126: RUB | J126: Мед. услуги | K126: 8099 | L126: Spb Gbuz Tspsir | M126: 16 | N126: =IFERROR(IF(A126="","",VLOOKUP(J126,'Соответствия статей'!$A$2:$B$50,2,0)),"Другое") -> Медицина | O126: Банк | P126: Расход
A127: 2020-03-03T02:06:47 | B127: 2020-03-03 | C127: *7127 | D127: OK | E127: -500 | F127: RUB | G127: -500 | H127: RUB | J127: Сервис. услуги | K127: 7311 | L127: ВКонтакте | M127: 0 | N127: =IFERROR(IF(A127="","",VLOOKUP(J127,'Соответствия статей'!$A$2:$B$50,2,0)),"Другое") -> Другое | O127: Банк | P127: Расход
A128: 2020-03-02T20:28:58 | B128: 2020-03-05 | C128: *7357 | D128: OK | E128: -102.17 | F128: RUB | G128: -102.17 | H128: RUB | I128: 1 | J128: Супермаркеты | K128: 5411 | L128: Дикси | M128: 1 | N128: =IFERROR(IF(A128="","",VLOOKUP(J128,'Соответствия статей'!$A$2:$B$50,2,0)),"Другое") -> Продукты | O128: Банк | P128: Расход
A129: 2020-03-02T20:28:42 | B129: 2020-03-05 | C129: *7357 | D129: OK | E129: -279.87 | F129: RUB | G129: -279.87 | H129: RUB | I129: 2 | J129: Супермаркеты | K129: 5411 | L129: Дикси | M129: 2 | N129: =IFERROR(IF(A129="","",VLOOKUP(J129,'Соответствия статей'!$A$2:$B$50,2,0)),"Другое") -> Продукты | O129: Банк | P129: Расход
A130: 2020-03-02T18:06:50 | B130: 2020-03-03 | C130: *7127 | D130: OK | E130: -35 | F130: RUB | G130: -35 | H130: RUB | J130: Фастфуд | K130: 5814 | L130: OOO As-Vend | M130: 0 | N130: =IFERROR(IF(A130="","",VLOOKUP(J130,'Соответствия статей'!$A$2:$B$50,2,0)),"Другое") -> Рестораны | O130: Банк | P130: Расход
A131: 2020-03-02T13:57:25 | B131: 2020-03-05 | C131: *7127 | D131: OK | E131: -25 | F131: RUB | G131: -25 | H131: RUB | J131: Супермаркеты | K131: 5499 | L131: Petro-Servis | M131: 0 | N131: =IFERROR(IF(A131="","",VLOOKUP(J131,'Соответствия статей'!$A$2:$B$50,2,0)),"Другое") -> Продукты | O131: Банк | P131: Расход
A132: 2020-03-02T13:36:44 | B132: 2020-03-05 | C132: *7127 | D132: OK | E132: -200 | F132: RUB | G132: -200 | H132: RUB | J132: Фастфуд | K132: 5814 | L132: Stolovaya | M132: 2 | N132: =IFERROR(IF(A132="","",VLOOKUP(J132,'Соответствия статей'!$A$2:$B$50,2,0)),"Другое") -> Рестораны | O132: Банк | P132: Расход
A133: 2020-03-02T12:43:25 | B133: 2020-03-05 | C133: *7357 | D133: OK | E133: -265 | F133: RUB | G133: -265 | H133: RUB | I133: 2 | J133: Фастфуд | K133: 5814 | L133: Рестораны ТАРЕЛКА | M133: 2 | N133: =IFERROR(IF(A133="","",VLOOKUP(J133,'Соответствия статей'!$A$2:$B$50,2,0)),"Другое") -> Рестораны | O133: Банк | P133: Расход
A134: 2020-03-01T17:03:55 | B134: 2020-03-04 | C134: *7127 | D134: OK | E134: -559 | F134: RUB | G134: -559 | H134: RUB | J134: Аптеки | K134: 5912 | L134: Аптека 36,6 | M134: 5 | N134: =IFERROR(IF(A134="","",VLOOKUP(J134,'Соответствия статей'!$A$2:$B$50,2,0)),"Другое") -> Медицина | O134: Банк | P134: Расход
A135: 2020-03-01T15:52:32 | B135: 2020-03-04 | C135: *7127 | D135: OK | E135: -31 | F135: RUB | G135: -31 | H135: RUB | J135: Книги | K135: 5192 | L135: Первая полоса | M135: 0 | N135: =IFERROR(IF(A135="","",VLOOKUP(J135,'Соответствия статей'!$A$2:$B$50,2,0)),"Другое") -> Обучение | O135: Банк | P135: Расход
A136: 2020-03-01T15:48:52 | B136: 2020-03-05 | C136: *7127 | D136: OK | E136: -807.5 | F136: RUB | G136: -807.5 | H136: RUB | J136: Супермаркеты | K136: 5411 | L136: Перекресток | M136: 8 | N136: =IFERROR(IF(A136="","",VLOOKUP(J136,'Соответствия статей'!$A$2:$B$50,2,0)),"Другое") -> Продукты | O136: Банк | P136: Расход
A137: 2020-03-01T14:36:27 | B137: 2020-03-01 | C137: *7127 | D137: OK | E137: -360 | F137: RUB | G137: -360 | H137: RUB | J137: Мобильные/иб | L137: Ростелеком Мобильная связь +79932213431 | M137: 0 | N137: =IFERROR(IF(A137="","",VLOOKUP(J137,'Соответствия статей'!$A$2:$B$50,2,0)),"Другое") -> Телефонная связь | O137: Банк | P137: Расход
A138: 2020-03-01T12:44:09 | B138: 2020-03-01 | C138: *7127 | D138: OK | E138: 25 | F138: RUB | G138: 25 | H138: RUB | J138: Прочие доходы | L138: Компенсация покупки | M138: 0 | N138: =IFERROR(IF(A138="","",VLOOKUP(J138,'Соответствия статей'!$A$2:$B$50,2,0)),"Другое") -> Прочие доходы | O138: Банк | P138: Доход
A139: 2020-03-01T12:43:58 | B139: 2020-03-01 | C139: *7127 | D139: OK | E139: 25 | F139: RUB | G139: 25 | H139: RUB | J139: Прочие доходы | L139: Компенсация покупки | M139: 0 | N139: =IFERROR(IF(A139="","",VLOOKUP(J139,'Соответствия статей'!$A$2:$B$50,2,0)),"Другое") -> Прочие доходы | O139: Банк | P139: Доход
A140: 2020-03-01T12:43:46 | B140: 2020-03-01 | C140: *7127 | D140: OK | E140: 25 | F140: RUB | G140: 25 | H140: RUB | J140: Прочие доходы | L140: Компенсация покупки | M140: 0 | N140: =IFERROR(IF(A140="","",VLOOKUP(J140,'Соответствия статей'!$A$2:$B$50,2,0)),"Другое") -> Прочие доходы | O140: Банк | P140: Доход
A141: 2020-03-01T12:43:23 | B141: 2020-03-01 | C141: *7127 | D141: OK | E141: 25 | F141: RUB | G141: 25 | H141: RUB | J141: Прочие доходы | L141: Компенсация покупки | M141: 0 | N141: =IFERROR(IF(A141="","",VLOOKUP(J141,'Соответствия статей'!$A$2:$B$50,2,0)),"Другое") -> Прочие доходы | O141: Банк | P141: Доход
A142: 2020-03-01T12:42:59 | B142: 2020-03-01 | C142: *7127 | D142: OK | E142: 200 | F142: RUB | G142: 200 | H142: RUB | J142: Прочие доходы | L142: Компенсация покупки | M142: 0 | N142: =IFERROR(IF(A142="","",VLOOKUP(J142,'Соответствия статей'!$A$2:$B$50,2,0)),"Другое") -> Прочие доходы | O142: Банк | P142: Доход
A143: 2020-03-01T12:42:14 | B143: 2020-03-01 | C143: *7127 | D143: OK | E143: 314 | F143: RUB | G143: 314 | H143: RUB | J143: Прочие доходы | L143: Компенсация покупки | M143: 0 | N143: =IFERROR(IF(A143="","",VLOOKUP(J143,'Соответствия статей'!$A$2:$B$50,2,0)),"Другое") -> Прочие доходы | O143: Банк | P143: Доход
A144: 2020-03-01T12:41:09 | B144: 2020-03-01 | C144: *7127 | D144: OK | E144: 1004.02 | F144: RUB | G144: 1004.02 | H144: RUB | J144: Прочие доходы | L144: Компенсация покупки | M144: 0 | N144: =IFERROR(IF(A144="","",VLOOKUP(J144,'Соответствия статей'!$A$2:$B$50,2,0)),"Другое") -> Прочие доходы | O144: Банк | P144: Доход
A145: 2020-02-29T22:54:57 | B145: 2020-02-29 | D145: OK | E145: -59 | F145: RUB | G145: -59 | H145: RUB | J145: Другое | L145: Плата за оповещения об операциях | M145: 0 | N145: =IFERROR(IF(A145="","",VLOOKUP(J145,'Соответствия статей'!$A$2:$B$50,2,0)),"Другое") -> Другое | O145: Банк | P145: Расход
A146: 2020-02-29T19:07:37 | B146: 2020-03-03 | C146: *7127 | D146: OK | E146: -449.69 | F146: RUB | G146: -449.69 | H146: RUB | J146: Супермаркеты | K146: 5411 | L146: Верный | M146: 4 | N146: =IFERROR(IF(A146="","",VLOOKUP(J146,'Соответствия статей'!$A$2:$B$50,2,0)),"Другое") -> Продукты | O146: Банк | P146: Расход
A147: 2020-02-29T10:51:46 | B147: 2020-03-03 | C147: *7127 | D147: OK | E147: -333.01 | F147: RUB | G147: -333.01 | H147: RUB | J147: Супермаркеты | K147: 5411 | L147: Магнит | M147: 3 | N147: =IFERROR(IF(A147="","",VLOOKUP(J147,'Соответствия статей'!$A$2:$B$50,2,0)),"Другое") -> Продукты | O147: Банк | P147: Расход
A148: 2020-02-28T13:21:34 | B148: 2020-03-02 | C148: *7127 | D148: OK | E148: -25 | F148: RUB | G148: -25 | H148: RUB | J148: Супермаркеты | K148: 5499 | L148: Petro-Servis | M148: 0 | N148: =IFERROR(IF(A148="","",VLOOKUP(J148,'Соответствия статей'!$A$2:$B$50,2,0)),"Другое") -> Продукты | O148: Банк | P148: Расход
A149: 2020-02-28T13:00:04 | B149: 2020-03-02 | C149: *7127 | D149: OK | E149: -200 | F149: RUB | G149: -200 | H149: RUB | J149: Фастфуд | K149: 5814 | L149: Stolovaya | M149: 2 | N149: =IFERROR(IF(A149="","",VLOOKUP(J149,'Соответствия статей'!$A$2:$B$50,2,0)),"Другое") -> Рестораны | O149: Банк | P149: Расход
A150: 2020-02-27T19:18:40 | B150: 2020-02-29 | C150: *7127 | D150: OK | E150: -249.89 | F150: RUB | G150: -249.89 | H150: RUB | J150: Фастфуд | K150: 5814 | L150: Burger King | M150: 2 | N150: =IFERROR(IF(A150="","",VLOOKUP(J150,'Соответствия статей'!$A$2:$B$50,2,0)),"Другое") -> Рестораны | O150: Банк | P150: Расход
A151: 2020-02-27T19:10:52 | B151: 2020-02-29 | C151: *7127 | D151: OK | E151: -275.96 | F151: RUB | G151: -275.96 | H151: RUB | J151: Супермаркеты | K151: 5411 | L151: О'КЕЙ | M151: 2 | N151: =IFERROR(IF(A151="","",VLOOKUP(J151,'Соответствия статей'!$A$2:$B$50,2,0)),"Другое") -> Продукты | O151: Банк | P151: Расход
A152: 2020-02-27T13:34:23 | B152: 2020-02-29 | C152: *7127 | D152: OK | E152: -25 | F152: RUB | G152: -25 | H152: RUB | J152: Супермаркеты | K152: 5499 | L152: Petro-Servis | M152: 0 | N152: =IFERROR(IF(A152="","",VLOOKUP(J152,'Соответствия статей'!$A$2:$B$50,2,0)),"Другое") -> Продукты | O152: Банк | P152: Расход
A153: 2020-02-27T13:13:19 | B153: 2020-02-29 | C153: *7127 | D153: OK | E153: -200 | F153: RUB | G153: -200 | H153: RUB | J153: Фастфуд | K153: 5814 | L153: Stolovaya | M153: 2 | N153: =IFERROR(IF(A153="","",VLOOKUP(J153,'Соответствия статей'!$A$2:$B$50,2,0)),"Другое") -> Рестораны | O153: Банк | P153: Расход
A154: 2020-02-26T22:04:29 | B154: 2020-02-27 | C154: *7127 | D154: OK | E154: -250 | F154: RUB | G154: -250 | H154: RUB | J154: Мобильные/иб | L154: TELE2 +79967762825 | M154: 0 | N154: =IFERROR(IF(A154="","",VLOOKUP(J154,'Соответствия статей'!$A$2:$B$50,2,0)),"Другое") -> Телефонная связь | O154: Банк | P154: Расход
A155: 2020-02-26T13:48:50 | B155: 2020-02-29 | C155: *7127 | D155: OK | E155: -25 | F155: RUB | G155: -25 | H155: RUB | J155: Супермаркеты | K155: 5499 | L155: Petro-Servis | M155: 0 | N155: =IFERROR(IF(A155="","",VLOOKUP(J155,'Соответствия статей'!$A$2:$B$50,2,0)),"Другое") -> Продукты | O155: Банк | P155: Расход
A156: 2020-02-26T13:19:22 | B156: 2020-02-28 | C156: *7127 | D156: OK | E156: -200 | F156: RUB | G156: -200 | H156: RUB | J156: Фастфуд | K156: 5814 | L156: Stolovaya | M156: 2 | N156: =IFERROR(IF(A156="","",VLOOKUP(J156,'Соответствия статей'!$A$2:$B$50,2,0)),"Другое") -> Рестораны | O156: Банк | P156: Расход
A157: 2020-02-25T19:06:11 | B157: 2020-02-28 | C157: *7127 | D157: OK | E157: -649 | F157: RUB | G157: -649 | H157: RUB | J157: Супермаркеты | K157: 5411 | L157: Перекресток | M157: 6 | N157: =IFERROR(IF(A157="","",VLOOKUP(J157,'Соответствия статей'!$A$2:$B$50,2,0)),"Другое") -> Продукты | O157: Банк | P157: Расход
A158: 2020-02-25T13:46:10 | B158: 2020-02-25 | C158: *8173 | D158: OK | E158: 625 | F158: RUB | G158: 625 | H158: RUB | J158: Прочие доходы | L158: Иван Ш. | M158: 0 | N158: =IFERROR(IF(A158="","",VLOOKUP(J158,'Соответствия статей'!$A$2:$B$50,2,0)),"Другое") -> Прочие доходы | O158: Банк | P158: Доход
A159: 2020-02-25T13:36:10 | B159: 2020-02-26 | C159: *7127 | D159: OK | E159: -25 | F159: RUB | G159: -25 | H159: RUB | J159: Фастфуд | K159: 5814 | L159: Petro-Servis | M159: 0 | N159: =IFERROR(IF(A159="","",VLOOKUP(J159,'Соответствия статей'!$A$2:$B$50,2,0)),"Другое") -> Рестораны | O159: Банк | P159: Расход
A160: 2020-02-25T13:15:02 | B160: 2020-02-27 | C160: *7127 | D160: OK | E160: -205 | F160: RUB | G160: -205 | H160: RUB | J160: Фастфуд | K160: 5814 | L160: Stolovaya | M160: 2 | N160: =IFERROR(IF(A160="","",VLOOKUP(J160,'Соответствия статей'!$A$2:$B$50,2,0)),"Другое") -> Рестораны | O160: Банк | P160: Расход
A161: 2020-02-25T01:22:01 | B161: 2020-02-25 | C161: *7127 | D161: OK | E161: -625 | F161: RUB | G161: -625 | H161: RUB | J161: Сервис. услуги | K161: 7311 | L161: ВКонтакте | M161: 0 | N161: =IFERROR(IF(A161="","",VLOOKUP(J161,'Соответствия статей'!$A$2:$B$50,2,0)),"Другое") -> Другое | O161: Банк | P161: Расход
A162: 2020-02-24T13:23:55 | B162: 2020-02-27 | C162: *7127 | D162: OK | E162: -29.99 | F162: RUB | G162: -29.99 | H162: RUB | J162: Супермаркеты | K162: 5411 | L162: Семишагофф | M162: 0 | N162: =IFERROR(IF(A162="","",VLOOKUP(J162,'Соответствия статей'!$A$2:$B$50,2,0)),"Другое") -> Продукты | O162: Банк | P162: Расход
A163: 2020-02-24T12:48:38 | B163: 2020-02-26 | C163: *7127 | D163: OK | E163: -487 | F163: RUB | G163: -487 | H163: RUB | J163: Аптеки | K163: 5912 | L163: Озерки | M163: 4 | N163: =IFERROR(IF(A163="","",VLOOKUP(J163,'Соответствия статей'!$A$2:$B$50,2,0)),"Другое") -> Медицина | O163: Банк | P163: Расход
A164: 2020-02-24T12:27:09 | B164: 2020-02-27 | C164: *7127 | D164: OK | E164: -666.46 | F164: RUB | G164: -666.46 | H164: RUB | J164: Супермаркеты | K164: 5411 | L164: Перекресток | M164: 6 | N164: =IFERROR(IF(A164="","",VLOOKUP(J164,'Соответствия статей'!$A$2:$B$50,2,0)),"Другое") -> Продукты | O164: Банк | P164: Расход
A165: 2020-02-23T22:41:53 | B165: 2020-02-23 | D165: OK | E165: -99 | F165: RUB | G165: -99 | H165: RUB | J165: Другое | L165: Плата за обслуживание | M165: 0 | N165: =IFERROR(IF(A165="","",VLOOKUP(J165,'Соответствия статей'!$A$2:$B$50,2,0)),"Другое") -> Другое | O165: Банк | P165: Расход
A166: 2020-02-23T22:22:41 | B166: 2020-02-23 | D166: OK | E166: 67 | F166: RUB | G166: 67 | H166: RUB | J166: Прочие доходы | L166: Вознаграждение за операции покупок | M166: 0 | N166: =IFERROR(IF(A166="","",VLOOKUP(J166,'Соответствия статей'!$A$2:$B$50,2,0)),"Другое") -> Прочие доходы | O166: Банк | P166: Доход
A167: 2020-02-23T21:34:10 | B167: 2020-02-23 | D167: OK | E167: 2.69 | F167: RUB | G167: 2.69 | H167: RUB | J167: Прочие доходы | L167: Проценты на остаток по счету | M167: 0 | N167: =IFERROR(IF(A167="","",VLOOKUP(J167,'Соответствия статей'!$A$2:$B$50,2,0)),"Другое") -> Прочие доходы | O167: Банк | P167: Доход
A168: 2020-02-23T21:05:47 | B168: 2020-02-24 | C168: *8173 | D168: OK | E168: 400 | F168: RUB | G168: 400 | H168: RUB | J168: Прочие доходы | L168: Иван Ш. | M168: 0 | N168: =IFERROR(IF(A168="","",VLOOKUP(J168,'Соответствия статей'!$A$2:$B$50,2,0)),"Другое") -> Прочие доходы | O168: Банк | P168: Доход
A169: 2020-02-23T20:10:28 | B169: 2020-02-26 | C169: *7127 | D169: OK | E169: -524.61 | F169: RUB | G169: -524.61 | H169: RUB | J169: Супермаркеты | K169: 5411 | L169: Перекресток | M169: 5 | N169: =IFERROR(IF(A169="","",VLOOKUP(J169,'Соответствия статей'!$A$2:$B$50,2,0)),"Другое") -> Продукты | O169: Банк | P169: Расход
A170: 2020-02-22T21:00:53 | B170: 2020-02-24 | C170: *8173 | D170: OK | E170: -136 | F170: RUB | G170: -136 | H170: RUB | I170: 6 | J170: Транспорт | K170: 4121 | L170: Uber | M170: 6 | N170: =IFERROR(IF(A170="","",VLOOKUP(J170,'Соответствия статей'!$A$2:$B$50,2,0)),"Другое") -> Транспорт | O170: Банк | P170: Расход
A171: 2020-02-22T18:31:50 | B171: 2020-02-25 | C171: *7127 | D171: OK | E171: -579.96 | F171: RUB | G171: -579.96 | H171: RUB | J171: Супермаркеты | K171: 5411 | L171: Пятерочка | M171: 5 | N171: =IFERROR(IF(A171="","",VLOOKUP(J171,'Соответствия статей'!$A$2:$B$50,2,0)),"Другое") -> Продукты | O171: Банк | P171: Расход
A172: 2020-02-22T18:19:47 | B172: 2020-02-25 | C172: *7127 | D172: OK | E172: -75 | F172: RUB | G172: -75 | H172: RUB | J172: Аптеки | K172: 5912 | L172: OOO Parus | M172: 0 | N172: =IFERROR(IF(A172="","",VLOOKUP(J172,'Соответствия статей'!$A$2:$B$50,2,0)),"Другое") -> Медицина | O172: Банк | P172: Расход
A173: 2020-02-22T16:45:55 | B173: 2020-02-22 | C173: *8173 | D173: OK | E173: 4400 | F173: RUB | G173: 4400 | H173: RUB | J173: Прочие доходы | L173: Иван Ш. | M173: 0 | N173: =IFERROR(IF(A173="","",VLOOKUP(J173,'Соответствия статей'!$A$2:$B$50,2,0)),"Другое") -> Прочие доходы | O173: Банк | P173: Доход
A174: 2020-02-22T00:21:04 | B174: 2020-02-25 | C174: *7127 | D174: OK | E174: -488.46 | F174: RUB | G174: -488.46 | H174: RUB | J174: Супермаркеты | K174: 5411 | L174: Перекресток | M174: 4 | N174: =IFERROR(IF(A174="","",VLOOKUP(J174,'Соответствия статей'!$A$2:$B$50,2,0)),"Другое") -> Продукты | O174: Банк | P174: Расход
A175: 2020-02-21T21:42:49 | B175: 2020-02-24 | C175: *7127 | D175: OK | E175: -120 | F175: RUB | G175: -120 | H175: RUB | J175: Аптеки | K175: 5912 | L175: Аптеки Первая Помощь | M175: 1 | N175: =IFERROR(IF(A175="","",VLOOKUP(J175,'Соответствия статей'!$A$2:$B$50,2,0)),"Другое") -> Медицина | O175: Банк | P175: Расход
A176: 2020-02-21T21:35:40 | B176: 2020-02-25 | C176: *8173 | D176: OK | E176: -684 | F176: RUB | G176: -684 | H176: RUB | I176: 34 | J176: Кино | K176: 7832 | L176: Синема Парк | M176: 34 | N176: =IFERROR(IF(A176="","",VLOOKUP(J176,'Соответствия статей'!$A$2:$B$50,2,0)),"Другое") -> Развлечения | O176: Банк | P176: Расход
A177: 2020-02-21T20:32:19 | B177: 2020-02-25 | C177: *7357 | D177: OK | E177: -249.89 | F177: RUB | G177: -249.89 | H177: RUB | I177: 2 | J177: Фастфуд | K177: 5814 | L177: Burger King | M177: 2 | N177: =IFERROR(IF(A177="","",VLOOKUP(J177,'Соответствия статей'!$A$2:$B$50,2,0)),"Другое") -> Рестораны | O177: Банк | P177: Расход
A178: 2020-02-21T19:36:55 | B178: 2020-02-25 | C178: *7357 | D178: OK | E178: -100 | F178: RUB | G178: -100 | H178: RUB | I178: 5 | J178: Транспорт | K178: 4111 | L178: Метро Санкт-Петербург | M178: 5 | N178: =IFERROR(IF(A178="","",VLOOKUP(J178,'Соответствия статей'!$A$2:$B$50,2,0)),"Другое") -> Транспорт | O178: Банк | P178: Расход
A179: 2020-02-21T18:56:56 | B179: 2020-02-25 | C179: *7127 | D179: OK | E179: -279.98 | F179: RUB | G179: -279.98 | H179: RUB | J179: Фастфуд | K179: 5814 | L179: Burger King | M179: 2 | N179: =IFERROR(IF(A179="","",VLOOKUP(J179,'Соответствия статей'!$A$2:$B$50,2,0)),"Другое") -> Рестораны | O179: Банк | P179: Расход
A180: 2020-02-21T13:36:06 | B180: 2020-02-24 | C180: *7127 | D180: OK | E180: -25 | F180: RUB | G180: -25 | H180: RUB | J180: Супермаркеты | K180: 5499 | L180: Petro-Servis | M180: 0 | N180: =IFERROR(IF(A180="","",VLOOKUP(J180,'Соответствия статей'!$A$2:$B$50,2,0)),"Другое") -> Продукты | O180: Банк | P180: Расход
A181: 2020-02-21T13:13:50 | B181: 2020-02-24 | C181: *7127 | D181: OK | E181: -200 | F181: RUB | G181: -200 | H181: RUB | J181: Фастфуд | K181: 5814 | L181: Stolovaya | M181: 2 | N181: =IFERROR(IF(A181="","",VLOOKUP(J181,'Соответствия статей'!$A$2:$B$50,2,0)),"Другое") -> Рестораны | O181: Банк | P181: Расход
A182: 2020-02-21T00:45:46 | B182: 2020-02-21 | C182: *7127 | D182: OK | E182: -500 | F182: RUB | G182: -500 | H182: RUB | J182: Сервис. услуги | K182: 7311 | L182: ВКонтакте | M182: 0 | N182: =IFERROR(IF(A182="","",VLOOKUP(J182,'Соответствия статей'!$A$2:$B$50,2,0)),"Другое") -> Другое | O182: Банк | P182: Расход
A183: 2020-02-20T20:04:12 | B183: 2020-02-22 | C183: *7357 | D183: OK | E183: -100 | F183: RUB | G183: -100 | H183: RUB | I183: 5 | J183: Транспорт | K183: 4111 | L183: Метро Санкт-Петербург | M183: 5 | N183: =IFERROR(IF(A183="","",VLOOKUP(J183,'Соответствия статей'!$A$2:$B$50,2,0)),"Другое") -> Транспорт | O183: Банк | P183: Расход
A184: 2020-02-20T19:25:53 | B184: 2020-02-24 | C184: *7127 | D184: OK | E184: -832.61 | F184: RUB | G184: -832.61 | H184: RUB | J184: Супермаркеты | K184: 5411 | L184: Перекресток | M184: 8 | N184: =IFERROR(IF(A184="","",VLOOKUP(J184,'Соответствия статей'!$A$2:$B$50,2,0)),"Другое") -> Продукты | O184: Банк | P184: Расход
A185: 2020-02-20T14:44:59 | B185: 2020-02-25 | C185: *7357 | D185: OK | E185: -198 | F185: RUB | G185: -198 | H185: RUB | I185: 1 | J185: Разные товары | K185: 5311 | L185: Fixprice | M185: 1 | N185: =IFERROR(IF(A185="","",VLOOKUP(J185,'Соответствия статей'!$A$2:$B$50,2,0)),"Другое") -> Другое | O185: Банк | P185: Расход
A186: 2020-02-20T13:43:49 | B186: 2020-02-22 | C186: *7127 | D186: OK | E186: -25 | F186: RUB | G186: -25 | H186: RUB | J186: Супермаркеты | K186: 5499 | L186: Petro-Servis | M186: 0 | N186: =IFERROR(IF(A186="","",VLOOKUP(J186,'Соответствия статей'!$A$2:$B$50,2,0)),"Другое") -> Продукты | O186: Банк | P186: Расход
A187: 2020-02-20T13:37:39 | B187: 2020-02-22 | C187: *7357 | D187: OK | E187: -230 | F187: RUB | G187: -230 | H187: RUB | I187: 2 | J187: Фастфуд | K187: 5814 | L187: Рестораны ТАРЕЛКА | M187: 2 | N187: =IFERROR(IF(A187="","",VLOOKUP(J187,'Соответствия статей'!$A$2:$B$50,2,0)),"Другое") -> Рестораны | O187: Банк | P187: Расход
A188: 2020-02-20T07:50:00 | B188: 2020-02-21 | C188: *7127 | D188: OK | E188: -25 | F188: RUB | G188: -25 | H188: RUB | J188: Фастфуд | K188: 5814 | L188: OOO As-Vend | M188: 0 | N188: =IFERROR(IF(A188="","",VLOOKUP(J188,'Соответствия статей'!$A$2:$B$50,2,0)),"Другое") -> Рестораны | O188: Банк | P188: Расход
A189: 2020-02-19T19:08:36 | B189: 2020-02-22 | C189: *7127 | D189: OK | E189: -694.56 | F189: RUB | G189: -694.56 | H189: RUB | J189: Супермаркеты | K189: 5411 | L189: Перекресток | M189: 6 | N189: =IFERROR(IF(A189="","",VLOOKUP(J189,'Соответствия статей'!$A$2:$B$50,2,0)),"Другое") -> Продукты | O189: Банк | P189: Расход
A190: 2020-02-19T13:19:48 | B190: 2020-02-22 | C190: *7127 | D190: OK | E190: -25 | F190: RUB | G190: -25 | H190: RUB | J190: Супермаркеты | K190: 5499 | L190: Petro-Servis | M190: 0 | N190: =IFERROR(IF(A190="","",VLOOKUP(J190,'Соответствия статей'!$A$2:$B$50,2,0)),"Другое") -> Продукты | O190: Банк | P190: Расход
A191: 2020-02-19T12:32:22 | B191: 2020-02-22 | C191: *7357 | D191: OK | E191: -273 | F191: RUB | G191: -273 | H191: RUB | I191: 2 | J191: Фастфуд | K191: 5814 | L191: Рестораны ТАРЕЛКА | M191: 2 | N191: =IFERROR(IF(A191="","",VLOOKUP(J191,'Соответствия статей'!$A$2:$B$50,2,0)),"Другое") -> Рестораны | O191: Банк | P191: Расход
A192: 2020-02-19T10:50:05 | B192: 2020-02-20 | C192: *7127 | D192: OK | E192: 251 | F192: RUB | G192: 251 | H192: RUB | J192: Финан. услуги | K192: 6513 | L192: Rosreestr.Net | M192: -2 | N192: =IFERROR(IF(A192="","",VLOOKUP(J192,'Соответствия статей'!$A$2:$B$50,2,0)),"Другое") -> Переводы | O192: Банк | P192: Расход
A193: 2020-02-19T02:56:12 | B193: 2020-02-19 | C193: *8173 | D193: OK | E193: -50 | F193: RUB | G193: -50 | H193: RUB | J193: Мобильные/иб | L193: TELE2 - автоплатеж +79533443146 | M193: 0 | N193: =IFERROR(IF(A193="","",VLOOKUP(J193,'Соответствия статей'!$A$2:$B$50,2,0)),"Другое") -> Телефонная связь | O193: Банк | P193: Расход
A194: 2020-02-18T21:55:23 | B194: 2020-02-19 | C194: *7127 | D194: OK | E194: -695.28 | F194: RUB | G194: -695.28 | H194: RUB | J194: Жкх/иб | K194: 4900 | L194: Петроэлектросбыт | M194: 0 | N194: =IFERROR(IF(A194="","",VLOOKUP(J194,'Соответствия статей'!$A$2:$B$50,2,0)),"Другое") -> Коммунальные услуги | O194: Банк | P194: Расход
A195: 2020-02-18T19:06:31 | B195: 2020-02-21 | C195: *7127 | D195: OK | E195: -319.32 | F195: RUB | G195: -319.32 | H195: RUB | J195: Супермаркеты | K195: 5411 | L195: Перекресток | M195: 3 | N195: =IFERROR(IF(A195="","",VLOOKUP(J195,'Соответствия статей'!$A$2:$B$50,2,0)),"Другое") -> Продукты | O195: Банк | P195: Расход
A196: 2020-02-18T13:35:25 | B196: 2020-02-20 | C196: *7127 | D196: OK | E196: -25 | F196: RUB | G196: -25 | H196: RUB | J196: Супермаркеты | K196: 5499 | L196: Petro-Servis | M196: 0 | N196: =IFERROR(IF(A196="","",VLOOKUP(J196,'Соответствия статей'!$A$2:$B$50,2,0)),"Другое") -> Продукты | O196: Банк | P196: Расход
A197: 2020-02-18T13:14:18 | B197: 2020-02-21 | C197: *7127 | D197: OK | E197: -200 | F197: RUB | G197: -200 | H197: RUB | J197: Фастфуд | K197: 5814 | L197: Stolovaya | M197: 2 | N197: =IFERROR(IF(A197="","",VLOOKUP(J197,'Соответствия статей'!$A$2:$B$50,2,0)),"Другое") -> Рестораны | O197: Банк | P197: Расход
A198: 2020-02-18T13:03:03 | B198: 2020-02-21 | C198: *7357 | D198: OK | E198: -253 | F198: RUB | G198: -253 | H198: RUB | I198: 2 | J198: Фастфуд | K198: 5814 | L198: Рестораны ТАРЕЛКА | M198: 2 | N198: =IFERROR(IF(A198="","",VLOOKUP(J198,'Соответствия статей'!$A$2:$B$50,2,0)),"Другое") -> Рестораны | O198: Банк | P198: Расход
A199: 2020-02-18T11:01:21 | B199: 2020-02-18 | C199: *8173 | D199: OK | E199: 510 | F199: RUB | G199: 510 | H199: RUB | J199: Прочие доходы | L199: Иван Ш. | M199: 0 | N199: =IFERROR(IF(A199="","",VLOOKUP(J199,'Соответствия статей'!$A$2:$B$50,2,0)),"Другое") -> Прочие доходы | O199: Банк | P199: Доход
A200: 2020-02-18T10:59:53 | B200: 2020-02-19 | C200: *7127 | D200: OK | E200: -25 | F200: RUB | G200: -25 | H200: RUB | J200: Фастфуд | K200: 5814 | L200: OOO As-Vend | M200: 0 | N200: =IFERROR(IF(A200="","",VLOOKUP(J200,'Соответствия статей'!$A$2:$B$50,2,0)),"Другое") -> Рестораны | O200: Банк | P200: Расход
... 4300 more rows

Sheet ДАННЫЕ ДИАГРАММЫ (hidden)
B1: ДАННЫЕ ДИАГРАММЫ
C3: Прогнозируемые | D3: Фактические
B4: Движение денежных средств | C4: ='Движение денежных средств'!$C$11 -> 37270 | D4: ='Движение денежных средств'!$D$11 -> 23357.6
B5: Доходы за месяц | C5: =Доходы[[#Totals],[План Январь]] -> 72000 | D5: =Доходы[[#Totals],[Факт Январь]] -> 88167.04
B6: Расходы за месяц | C6: =Расходы[[#Totals],[Январь План]] -> 34730 | D6: =Расходы[[#Totals],[Январь Факт]] -> 64809.44
